Body Name,Date Paid,Transaction Number,Amount,Supplier Name,Supplier Type,Expense Area,Cost Centre Description,Expense Type
Cambridgeshire County Council,03-Oct-18,51300484602,"-134,669.81",MOTT MACDONALD LTD,TRADE SUPPLIER,GCP - Western Orbital,GCP - Western Orbital,Construction - External Professional Fees
Cambridgeshire County Council,11-Oct-18,51300484651,"-48,990.63",The Ryes College Ltd,CARE ESTABLISHMENT,LAC Placements,Placements - residential homes,Agency Placements - Out of  County
Cambridgeshire County Council,11-Oct-18,51300536326,"-32,818.96",The Ryes College Ltd,CARE ESTABLISHMENT,LAC Placements,Placements - residential schools,Agency Placements - Out of  County
Cambridgeshire County Council,03-Oct-18,51300429308,"-24,873.23",MORGAN SINDALL CONSTRUCTION & INFRASTRUCTURE LTD,COMPANY,"St Neots, Wintringham Park","St Neots, Wintringham Park",Construction - External Professional Fees
Cambridgeshire County Council,01-Oct-18,51300427482,"-23,412.76",NOTTINGHAM REHAB SUPPLIES LTD,TRADE SUPPLIER,Reablement - Hunts,Reablement - Hunts,Specialist Equipment For Service Delivery
Cambridgeshire County Council,26-Oct-18,51300484612,"-14,614.33",SURECARE RESIDENTIAL LTD,CARE ESTABLISHMENT,LAC Placements,Placements - residential homes,Agency Placements - Out of  County
Cambridgeshire County Council,22-Oct-18,51300415352,"-14,328.66",WYG ENGINEERING LTD,TRADE SUPPLIER,GCP - Chisholm Trail,GCP - Chisholm Trail,Cycleways
Cambridgeshire County Council,11-Oct-18,51300536327,"-12,055.29",The Ryes College Ltd,CARE ESTABLISHMENT,LAC Placements,Placements - residential schools,Agency Placements - Out of  County
Cambridgeshire County Council,15-Oct-18,51300462907,"-5,200.00",BETHANY FRANCIS HOUSE,CARE ESTABLISHMENT,Physical Disablity,Countywide PD Service - Care,Supporting People
Cambridgeshire County Council,15-Oct-18,51300425849,"-4,655.00",BROOKDALE HEALTHCARE LIMITED,CARE ESTABLISHMENT,LD - Hunts Locality,LD - Huntigndonshire  - Special Needs,Rehabilitation And Respite Care
Cambridgeshire County Council,15-Oct-18,51300433953,"-4,655.00",BROOKDALE HEALTHCARE LIMITED,CARE ESTABLISHMENT,LD - Hunts Locality,LD - Huntigndonshire  - Special Needs,Rehabilitation And Respite Care
Cambridgeshire County Council,15-Oct-18,51300425846,"-4,655.00",BROOKDALE HEALTHCARE LIMITED,CARE ESTABLISHMENT,LD - Hunts Locality,LD - Huntigndonshire  - Special Needs,Rehabilitation And Respite Care
Cambridgeshire County Council,15-Oct-18,51300425836,"-4,655.00",BROOKDALE HEALTHCARE LIMITED,CARE ESTABLISHMENT,LD - Hunts Locality,LD - Huntigndonshire  - Special Needs,Rehabilitation And Respite Care
Cambridgeshire County Council,15-Oct-18,51300425842,"-4,655.00",BROOKDALE HEALTHCARE LIMITED,CARE ESTABLISHMENT,LD - Hunts Locality,LD - Huntigndonshire  - Special Needs,Rehabilitation And Respite Care
Cambridgeshire County Council,15-Oct-18,51300425851,"-4,655.00",BROOKDALE HEALTHCARE LIMITED,CARE ESTABLISHMENT,LD - Hunts Locality,LD - Huntigndonshire  - Special Needs,Rehabilitation And Respite Care
Cambridgeshire County Council,15-Oct-18,51300425835,"-4,655.00",BROOKDALE HEALTHCARE LIMITED,CARE ESTABLISHMENT,LD - Hunts Locality,LD - Huntigndonshire  - Special Needs,Rehabilitation And Respite Care
Cambridgeshire County Council,15-Oct-18,51300460794,"-4,655.00",BROOKDALE HEALTHCARE LIMITED,CARE ESTABLISHMENT,LD - Hunts Locality,LD - Huntigndonshire  - Special Needs,Rehabilitation And Respite Care
Cambridgeshire County Council,15-Oct-18,51300460777,"-4,655.00",BROOKDALE HEALTHCARE LIMITED,CARE ESTABLISHMENT,LD - Hunts Locality,LD - Huntigndonshire  - Special Needs,Rehabilitation And Respite Care
Cambridgeshire County Council,15-Oct-18,51300460762,"-4,655.00",BROOKDALE HEALTHCARE LIMITED,CARE ESTABLISHMENT,LD - Hunts Locality,LD - Huntigndonshire  - Special Needs,Rehabilitation And Respite Care
Cambridgeshire County Council,15-Oct-18,51300460797,"-4,655.00",BROOKDALE HEALTHCARE LIMITED,CARE ESTABLISHMENT,LD - Hunts Locality,LD - Huntigndonshire  - Special Needs,Rehabilitation And Respite Care
Cambridgeshire County Council,15-Oct-18,51300425843,"-4,655.00",BROOKDALE HEALTHCARE LIMITED,CARE ESTABLISHMENT,LD - Hunts Locality,LD - Huntigndonshire  - Special Needs,Rehabilitation And Respite Care
Cambridgeshire County Council,15-Oct-18,51300460772,"-4,655.00",BROOKDALE HEALTHCARE LIMITED,CARE ESTABLISHMENT,LD - Hunts Locality,LD - Huntigndonshire  - Special Needs,Rehabilitation And Respite Care
Cambridgeshire County Council,15-Oct-18,51300433959,"-4,655.00",BROOKDALE HEALTHCARE LIMITED,CARE ESTABLISHMENT,LD - Hunts Locality,LD - Huntigndonshire  - Special Needs,Rehabilitation And Respite Care
Cambridgeshire County Council,15-Oct-18,51300433968,"-4,655.00",BROOKDALE HEALTHCARE LIMITED,CARE ESTABLISHMENT,LD - Hunts Locality,LD - Huntigndonshire  - Special Needs,Rehabilitation And Respite Care
Cambridgeshire County Council,15-Oct-18,51300433958,"-4,655.00",BROOKDALE HEALTHCARE LIMITED,CARE ESTABLISHMENT,LD - Hunts Locality,LD - Huntigndonshire  - Special Needs,Rehabilitation And Respite Care
Cambridgeshire County Council,15-Oct-18,51300460786,"-4,655.00",BROOKDALE HEALTHCARE LIMITED,CARE ESTABLISHMENT,LD - Hunts Locality,LD - Huntigndonshire  - Special Needs,Rehabilitation And Respite Care
Cambridgeshire County Council,15-Oct-18,51300433967,"-4,655.00",BROOKDALE HEALTHCARE LIMITED,CARE ESTABLISHMENT,LD - Hunts Locality,LD - Huntigndonshire  - Care,Rehabilitation And Respite Care
Cambridgeshire County Council,15-Oct-18,51300460766,"-4,655.00",BROOKDALE HEALTHCARE LIMITED,CARE ESTABLISHMENT,LD - Hunts Locality,LD - Huntigndonshire  - Care,Rehabilitation And Respite Care
Cambridgeshire County Council,15-Oct-18,51300425848,"-4,655.00",BROOKDALE HEALTHCARE LIMITED,CARE ESTABLISHMENT,LD - Hunts Locality,LD - Huntigndonshire  - Care,Rehabilitation And Respite Care
Cambridgeshire County Council,15-Oct-18,51300433963,"-4,655.00",BROOKDALE HEALTHCARE LIMITED,CARE ESTABLISHMENT,LD - Hunts Locality,LD - Huntigndonshire  - Care,Rehabilitation And Respite Care
Cambridgeshire County Council,15-Oct-18,51300433966,"-4,655.00",BROOKDALE HEALTHCARE LIMITED,CARE ESTABLISHMENT,LD - Hunts Locality,LD - Huntigndonshire  - Care,Rehabilitation And Respite Care
Cambridgeshire County Council,15-Oct-18,51300433961,"-4,655.00",BROOKDALE HEALTHCARE LIMITED,CARE ESTABLISHMENT,LD - Hunts Locality,LD - Huntigndonshire  - Care,Rehabilitation And Respite Care
Cambridgeshire County Council,15-Oct-18,51300460776,"-4,655.00",BROOKDALE HEALTHCARE LIMITED,CARE ESTABLISHMENT,LD - Hunts Locality,LD - Huntigndonshire  - Care,Rehabilitation And Respite Care
Cambridgeshire County Council,15-Oct-18,51300425841,"-4,655.00",BROOKDALE HEALTHCARE LIMITED,CARE ESTABLISHMENT,LD - Hunts Locality,LD - Huntigndonshire  - Care,Rehabilitation And Respite Care
Cambridgeshire County Council,15-Oct-18,51300460775,"-4,655.00",BROOKDALE HEALTHCARE LIMITED,CARE ESTABLISHMENT,LD - Hunts Locality,LD - Huntigndonshire  - Care,Rehabilitation And Respite Care
Cambridgeshire County Council,15-Oct-18,51300433965,"-4,655.00",BROOKDALE HEALTHCARE LIMITED,CARE ESTABLISHMENT,LD - Hunts Locality,LD - Huntigndonshire  - Care,Rehabilitation And Respite Care
Cambridgeshire County Council,25-Oct-18,51300482309,"-4,655.00",BROOKDALE HEALTHCARE LIMITED,CARE ESTABLISHMENT,LD - Hunts Locality,LD - Huntigndonshire  - Special Needs,Rehabilitation And Respite Care
Cambridgeshire County Council,25-Oct-18,51300482304,"-4,655.00",BROOKDALE HEALTHCARE LIMITED,CARE ESTABLISHMENT,LD - Hunts Locality,LD - Huntigndonshire  - Special Needs,Rehabilitation And Respite Care
Cambridgeshire County Council,25-Oct-18,51300488624,"-4,655.00",BROOKDALE HEALTHCARE LIMITED,CARE ESTABLISHMENT,LD - Hunts Locality,LD - Huntigndonshire  - Special Needs,Rehabilitation And Respite Care
Cambridgeshire County Council,25-Oct-18,51300488636,"-4,655.00",BROOKDALE HEALTHCARE LIMITED,CARE ESTABLISHMENT,LD - Hunts Locality,LD - Huntigndonshire  - Special Needs,Rehabilitation And Respite Care
Cambridgeshire County Council,25-Oct-18,51300488625,"-4,655.00",BROOKDALE HEALTHCARE LIMITED,CARE ESTABLISHMENT,LD - Hunts Locality,LD - Huntigndonshire  - Special Needs,Rehabilitation And Respite Care
Cambridgeshire County Council,25-Oct-18,51300482302,"-4,655.00",BROOKDALE HEALTHCARE LIMITED,CARE ESTABLISHMENT,LD - Hunts Locality,LD - Huntigndonshire  - Special Needs,Rehabilitation And Respite Care
Cambridgeshire County Council,25-Oct-18,51300488631,"-4,655.00",BROOKDALE HEALTHCARE LIMITED,CARE ESTABLISHMENT,LD - Hunts Locality,LD - Huntigndonshire  - Special Needs,Rehabilitation And Respite Care
Cambridgeshire County Council,25-Oct-18,51300482310,"-4,655.00",BROOKDALE HEALTHCARE LIMITED,CARE ESTABLISHMENT,LD - Hunts Locality,LD - Huntigndonshire  - Special Needs,Rehabilitation And Respite Care
Cambridgeshire County Council,25-Oct-18,51300482307,"-4,655.00",BROOKDALE HEALTHCARE LIMITED,CARE ESTABLISHMENT,LD - Hunts Locality,LD - Huntigndonshire  - Special Needs,Rehabilitation And Respite Care
Cambridgeshire County Council,25-Oct-18,51300482300,"-4,655.00",BROOKDALE HEALTHCARE LIMITED,CARE ESTABLISHMENT,LD - Hunts Locality,LD - Huntigndonshire  - Special Needs,Rehabilitation And Respite Care
Cambridgeshire County Council,25-Oct-18,51300482312,"-4,655.00",BROOKDALE HEALTHCARE LIMITED,CARE ESTABLISHMENT,LD - Hunts Locality,LD - Huntigndonshire  - Special Needs,Rehabilitation And Respite Care
Cambridgeshire County Council,25-Oct-18,51300488635,"-4,655.00",BROOKDALE HEALTHCARE LIMITED,CARE ESTABLISHMENT,LD - Hunts Locality,LD - Huntigndonshire  - Special Needs,Rehabilitation And Respite Care
Cambridgeshire County Council,25-Oct-18,51300488634,"-4,655.00",BROOKDALE HEALTHCARE LIMITED,CARE ESTABLISHMENT,LD - Hunts Locality,LD - Huntigndonshire  - Special Needs,Rehabilitation And Respite Care
Cambridgeshire County Council,25-Oct-18,51300488623,"-4,655.00",BROOKDALE HEALTHCARE LIMITED,CARE ESTABLISHMENT,LD - Hunts Locality,LD - Huntigndonshire  - Special Needs,Rehabilitation And Respite Care
Cambridgeshire County Council,25-Oct-18,51300482297,"-4,655.00",BROOKDALE HEALTHCARE LIMITED,CARE ESTABLISHMENT,LD - Hunts Locality,LD - Huntigndonshire  - Care,Rehabilitation And Respite Care
Cambridgeshire County Council,25-Oct-18,51300488632,"-4,655.00",BROOKDALE HEALTHCARE LIMITED,CARE ESTABLISHMENT,LD - Hunts Locality,LD - Huntigndonshire  - Care,Rehabilitation And Respite Care
Cambridgeshire County Council,25-Oct-18,51300482303,"-4,655.00",BROOKDALE HEALTHCARE LIMITED,CARE ESTABLISHMENT,LD - Hunts Locality,LD - Huntigndonshire  - Care,Rehabilitation And Respite Care
Cambridgeshire County Council,25-Oct-18,51300488630,"-4,655.00",BROOKDALE HEALTHCARE LIMITED,CARE ESTABLISHMENT,LD - Hunts Locality,LD - Huntigndonshire  - Care,Rehabilitation And Respite Care
Cambridgeshire County Council,25-Oct-18,51300465174,"-4,381.63",BANYA FAMILY PLACEMENT AGENCY,CARE ESTABLISHMENT,LAC Placements,Placements - independent fostering,Agency Placements - Out of  County
Cambridgeshire County Council,25-Oct-18,51300465171,"-4,381.63",BANYA FAMILY PLACEMENT AGENCY,CARE ESTABLISHMENT,LAC Placements,Placements - independent fostering,Agency Placements - Out of  County
Cambridgeshire County Council,16-Oct-18,51300463280,"-3,741.26",NEXUS FOSTERING LTD,CARE ESTABLISHMENT,LAC Placements,Placements - independent fostering,Agency Placements - Out of  County
Cambridgeshire County Council,15-Oct-18,51300433969,"-3,325.00",BROOKDALE HEALTHCARE LIMITED,CARE ESTABLISHMENT,LD - Hunts Locality,LD - Huntigndonshire  - Care,Rehabilitation And Respite Care
Cambridgeshire County Council,15-Oct-18,51300460774,"-3,325.00",BROOKDALE HEALTHCARE LIMITED,CARE ESTABLISHMENT,LD - Hunts Locality,LD - Huntigndonshire  - Care,Rehabilitation And Respite Care
Cambridgeshire County Council,15-Oct-18,51300425834,"-3,325.00",BROOKDALE HEALTHCARE LIMITED,CARE ESTABLISHMENT,LD - Hunts Locality,LD - Huntigndonshire  - Special Needs,Rehabilitation And Respite Care
Cambridgeshire County Council,25-Oct-18,51300482301,"-3,325.00",BROOKDALE HEALTHCARE LIMITED,CARE ESTABLISHMENT,LD - Hunts Locality,LD - Huntigndonshire  - Special Needs,Rehabilitation And Respite Care
Cambridgeshire County Council,25-Oct-18,51300488621,"-3,325.00",BROOKDALE HEALTHCARE LIMITED,CARE ESTABLISHMENT,LD - Hunts Locality,LD - Huntigndonshire  - Special Needs,Rehabilitation And Respite Care
Cambridgeshire County Council,12-Oct-18,51300405195,"-3,317.76",LGSS LAW LTD,TRADE SUPPLIER,School Organisation and Planning,PPOS - Admissions Service,Internal Recharges
Cambridgeshire County Council,05-Oct-18,51300416332,"-2,977.44",DECOY FARM,CARE ESTABLISHMENT,LD - East Locality,LD - East Cambs - Special Needs,Residential Care
Cambridgeshire County Council,05-Oct-18,51300416408,"-2,977.44",DECOY FARM,CARE ESTABLISHMENT,LD - East Locality,LD - East Cambs - Special Needs,Residential Care
Cambridgeshire County Council,05-Oct-18,51300416333,"-2,977.44",DECOY FARM,CARE ESTABLISHMENT,LD - East Locality,LD - East Cambs - Special Needs,Residential Care
Cambridgeshire County Council,05-Oct-18,51300416459,"-2,977.44",DECOY FARM,CARE ESTABLISHMENT,LD - East Locality,LD - East Cambs - Special Needs,Residential Care
Cambridgeshire County Council,05-Oct-18,51300416450,"-2,977.44",DECOY FARM,CARE ESTABLISHMENT,LD - East Locality,LD - East Cambs - Special Needs,Residential Care
Cambridgeshire County Council,05-Oct-18,51300416400,"-2,977.44",DECOY FARM,CARE ESTABLISHMENT,LD - East Locality,LD - East Cambs - Special Needs,Residential Care
Cambridgeshire County Council,05-Oct-18,51300416421,"-2,977.44",DECOY FARM,CARE ESTABLISHMENT,LD - East Locality,LD - East Cambs - Special Needs,Residential Care
Cambridgeshire County Council,05-Oct-18,51300416476,"-2,977.44",DECOY FARM,CARE ESTABLISHMENT,LD - East Locality,LD - East Cambs - Special Needs,Residential Care
Cambridgeshire County Council,05-Oct-18,51300416429,"-2,977.44",DECOY FARM,CARE ESTABLISHMENT,LD - East Locality,LD - East Cambs - Special Needs,Residential Care
Cambridgeshire County Council,05-Oct-18,51300416347,"-2,977.44",DECOY FARM,CARE ESTABLISHMENT,LD - East Locality,LD - East Cambs - Special Needs,Residential Care
Cambridgeshire County Council,05-Oct-18,51300416358,"-2,977.44",DECOY FARM,CARE ESTABLISHMENT,LD - East Locality,LD - East Cambs - Special Needs,Residential Care
Cambridgeshire County Council,05-Oct-18,51300416373,"-2,977.44",DECOY FARM,CARE ESTABLISHMENT,LD - East Locality,LD - East Cambs - Special Needs,Residential Care
Cambridgeshire County Council,05-Oct-18,51300416375,"-2,977.44",DECOY FARM,CARE ESTABLISHMENT,LD - East Locality,LD - East Cambs - Special Needs,Residential Care
Cambridgeshire County Council,05-Oct-18,51300416387,"-2,977.44",DECOY FARM,CARE ESTABLISHMENT,LD - East Locality,LD - East Cambs - Special Needs,Residential Care
Cambridgeshire County Council,05-Oct-18,51300416404,"-2,977.44",DECOY FARM,CARE ESTABLISHMENT,LD - East Locality,LD - East Cambs - Special Needs,Residential Care
Cambridgeshire County Council,05-Oct-18,51300416444,"-2,977.44",DECOY FARM,CARE ESTABLISHMENT,LD - East Locality,LD - East Cambs - Special Needs,Residential Care
Cambridgeshire County Council,05-Oct-18,51300416338,"-2,977.44",DECOY FARM,CARE ESTABLISHMENT,LD - East Locality,LD - East Cambs - Special Needs,Residential Care
Cambridgeshire County Council,05-Oct-18,51300430575,"-2,977.44",DECOY FARM,CARE ESTABLISHMENT,LD - East Locality,LD - East Cambs - Special Needs,Residential Care
Cambridgeshire County Council,05-Oct-18,51300430554,"-2,977.44",DECOY FARM,CARE ESTABLISHMENT,LD - East Locality,LD - East Cambs - Special Needs,Residential Care
Cambridgeshire County Council,05-Oct-18,51300430517,"-2,977.44",DECOY FARM,CARE ESTABLISHMENT,LD - East Locality,LD - East Cambs - Special Needs,Residential Care
Cambridgeshire County Council,05-Oct-18,51300430443,"-2,977.44",DECOY FARM,CARE ESTABLISHMENT,LD - East Locality,LD - East Cambs - Special Needs,Residential Care
Cambridgeshire County Council,05-Oct-18,51300430507,"-2,977.44",DECOY FARM,CARE ESTABLISHMENT,LD - East Locality,LD - East Cambs - Special Needs,Residential Care
Cambridgeshire County Council,05-Oct-18,51300430498,"-2,977.44",DECOY FARM,CARE ESTABLISHMENT,LD - East Locality,LD - East Cambs - Special Needs,Residential Care
Cambridgeshire County Council,05-Oct-18,51300430587,"-2,977.44",DECOY FARM,CARE ESTABLISHMENT,LD - East Locality,LD - East Cambs - Special Needs,Residential Care
Cambridgeshire County Council,05-Oct-18,51300430445,"-2,977.44",DECOY FARM,CARE ESTABLISHMENT,LD - East Locality,LD - East Cambs - Special Needs,Residential Care
Cambridgeshire County Council,05-Oct-18,51300430574,"-2,977.44",DECOY FARM,CARE ESTABLISHMENT,LD - East Locality,LD - East Cambs - Special Needs,Residential Care
Cambridgeshire County Council,05-Oct-18,51300430509,"-2,977.44",DECOY FARM,CARE ESTABLISHMENT,LD - East Locality,LD - East Cambs - Special Needs,Residential Care
Cambridgeshire County Council,05-Oct-18,51300430481,"-2,977.44",DECOY FARM,CARE ESTABLISHMENT,LD - East Locality,LD - East Cambs - Special Needs,Residential Care
Cambridgeshire County Council,05-Oct-18,51300430473,"-2,977.44",DECOY FARM,CARE ESTABLISHMENT,LD - East Locality,LD - East Cambs - Special Needs,Residential Care
Cambridgeshire County Council,05-Oct-18,51300430541,"-2,977.44",DECOY FARM,CARE ESTABLISHMENT,LD - East Locality,LD - East Cambs - Special Needs,Residential Care
Cambridgeshire County Council,05-Oct-18,51300416391,"-2,977.44",DECOY FARM,CARE ESTABLISHMENT,LD - East Locality,LD - East Cambs - Special Needs,Residential Care
Cambridgeshire County Council,05-Oct-18,51300416392,"-2,977.44",DECOY FARM,CARE ESTABLISHMENT,LD - East Locality,LD - East Cambs - Special Needs,Residential Care
Cambridgeshire County Council,05-Oct-18,51300416399,"-2,977.44",DECOY FARM,CARE ESTABLISHMENT,LD - East Locality,LD - East Cambs - Special Needs,Residential Care
Cambridgeshire County Council,05-Oct-18,51300430453,"-2,977.44",DECOY FARM,CARE ESTABLISHMENT,LD - East Locality,LD - East Cambs - Special Needs,Residential Care
Cambridgeshire County Council,05-Oct-18,51300430521,"-2,977.44",DECOY FARM,CARE ESTABLISHMENT,LD - East Locality,LD - East Cambs - Special Needs,Residential Care
Cambridgeshire County Council,05-Oct-18,51300416474,"-2,977.44",DECOY FARM,CARE ESTABLISHMENT,LD - East Locality,LD - East Cambs - Special Needs,Residential Care
Cambridgeshire County Council,05-Oct-18,51300416345,"-2,977.44",DECOY FARM,CARE ESTABLISHMENT,LD - East Locality,LD - East Cambs - Special Needs,Residential Care
Cambridgeshire County Council,05-Oct-18,51300416401,"-2,977.44",DECOY FARM,CARE ESTABLISHMENT,LD - East Locality,LD - East Cambs - Special Needs,Residential Care
Cambridgeshire County Council,05-Oct-18,51300416395,"-2,977.44",DECOY FARM,CARE ESTABLISHMENT,LD - East Locality,LD - East Cambs - Special Needs,Residential Care
Cambridgeshire County Council,05-Oct-18,51300416453,"-2,977.44",DECOY FARM,CARE ESTABLISHMENT,LD - East Locality,LD - East Cambs - Special Needs,Residential Care
Cambridgeshire County Council,05-Oct-18,51300416418,"-2,977.44",DECOY FARM,CARE ESTABLISHMENT,LD - East Locality,LD - East Cambs - Special Needs,Residential Care
Cambridgeshire County Council,05-Oct-18,51300416425,"-2,977.44",DECOY FARM,CARE ESTABLISHMENT,LD - East Locality,LD - East Cambs - Special Needs,Residential Care
Cambridgeshire County Council,05-Oct-18,51300430527,"-2,977.44",DECOY FARM,CARE ESTABLISHMENT,LD - East Locality,LD - East Cambs - Special Needs,Residential Care
Cambridgeshire County Council,05-Oct-18,51300416339,"-2,977.44",DECOY FARM,CARE ESTABLISHMENT,LD - East Locality,LD - East Cambs - Special Needs,Residential Care
Cambridgeshire County Council,05-Oct-18,51300430454,"-2,977.44",DECOY FARM,CARE ESTABLISHMENT,LD - East Locality,LD - East Cambs - Special Needs,Residential Care
Cambridgeshire County Council,05-Oct-18,51300430530,"-2,977.44",DECOY FARM,CARE ESTABLISHMENT,LD - East Locality,LD - East Cambs - Special Needs,Residential Care
Cambridgeshire County Council,05-Oct-18,51300430519,"-2,977.44",DECOY FARM,CARE ESTABLISHMENT,LD - East Locality,LD - East Cambs - Special Needs,Residential Care
Cambridgeshire County Council,05-Oct-18,51300430506,"-2,977.44",DECOY FARM,CARE ESTABLISHMENT,LD - East Locality,LD - East Cambs - Special Needs,Residential Care
Cambridgeshire County Council,05-Oct-18,51300430441,"-2,977.44",DECOY FARM,CARE ESTABLISHMENT,LD - East Locality,LD - East Cambs - Special Needs,Residential Care
Cambridgeshire County Council,05-Oct-18,51300430501,"-2,977.44",DECOY FARM,CARE ESTABLISHMENT,LD - East Locality,LD - East Cambs - Special Needs,Residential Care
Cambridgeshire County Council,05-Oct-18,51300430461,"-2,977.44",DECOY FARM,CARE ESTABLISHMENT,LD - East Locality,LD - East Cambs - Special Needs,Residential Care
Cambridgeshire County Council,05-Oct-18,51300430463,"-2,977.44",DECOY FARM,CARE ESTABLISHMENT,LD - East Locality,LD - East Cambs - Special Needs,Residential Care
Cambridgeshire County Council,05-Oct-18,51300430471,"-2,977.44",DECOY FARM,CARE ESTABLISHMENT,LD - East Locality,LD - East Cambs - Special Needs,Residential Care
Cambridgeshire County Council,05-Oct-18,51300430510,"-2,977.44",DECOY FARM,CARE ESTABLISHMENT,LD - East Locality,LD - East Cambs - Special Needs,Residential Care
Cambridgeshire County Council,05-Oct-18,51300430524,"-2,977.44",DECOY FARM,CARE ESTABLISHMENT,LD - East Locality,LD - East Cambs - Special Needs,Residential Care
Cambridgeshire County Council,05-Oct-18,51300430589,"-2,977.44",DECOY FARM,CARE ESTABLISHMENT,LD - East Locality,LD - East Cambs - Special Needs,Residential Care
Cambridgeshire County Council,05-Oct-18,51300430489,"-2,977.44",DECOY FARM,CARE ESTABLISHMENT,LD - East Locality,LD - East Cambs - Special Needs,Residential Care
Cambridgeshire County Council,05-Oct-18,51300430483,"-2,977.44",DECOY FARM,CARE ESTABLISHMENT,LD - East Locality,LD - East Cambs - Special Needs,Residential Care
Cambridgeshire County Council,05-Oct-18,51300416385,"-2,977.44",DECOY FARM,CARE ESTABLISHMENT,LD - East Locality,LD - East Cambs - Special Needs,Residential Care
Cambridgeshire County Council,05-Oct-18,51300416447,"-2,977.44",DECOY FARM,CARE ESTABLISHMENT,LD - East Locality,LD - East Cambs - Special Needs,Residential Care
Cambridgeshire County Council,05-Oct-18,51300416468,"-2,977.44",DECOY FARM,CARE ESTABLISHMENT,LD - East Locality,LD - East Cambs - Special Needs,Residential Care
Cambridgeshire County Council,05-Oct-18,51300416398,"-2,977.44",DECOY FARM,CARE ESTABLISHMENT,LD - East Locality,LD - East Cambs - Special Needs,Residential Care
Cambridgeshire County Council,05-Oct-18,51300416424,"-2,977.44",DECOY FARM,CARE ESTABLISHMENT,LD - East Locality,LD - East Cambs - Special Needs,Residential Care
Cambridgeshire County Council,05-Oct-18,51300416335,"-2,977.44",DECOY FARM,CARE ESTABLISHMENT,LD - East Locality,LD - East Cambs - Special Needs,Residential Care
Cambridgeshire County Council,05-Oct-18,51300416396,"-2,977.44",DECOY FARM,CARE ESTABLISHMENT,LD - East Locality,LD - East Cambs - Special Needs,Residential Care
Cambridgeshire County Council,05-Oct-18,51300416452,"-2,977.44",DECOY FARM,CARE ESTABLISHMENT,LD - East Locality,LD - East Cambs - Special Needs,Residential Care
Cambridgeshire County Council,05-Oct-18,51300416372,"-2,977.44",DECOY FARM,CARE ESTABLISHMENT,LD - East Locality,LD - East Cambs - Special Needs,Residential Care
Cambridgeshire County Council,05-Oct-18,51300416348,"-2,977.44",DECOY FARM,CARE ESTABLISHMENT,LD - East Locality,LD - East Cambs - Special Needs,Residential Care
Cambridgeshire County Council,05-Oct-18,51300416361,"-2,977.44",DECOY FARM,CARE ESTABLISHMENT,LD - East Locality,LD - East Cambs - Special Needs,Residential Care
Cambridgeshire County Council,05-Oct-18,51300430495,"-2,977.44",DECOY FARM,CARE ESTABLISHMENT,LD - East Locality,LD - East Cambs - Special Needs,Residential Care
Cambridgeshire County Council,05-Oct-18,51300430469,"-2,977.44",DECOY FARM,CARE ESTABLISHMENT,LD - East Locality,LD - East Cambs - Special Needs,Residential Care
Cambridgeshire County Council,05-Oct-18,51300430559,"-2,977.44",DECOY FARM,CARE ESTABLISHMENT,LD - East Locality,LD - East Cambs - Special Needs,Residential Care
Cambridgeshire County Council,05-Oct-18,51300430478,"-2,977.44",DECOY FARM,CARE ESTABLISHMENT,LD - East Locality,LD - East Cambs - Special Needs,Residential Care
Cambridgeshire County Council,05-Oct-18,51300430578,"-2,977.44",DECOY FARM,CARE ESTABLISHMENT,LD - East Locality,LD - East Cambs - Special Needs,Residential Care
Cambridgeshire County Council,05-Oct-18,51300430537,"-2,977.44",DECOY FARM,CARE ESTABLISHMENT,LD - East Locality,LD - East Cambs - Special Needs,Residential Care
Cambridgeshire County Council,05-Oct-18,51300430458,"-2,977.44",DECOY FARM,CARE ESTABLISHMENT,LD - East Locality,LD - East Cambs - Special Needs,Residential Care
Cambridgeshire County Council,05-Oct-18,51300430487,"-2,977.44",DECOY FARM,CARE ESTABLISHMENT,LD - East Locality,LD - East Cambs - Special Needs,Residential Care
Cambridgeshire County Council,05-Oct-18,51300430542,"-2,977.44",DECOY FARM,CARE ESTABLISHMENT,LD - East Locality,LD - East Cambs - Special Needs,Residential Care
Cambridgeshire County Council,05-Oct-18,51300416350,"-2,977.44",DECOY FARM,CARE ESTABLISHMENT,LD - East Locality,LD - East Cambs - Special Needs,Residential Care
Cambridgeshire County Council,05-Oct-18,51300416449,"-2,977.44",DECOY FARM,CARE ESTABLISHMENT,LD - East Locality,LD - East Cambs - Special Needs,Residential Care
Cambridgeshire County Council,05-Oct-18,51300416472,"-2,977.44",DECOY FARM,CARE ESTABLISHMENT,LD - East Locality,LD - East Cambs - Special Needs,Residential Care
Cambridgeshire County Council,05-Oct-18,51300416370,"-2,977.44",DECOY FARM,CARE ESTABLISHMENT,LD - East Locality,LD - East Cambs - Special Needs,Residential Care
Cambridgeshire County Council,05-Oct-18,51300416407,"-2,977.44",DECOY FARM,CARE ESTABLISHMENT,LD - East Locality,LD - East Cambs - Special Needs,Residential Care
Cambridgeshire County Council,05-Oct-18,51300416371,"-2,977.44",DECOY FARM,CARE ESTABLISHMENT,LD - East Locality,LD - East Cambs - Special Needs,Residential Care
Cambridgeshire County Council,05-Oct-18,51300416463,"-2,977.44",DECOY FARM,CARE ESTABLISHMENT,LD - East Locality,LD - East Cambs - Special Needs,Residential Care
Cambridgeshire County Council,05-Oct-18,51300416381,"-2,977.44",DECOY FARM,CARE ESTABLISHMENT,LD - East Locality,LD - East Cambs - Special Needs,Residential Care
Cambridgeshire County Council,05-Oct-18,51300416346,"-2,977.44",DECOY FARM,CARE ESTABLISHMENT,LD - East Locality,LD - East Cambs - Special Needs,Residential Care
Cambridgeshire County Council,05-Oct-18,51300416360,"-2,977.44",DECOY FARM,CARE ESTABLISHMENT,LD - East Locality,LD - East Cambs - Special Needs,Residential Care
Cambridgeshire County Council,05-Oct-18,51300416376,"-2,977.44",DECOY FARM,CARE ESTABLISHMENT,LD - East Locality,LD - East Cambs - Special Needs,Residential Care
Cambridgeshire County Council,05-Oct-18,51300416466,"-2,977.44",DECOY FARM,CARE ESTABLISHMENT,LD - East Locality,LD - East Cambs - Special Needs,Residential Care
Cambridgeshire County Council,05-Oct-18,51300416445,"-2,977.44",DECOY FARM,CARE ESTABLISHMENT,LD - East Locality,LD - East Cambs - Special Needs,Residential Care
Cambridgeshire County Council,05-Oct-18,51300416456,"-2,977.44",DECOY FARM,CARE ESTABLISHMENT,LD - East Locality,LD - East Cambs - Special Needs,Residential Care
Cambridgeshire County Council,05-Oct-18,51300430528,"-2,977.44",DECOY FARM,CARE ESTABLISHMENT,LD - East Locality,LD - East Cambs - Special Needs,Residential Care
Cambridgeshire County Council,05-Oct-18,51300430545,"-2,977.44",DECOY FARM,CARE ESTABLISHMENT,LD - East Locality,LD - East Cambs - Special Needs,Residential Care
Cambridgeshire County Council,05-Oct-18,51300430484,"-2,977.44",DECOY FARM,CARE ESTABLISHMENT,LD - East Locality,LD - East Cambs - Special Needs,Residential Care
Cambridgeshire County Council,05-Oct-18,51300430531,"-2,977.44",DECOY FARM,CARE ESTABLISHMENT,LD - East Locality,LD - East Cambs - Special Needs,Residential Care
Cambridgeshire County Council,05-Oct-18,51300430586,"-2,977.44",DECOY FARM,CARE ESTABLISHMENT,LD - East Locality,LD - East Cambs - Special Needs,Residential Care
Cambridgeshire County Council,05-Oct-18,51300430579,"-2,977.44",DECOY FARM,CARE ESTABLISHMENT,LD - East Locality,LD - East Cambs - Special Needs,Residential Care
Cambridgeshire County Council,05-Oct-18,51300430562,"-2,977.44",DECOY FARM,CARE ESTABLISHMENT,LD - East Locality,LD - East Cambs - Special Needs,Residential Care
Cambridgeshire County Council,05-Oct-18,51300430465,"-2,977.44",DECOY FARM,CARE ESTABLISHMENT,LD - East Locality,LD - East Cambs - Special Needs,Residential Care
Cambridgeshire County Council,05-Oct-18,51300430449,"-2,977.44",DECOY FARM,CARE ESTABLISHMENT,LD - East Locality,LD - East Cambs - Special Needs,Residential Care
Cambridgeshire County Council,05-Oct-18,51300430566,"-2,977.44",DECOY FARM,CARE ESTABLISHMENT,LD - East Locality,LD - East Cambs - Special Needs,Residential Care
Cambridgeshire County Council,05-Oct-18,51300430564,"-2,977.44",DECOY FARM,CARE ESTABLISHMENT,LD - East Locality,LD - East Cambs - Special Needs,Residential Care
Cambridgeshire County Council,05-Oct-18,51300430522,"-2,977.44",DECOY FARM,CARE ESTABLISHMENT,LD - East Locality,LD - East Cambs - Special Needs,Residential Care
Cambridgeshire County Council,05-Oct-18,51300430552,"-2,977.44",DECOY FARM,CARE ESTABLISHMENT,LD - East Locality,LD - East Cambs - Special Needs,Residential Care
Cambridgeshire County Council,05-Oct-18,51300430455,"-2,977.44",DECOY FARM,CARE ESTABLISHMENT,LD - East Locality,LD - East Cambs - Special Needs,Residential Care
Cambridgeshire County Council,05-Oct-18,51300430500,"-2,977.44",DECOY FARM,CARE ESTABLISHMENT,LD - East Locality,LD - East Cambs - Special Needs,Residential Care
Cambridgeshire County Council,05-Oct-18,51300416422,"-2,977.44",DECOY FARM,CARE ESTABLISHMENT,LD - East Locality,LD - East Cambs - Special Needs,Residential Care
Cambridgeshire County Council,05-Oct-18,51300416403,"-2,977.44",DECOY FARM,CARE ESTABLISHMENT,LD - East Locality,LD - East Cambs - Special Needs,Residential Care
Cambridgeshire County Council,05-Oct-18,51300430547,"-2,977.44",DECOY FARM,CARE ESTABLISHMENT,LD - East Locality,LD - East Cambs - Special Needs,Residential Care
Cambridgeshire County Council,05-Oct-18,51300430529,"-2,977.44",DECOY FARM,CARE ESTABLISHMENT,LD - East Locality,LD - East Cambs - Special Needs,Residential Care
Cambridgeshire County Council,05-Oct-18,51300416483,"-2,977.44",DECOY FARM,CARE ESTABLISHMENT,LD - East Locality,LD - East Cambs - Special Needs,Residential Care
Cambridgeshire County Council,05-Oct-18,51300430467,"-2,977.44",DECOY FARM,CARE ESTABLISHMENT,LD - East Locality,LD - East Cambs - Special Needs,Residential Care
Cambridgeshire County Council,05-Oct-18,51300416393,"-2,977.44",DECOY FARM,CARE ESTABLISHMENT,LD - East Locality,LD - East Cambs - Special Needs,Residential Care
Cambridgeshire County Council,05-Oct-18,51300430568,"-2,977.44",DECOY FARM,CARE ESTABLISHMENT,LD - East Locality,LD - East Cambs - Special Needs,Residential Care
Cambridgeshire County Council,05-Oct-18,51300416485,"-2,977.44",DECOY FARM,CARE ESTABLISHMENT,LD - East Locality,LD - East Cambs - Special Needs,Residential Care
Cambridgeshire County Council,05-Oct-18,51300430474,"-2,977.44",DECOY FARM,CARE ESTABLISHMENT,LD - East Locality,LD - East Cambs - Special Needs,Residential Care
Cambridgeshire County Council,05-Oct-18,51300430505,"-2,977.44",DECOY FARM,CARE ESTABLISHMENT,LD - East Locality,LD - East Cambs - Special Needs,Residential Care
Cambridgeshire County Council,05-Oct-18,51300430533,"-2,977.44",DECOY FARM,CARE ESTABLISHMENT,LD - East Locality,LD - East Cambs - Special Needs,Residential Care
Cambridgeshire County Council,05-Oct-18,51300416439,"-2,977.44",DECOY FARM,CARE ESTABLISHMENT,LD - East Locality,LD - East Cambs - Special Needs,Residential Care
Cambridgeshire County Council,05-Oct-18,51300416420,"-2,977.44",DECOY FARM,CARE ESTABLISHMENT,LD - East Locality,LD - East Cambs - Special Needs,Residential Care
Cambridgeshire County Council,05-Oct-18,51300416451,"-2,977.44",DECOY FARM,CARE ESTABLISHMENT,LD - East Locality,LD - East Cambs - Special Needs,Residential Care
Cambridgeshire County Council,05-Oct-18,51300430543,"-2,977.44",DECOY FARM,CARE ESTABLISHMENT,LD - East Locality,LD - East Cambs - Special Needs,Residential Care
Cambridgeshire County Council,05-Oct-18,51300416382,"-2,977.44",DECOY FARM,CARE ESTABLISHMENT,LD - East Locality,LD - East Cambs - Special Needs,Residential Care
Cambridgeshire County Council,05-Oct-18,51300430459,"-2,977.44",DECOY FARM,CARE ESTABLISHMENT,LD - East Locality,LD - East Cambs - Special Needs,Residential Care
Cambridgeshire County Council,05-Oct-18,51300430560,"-2,977.44",DECOY FARM,CARE ESTABLISHMENT,LD - East Locality,LD - East Cambs - Special Needs,Residential Care
Cambridgeshire County Council,05-Oct-18,51300430457,"-2,977.44",DECOY FARM,CARE ESTABLISHMENT,LD - East Locality,LD - East Cambs - Special Needs,Residential Care
Cambridgeshire County Council,05-Oct-18,51300416461,"-2,977.44",DECOY FARM,CARE ESTABLISHMENT,LD - East Locality,LD - East Cambs - Special Needs,Residential Care
Cambridgeshire County Council,05-Oct-18,51300416380,"-2,977.44",DECOY FARM,CARE ESTABLISHMENT,LD - East Locality,LD - East Cambs - Special Needs,Residential Care
Cambridgeshire County Council,05-Oct-18,51300416389,"-2,977.44",DECOY FARM,CARE ESTABLISHMENT,LD - East Locality,LD - East Cambs - Special Needs,Residential Care
Cambridgeshire County Council,05-Oct-18,51300430494,"-2,977.44",DECOY FARM,CARE ESTABLISHMENT,LD - East Locality,LD - East Cambs - Special Needs,Residential Care
Cambridgeshire County Council,05-Oct-18,51300430555,"-2,977.44",DECOY FARM,CARE ESTABLISHMENT,LD - East Locality,LD - East Cambs - Special Needs,Residential Care
Cambridgeshire County Council,05-Oct-18,51300430477,"-2,977.44",DECOY FARM,CARE ESTABLISHMENT,LD - East Locality,LD - East Cambs - Special Needs,Residential Care
Cambridgeshire County Council,05-Oct-18,51300430573,"-2,977.44",DECOY FARM,CARE ESTABLISHMENT,LD - East Locality,LD - East Cambs - Special Needs,Residential Care
Cambridgeshire County Council,05-Oct-18,51300416355,"-2,977.44",DECOY FARM,CARE ESTABLISHMENT,LD - East Locality,LD - East Cambs - Special Needs,Residential Care
Cambridgeshire County Council,05-Oct-18,51300416435,"-2,977.44",DECOY FARM,CARE ESTABLISHMENT,LD - East Locality,LD - East Cambs - Special Needs,Residential Care
Cambridgeshire County Council,05-Oct-18,51300416441,"-2,977.44",DECOY FARM,CARE ESTABLISHMENT,LD - East Locality,LD - East Cambs - Special Needs,Residential Care
Cambridgeshire County Council,05-Oct-18,51300430549,"-2,977.44",DECOY FARM,CARE ESTABLISHMENT,LD - East Locality,LD - East Cambs - Special Needs,Residential Care
Cambridgeshire County Council,05-Oct-18,51300416460,"-2,977.44",DECOY FARM,CARE ESTABLISHMENT,LD - East Locality,LD - East Cambs - Special Needs,Residential Care
Cambridgeshire County Council,05-Oct-18,51300430492,"-2,977.44",DECOY FARM,CARE ESTABLISHMENT,LD - East Locality,LD - East Cambs - Special Needs,Residential Care
Cambridgeshire County Council,05-Oct-18,51300416369,"-2,977.44",DECOY FARM,CARE ESTABLISHMENT,LD - East Locality,LD - East Cambs - Special Needs,Residential Care
Cambridgeshire County Council,05-Oct-18,51300416412,"-2,977.44",DECOY FARM,CARE ESTABLISHMENT,LD - East Locality,LD - East Cambs - Special Needs,Residential Care
Cambridgeshire County Council,05-Oct-18,51300430497,"-2,977.44",DECOY FARM,CARE ESTABLISHMENT,LD - East Locality,LD - East Cambs - Special Needs,Residential Care
Cambridgeshire County Council,05-Oct-18,51300416341,"-2,977.44",DECOY FARM,CARE ESTABLISHMENT,LD - East Locality,LD - East Cambs - Special Needs,Residential Care
Cambridgeshire County Council,05-Oct-18,51300416458,"-2,977.44",DECOY FARM,CARE ESTABLISHMENT,LD - East Locality,LD - East Cambs - Special Needs,Residential Care
Cambridgeshire County Council,05-Oct-18,51300430513,"-2,977.44",DECOY FARM,CARE ESTABLISHMENT,LD - East Locality,LD - East Cambs - Special Needs,Residential Care
Cambridgeshire County Council,25-Oct-18,51300466600,"-2,977.44",DECOY FARM,CARE ESTABLISHMENT,LD - East Locality,LD - East Cambs - Special Needs,Residential Care
Cambridgeshire County Council,25-Oct-18,51300439207,"-2,977.44",DECOY FARM,CARE ESTABLISHMENT,LD - East Locality,LD - East Cambs - Special Needs,Residential Care
Cambridgeshire County Council,25-Oct-18,51300439316,"-2,977.44",DECOY FARM,CARE ESTABLISHMENT,LD - East Locality,LD - East Cambs - Special Needs,Residential Care
Cambridgeshire County Council,25-Oct-18,51300439254,"-2,977.44",DECOY FARM,CARE ESTABLISHMENT,LD - East Locality,LD - East Cambs - Special Needs,Residential Care
Cambridgeshire County Council,25-Oct-18,51300439286,"-2,977.44",DECOY FARM,CARE ESTABLISHMENT,LD - East Locality,LD - East Cambs - Special Needs,Residential Care
Cambridgeshire County Council,25-Oct-18,51300439239,"-2,977.44",DECOY FARM,CARE ESTABLISHMENT,LD - East Locality,LD - East Cambs - Special Needs,Residential Care
Cambridgeshire County Council,25-Oct-18,51300490513,"-2,977.44",DECOY FARM,CARE ESTABLISHMENT,LD - East Locality,LD - East Cambs - Special Needs,Residential Care
Cambridgeshire County Council,25-Oct-18,51300490462,"-2,977.44",DECOY FARM,CARE ESTABLISHMENT,LD - East Locality,LD - East Cambs - Special Needs,Residential Care
Cambridgeshire County Council,25-Oct-18,51300490498,"-2,977.44",DECOY FARM,CARE ESTABLISHMENT,LD - East Locality,LD - East Cambs - Special Needs,Residential Care
Cambridgeshire County Council,25-Oct-18,51300490583,"-2,977.44",DECOY FARM,CARE ESTABLISHMENT,LD - East Locality,LD - East Cambs - Special Needs,Residential Care
Cambridgeshire County Council,25-Oct-18,51300439175,"-2,977.44",DECOY FARM,CARE ESTABLISHMENT,LD - East Locality,LD - East Cambs - Special Needs,Residential Care
Cambridgeshire County Council,25-Oct-18,51300439311,"-2,977.44",DECOY FARM,CARE ESTABLISHMENT,LD - East Locality,LD - East Cambs - Special Needs,Residential Care
Cambridgeshire County Council,25-Oct-18,51300466583,"-2,977.44",DECOY FARM,CARE ESTABLISHMENT,LD - East Locality,LD - East Cambs - Special Needs,Residential Care
Cambridgeshire County Council,25-Oct-18,51300466640,"-2,977.44",DECOY FARM,CARE ESTABLISHMENT,LD - East Locality,LD - East Cambs - Special Needs,Residential Care
Cambridgeshire County Council,25-Oct-18,51300439260,"-2,977.44",DECOY FARM,CARE ESTABLISHMENT,LD - East Locality,LD - East Cambs - Special Needs,Residential Care
Cambridgeshire County Council,25-Oct-18,51300439296,"-2,977.44",DECOY FARM,CARE ESTABLISHMENT,LD - East Locality,LD - East Cambs - Special Needs,Residential Care
Cambridgeshire County Council,25-Oct-18,51300439217,"-2,977.44",DECOY FARM,CARE ESTABLISHMENT,LD - East Locality,LD - East Cambs - Special Needs,Residential Care
Cambridgeshire County Council,25-Oct-18,51300439315,"-2,977.44",DECOY FARM,CARE ESTABLISHMENT,LD - East Locality,LD - East Cambs - Special Needs,Residential Care
Cambridgeshire County Council,25-Oct-18,51300490458,"-2,977.44",DECOY FARM,CARE ESTABLISHMENT,LD - East Locality,LD - East Cambs - Special Needs,Residential Care
Cambridgeshire County Council,25-Oct-18,51300490476,"-2,977.44",DECOY FARM,CARE ESTABLISHMENT,LD - East Locality,LD - East Cambs - Special Needs,Residential Care
Cambridgeshire County Council,25-Oct-18,51300466666,"-2,977.44",DECOY FARM,CARE ESTABLISHMENT,LD - East Locality,LD - East Cambs - Special Needs,Residential Care
Cambridgeshire County Council,25-Oct-18,51300490448,"-2,977.44",DECOY FARM,CARE ESTABLISHMENT,LD - East Locality,LD - East Cambs - Special Needs,Residential Care
Cambridgeshire County Council,25-Oct-18,51300439301,"-2,977.44",DECOY FARM,CARE ESTABLISHMENT,LD - East Locality,LD - East Cambs - Special Needs,Residential Care
Cambridgeshire County Council,25-Oct-18,51300439284,"-2,977.44",DECOY FARM,CARE ESTABLISHMENT,LD - East Locality,LD - East Cambs - Special Needs,Residential Care
Cambridgeshire County Council,25-Oct-18,51300439193,"-2,977.44",DECOY FARM,CARE ESTABLISHMENT,LD - East Locality,LD - East Cambs - Special Needs,Residential Care
Cambridgeshire County Council,25-Oct-18,51300490540,"-2,977.44",DECOY FARM,CARE ESTABLISHMENT,LD - East Locality,LD - East Cambs - Special Needs,Residential Care
Cambridgeshire County Council,25-Oct-18,51300490600,"-2,977.44",DECOY FARM,CARE ESTABLISHMENT,LD - East Locality,LD - East Cambs - Special Needs,Residential Care
Cambridgeshire County Council,25-Oct-18,51300466599,"-2,977.44",DECOY FARM,CARE ESTABLISHMENT,LD - East Locality,LD - East Cambs - Special Needs,Residential Care
Cambridgeshire County Council,25-Oct-18,51300466691,"-2,977.44",DECOY FARM,CARE ESTABLISHMENT,LD - East Locality,LD - East Cambs - Special Needs,Residential Care
Cambridgeshire County Council,25-Oct-18,51300466678,"-2,977.44",DECOY FARM,CARE ESTABLISHMENT,LD - East Locality,LD - East Cambs - Special Needs,Residential Care
Cambridgeshire County Council,25-Oct-18,51300466653,"-2,977.44",DECOY FARM,CARE ESTABLISHMENT,LD - East Locality,LD - East Cambs - Special Needs,Residential Care
Cambridgeshire County Council,25-Oct-18,51300490580,"-2,977.44",DECOY FARM,CARE ESTABLISHMENT,LD - East Locality,LD - East Cambs - Special Needs,Residential Care
Cambridgeshire County Council,25-Oct-18,51300466690,"-2,977.44",DECOY FARM,CARE ESTABLISHMENT,LD - East Locality,LD - East Cambs - Special Needs,Residential Care
Cambridgeshire County Council,25-Oct-18,51300439253,"-2,977.44",DECOY FARM,CARE ESTABLISHMENT,LD - East Locality,LD - East Cambs - Special Needs,Residential Care
Cambridgeshire County Council,25-Oct-18,51300466660,"-2,977.44",DECOY FARM,CARE ESTABLISHMENT,LD - East Locality,LD - East Cambs - Special Needs,Residential Care
Cambridgeshire County Council,25-Oct-18,51300466671,"-2,977.44",DECOY FARM,CARE ESTABLISHMENT,LD - East Locality,LD - East Cambs - Special Needs,Residential Care
Cambridgeshire County Council,25-Oct-18,51300439283,"-2,977.44",DECOY FARM,CARE ESTABLISHMENT,LD - East Locality,LD - East Cambs - Special Needs,Residential Care
Cambridgeshire County Council,25-Oct-18,51300466658,"-2,977.44",DECOY FARM,CARE ESTABLISHMENT,LD - East Locality,LD - East Cambs - Special Needs,Residential Care
Cambridgeshire County Council,25-Oct-18,51300490543,"-2,977.44",DECOY FARM,CARE ESTABLISHMENT,LD - East Locality,LD - East Cambs - Special Needs,Residential Care
Cambridgeshire County Council,25-Oct-18,51300466568,"-2,977.44",DECOY FARM,CARE ESTABLISHMENT,LD - East Locality,LD - East Cambs - Special Needs,Residential Care
Cambridgeshire County Council,25-Oct-18,51300466576,"-2,977.44",DECOY FARM,CARE ESTABLISHMENT,LD - East Locality,LD - East Cambs - Special Needs,Residential Care
Cambridgeshire County Council,25-Oct-18,51300439240,"-2,977.44",DECOY FARM,CARE ESTABLISHMENT,LD - East Locality,LD - East Cambs - Special Needs,Residential Care
Cambridgeshire County Council,25-Oct-18,51300439155,"-2,977.44",DECOY FARM,CARE ESTABLISHMENT,LD - East Locality,LD - East Cambs - Special Needs,Residential Care
Cambridgeshire County Council,25-Oct-18,51300439281,"-2,977.44",DECOY FARM,CARE ESTABLISHMENT,LD - East Locality,LD - East Cambs - Special Needs,Residential Care
Cambridgeshire County Council,25-Oct-18,51300490567,"-2,977.44",DECOY FARM,CARE ESTABLISHMENT,LD - East Locality,LD - East Cambs - Special Needs,Residential Care
Cambridgeshire County Council,25-Oct-18,51300490551,"-2,977.44",DECOY FARM,CARE ESTABLISHMENT,LD - East Locality,LD - East Cambs - Special Needs,Residential Care
Cambridgeshire County Council,25-Oct-18,51300466650,"-2,977.44",DECOY FARM,CARE ESTABLISHMENT,LD - East Locality,LD - East Cambs - Special Needs,Residential Care
Cambridgeshire County Council,25-Oct-18,51300466598,"-2,977.44",DECOY FARM,CARE ESTABLISHMENT,LD - East Locality,LD - East Cambs - Special Needs,Residential Care
Cambridgeshire County Council,25-Oct-18,51300490469,"-2,977.44",DECOY FARM,CARE ESTABLISHMENT,LD - East Locality,LD - East Cambs - Special Needs,Residential Care
Cambridgeshire County Council,25-Oct-18,51300490490,"-2,977.44",DECOY FARM,CARE ESTABLISHMENT,LD - East Locality,LD - East Cambs - Special Needs,Residential Care
Cambridgeshire County Council,25-Oct-18,51300466656,"-2,977.44",DECOY FARM,CARE ESTABLISHMENT,LD - East Locality,LD - East Cambs - Special Needs,Residential Care
Cambridgeshire County Council,25-Oct-18,51300439317,"-2,977.44",DECOY FARM,CARE ESTABLISHMENT,LD - East Locality,LD - East Cambs - Special Needs,Residential Care
Cambridgeshire County Council,25-Oct-18,51300490451,"-2,977.44",DECOY FARM,CARE ESTABLISHMENT,LD - East Locality,LD - East Cambs - Special Needs,Residential Care
Cambridgeshire County Council,25-Oct-18,51300466643,"-2,977.44",DECOY FARM,CARE ESTABLISHMENT,LD - East Locality,LD - East Cambs - Special Needs,Residential Care
Cambridgeshire County Council,25-Oct-18,51300466676,"-2,977.44",DECOY FARM,CARE ESTABLISHMENT,LD - East Locality,LD - East Cambs - Special Needs,Residential Care
Cambridgeshire County Council,25-Oct-18,51300490455,"-2,977.44",DECOY FARM,CARE ESTABLISHMENT,LD - East Locality,LD - East Cambs - Special Needs,Residential Care
Cambridgeshire County Council,25-Oct-18,51300466683,"-2,977.44",DECOY FARM,CARE ESTABLISHMENT,LD - East Locality,LD - East Cambs - Special Needs,Residential Care
Cambridgeshire County Council,25-Oct-18,51300439238,"-2,977.44",DECOY FARM,CARE ESTABLISHMENT,LD - East Locality,LD - East Cambs - Special Needs,Residential Care
Cambridgeshire County Council,25-Oct-18,51300466686,"-2,977.44",DECOY FARM,CARE ESTABLISHMENT,LD - East Locality,LD - East Cambs - Special Needs,Residential Care
Cambridgeshire County Council,25-Oct-18,51300439202,"-2,977.44",DECOY FARM,CARE ESTABLISHMENT,LD - East Locality,LD - East Cambs - Special Needs,Residential Care
Cambridgeshire County Council,25-Oct-18,51300490453,"-2,977.44",DECOY FARM,CARE ESTABLISHMENT,LD - East Locality,LD - East Cambs - Special Needs,Residential Care
Cambridgeshire County Council,25-Oct-18,51300466577,"-2,977.44",DECOY FARM,CARE ESTABLISHMENT,LD - East Locality,LD - East Cambs - Special Needs,Residential Care
Cambridgeshire County Council,25-Oct-18,51300490471,"-2,977.44",DECOY FARM,CARE ESTABLISHMENT,LD - East Locality,LD - East Cambs - Special Needs,Residential Care
Cambridgeshire County Council,25-Oct-18,51300466685,"-2,977.44",DECOY FARM,CARE ESTABLISHMENT,LD - East Locality,LD - East Cambs - Special Needs,Residential Care
Cambridgeshire County Council,25-Oct-18,51300466619,"-2,977.44",DECOY FARM,CARE ESTABLISHMENT,LD - East Locality,LD - East Cambs - Special Needs,Residential Care
Cambridgeshire County Council,25-Oct-18,51300439272,"-2,977.44",DECOY FARM,CARE ESTABLISHMENT,LD - East Locality,LD - East Cambs - Special Needs,Residential Care
Cambridgeshire County Council,25-Oct-18,51300439164,"-2,977.44",DECOY FARM,CARE ESTABLISHMENT,LD - East Locality,LD - East Cambs - Special Needs,Residential Care
Cambridgeshire County Council,25-Oct-18,51300466697,"-2,977.44",DECOY FARM,CARE ESTABLISHMENT,LD - East Locality,LD - East Cambs - Special Needs,Residential Care
Cambridgeshire County Council,25-Oct-18,51300439255,"-2,977.44",DECOY FARM,CARE ESTABLISHMENT,LD - East Locality,LD - East Cambs - Special Needs,Residential Care
Cambridgeshire County Council,25-Oct-18,51300439148,"-2,977.44",DECOY FARM,CARE ESTABLISHMENT,LD - East Locality,LD - East Cambs - Special Needs,Residential Care
Cambridgeshire County Council,25-Oct-18,51300490557,"-2,977.44",DECOY FARM,CARE ESTABLISHMENT,LD - East Locality,LD - East Cambs - Special Needs,Residential Care
Cambridgeshire County Council,25-Oct-18,51300490597,"-2,977.44",DECOY FARM,CARE ESTABLISHMENT,LD - East Locality,LD - East Cambs - Special Needs,Residential Care
Cambridgeshire County Council,25-Oct-18,51300490515,"-2,977.44",DECOY FARM,CARE ESTABLISHMENT,LD - East Locality,LD - East Cambs - Special Needs,Residential Care
Cambridgeshire County Council,25-Oct-18,51300490472,"-2,977.44",DECOY FARM,CARE ESTABLISHMENT,LD - East Locality,LD - East Cambs - Special Needs,Residential Care
Cambridgeshire County Council,25-Oct-18,51300490486,"-2,977.44",DECOY FARM,CARE ESTABLISHMENT,LD - East Locality,LD - East Cambs - Special Needs,Residential Care
Cambridgeshire County Council,25-Oct-18,51300466579,"-2,977.44",DECOY FARM,CARE ESTABLISHMENT,LD - East Locality,LD - East Cambs - Special Needs,Residential Care
Cambridgeshire County Council,25-Oct-18,51300490542,"-2,977.44",DECOY FARM,CARE ESTABLISHMENT,LD - East Locality,LD - East Cambs - Special Needs,Residential Care
Cambridgeshire County Council,25-Oct-18,51300490544,"-2,977.44",DECOY FARM,CARE ESTABLISHMENT,LD - East Locality,LD - East Cambs - Special Needs,Residential Care
Cambridgeshire County Council,25-Oct-18,51300466578,"-2,977.44",DECOY FARM,CARE ESTABLISHMENT,LD - East Locality,LD - East Cambs - Special Needs,Residential Care
Cambridgeshire County Council,25-Oct-18,51300466560,"-2,977.44",DECOY FARM,CARE ESTABLISHMENT,LD - East Locality,LD - East Cambs - Special Needs,Residential Care
Cambridgeshire County Council,25-Oct-18,51300490482,"-2,977.44",DECOY FARM,CARE ESTABLISHMENT,LD - East Locality,LD - East Cambs - Special Needs,Residential Care
Cambridgeshire County Council,25-Oct-18,51300490504,"-2,977.44",DECOY FARM,CARE ESTABLISHMENT,LD - East Locality,LD - East Cambs - Special Needs,Residential Care
Cambridgeshire County Council,25-Oct-18,51300439269,"-2,977.44",DECOY FARM,CARE ESTABLISHMENT,LD - East Locality,LD - East Cambs - Special Needs,Residential Care
Cambridgeshire County Council,25-Oct-18,51300466701,"-2,977.44",DECOY FARM,CARE ESTABLISHMENT,LD - East Locality,LD - East Cambs - Special Needs,Residential Care
Cambridgeshire County Council,25-Oct-18,51300490549,"-2,977.44",DECOY FARM,CARE ESTABLISHMENT,LD - East Locality,LD - East Cambs - Special Needs,Residential Care
Cambridgeshire County Council,25-Oct-18,51300439259,"-2,977.44",DECOY FARM,CARE ESTABLISHMENT,LD - East Locality,LD - East Cambs - Special Needs,Residential Care
Cambridgeshire County Council,25-Oct-18,51300466589,"-2,977.44",DECOY FARM,CARE ESTABLISHMENT,LD - East Locality,LD - East Cambs - Special Needs,Residential Care
Cambridgeshire County Council,25-Oct-18,51300466636,"-2,977.44",DECOY FARM,CARE ESTABLISHMENT,LD - East Locality,LD - East Cambs - Special Needs,Residential Care
Cambridgeshire County Council,25-Oct-18,51300439229,"-2,977.44",DECOY FARM,CARE ESTABLISHMENT,LD - East Locality,LD - East Cambs - Special Needs,Residential Care
Cambridgeshire County Council,25-Oct-18,51300466563,"-2,977.44",DECOY FARM,CARE ESTABLISHMENT,LD - East Locality,LD - East Cambs - Special Needs,Residential Care
Cambridgeshire County Council,25-Oct-18,51300439147,"-2,977.44",DECOY FARM,CARE ESTABLISHMENT,LD - East Locality,LD - East Cambs - Special Needs,Residential Care
Cambridgeshire County Council,25-Oct-18,51300439174,"-2,977.44",DECOY FARM,CARE ESTABLISHMENT,LD - East Locality,LD - East Cambs - Special Needs,Residential Care
Cambridgeshire County Council,25-Oct-18,51300439176,"-2,977.44",DECOY FARM,CARE ESTABLISHMENT,LD - East Locality,LD - East Cambs - Special Needs,Residential Care
Cambridgeshire County Council,25-Oct-18,51300439222,"-2,977.44",DECOY FARM,CARE ESTABLISHMENT,LD - East Locality,LD - East Cambs - Special Needs,Residential Care
Cambridgeshire County Council,25-Oct-18,51300439266,"-2,977.44",DECOY FARM,CARE ESTABLISHMENT,LD - East Locality,LD - East Cambs - Special Needs,Residential Care
Cambridgeshire County Council,25-Oct-18,51300439245,"-2,977.44",DECOY FARM,CARE ESTABLISHMENT,LD - East Locality,LD - East Cambs - Special Needs,Residential Care
Cambridgeshire County Council,25-Oct-18,51300439261,"-2,977.44",DECOY FARM,CARE ESTABLISHMENT,LD - East Locality,LD - East Cambs - Special Needs,Residential Care
Cambridgeshire County Council,25-Oct-18,51300439151,"-2,977.44",DECOY FARM,CARE ESTABLISHMENT,LD - East Locality,LD - East Cambs - Special Needs,Residential Care
Cambridgeshire County Council,25-Oct-18,51300490598,"-2,977.44",DECOY FARM,CARE ESTABLISHMENT,LD - East Locality,LD - East Cambs - Special Needs,Residential Care
Cambridgeshire County Council,25-Oct-18,51300490488,"-2,977.44",DECOY FARM,CARE ESTABLISHMENT,LD - East Locality,LD - East Cambs - Special Needs,Residential Care
Cambridgeshire County Council,25-Oct-18,51300490555,"-2,977.44",DECOY FARM,CARE ESTABLISHMENT,LD - East Locality,LD - East Cambs - Special Needs,Residential Care
Cambridgeshire County Council,25-Oct-18,51300439177,"-2,977.44",DECOY FARM,CARE ESTABLISHMENT,LD - East Locality,LD - East Cambs - Special Needs,Residential Care
Cambridgeshire County Council,25-Oct-18,51300439198,"-2,977.44",DECOY FARM,CARE ESTABLISHMENT,LD - East Locality,LD - East Cambs - Special Needs,Residential Care
Cambridgeshire County Council,25-Oct-18,51300466606,"-2,977.44",DECOY FARM,CARE ESTABLISHMENT,LD - East Locality,LD - East Cambs - Special Needs,Residential Care
Cambridgeshire County Council,25-Oct-18,51300466586,"-2,977.44",DECOY FARM,CARE ESTABLISHMENT,LD - East Locality,LD - East Cambs - Special Needs,Residential Care
Cambridgeshire County Council,25-Oct-18,51300439206,"-2,977.44",DECOY FARM,CARE ESTABLISHMENT,LD - East Locality,LD - East Cambs - Special Needs,Residential Care
Cambridgeshire County Council,25-Oct-18,51300439182,"-2,977.44",DECOY FARM,CARE ESTABLISHMENT,LD - East Locality,LD - East Cambs - Special Needs,Residential Care
Cambridgeshire County Council,25-Oct-18,51300466662,"-2,977.44",DECOY FARM,CARE ESTABLISHMENT,LD - East Locality,LD - East Cambs - Special Needs,Residential Care
Cambridgeshire County Council,25-Oct-18,51300466681,"-2,977.44",DECOY FARM,CARE ESTABLISHMENT,LD - East Locality,LD - East Cambs - Special Needs,Residential Care
Cambridgeshire County Council,25-Oct-18,51300439173,"-2,977.44",DECOY FARM,CARE ESTABLISHMENT,LD - East Locality,LD - East Cambs - Special Needs,Residential Care
Cambridgeshire County Council,25-Oct-18,51300439264,"-2,977.44",DECOY FARM,CARE ESTABLISHMENT,LD - East Locality,LD - East Cambs - Special Needs,Residential Care
Cambridgeshire County Council,25-Oct-18,51300439246,"-2,977.44",DECOY FARM,CARE ESTABLISHMENT,LD - East Locality,LD - East Cambs - Special Needs,Residential Care
Cambridgeshire County Council,25-Oct-18,51300439276,"-2,977.44",DECOY FARM,CARE ESTABLISHMENT,LD - East Locality,LD - East Cambs - Special Needs,Residential Care
Cambridgeshire County Council,25-Oct-18,51300439306,"-2,977.44",DECOY FARM,CARE ESTABLISHMENT,LD - East Locality,LD - East Cambs - Special Needs,Residential Care
Cambridgeshire County Council,25-Oct-18,51300490547,"-2,977.44",DECOY FARM,CARE ESTABLISHMENT,LD - East Locality,LD - East Cambs - Special Needs,Residential Care
Cambridgeshire County Council,25-Oct-18,51300490500,"-2,977.44",DECOY FARM,CARE ESTABLISHMENT,LD - East Locality,LD - East Cambs - Special Needs,Residential Care
Cambridgeshire County Council,25-Oct-18,51300490518,"-2,977.44",DECOY FARM,CARE ESTABLISHMENT,LD - East Locality,LD - East Cambs - Special Needs,Residential Care
Cambridgeshire County Council,25-Oct-18,51300490592,"-2,977.44",DECOY FARM,CARE ESTABLISHMENT,LD - East Locality,LD - East Cambs - Special Needs,Residential Care
Cambridgeshire County Council,25-Oct-18,51300466654,"-2,977.44",DECOY FARM,CARE ESTABLISHMENT,LD - East Locality,LD - East Cambs - Special Needs,Residential Care
Cambridgeshire County Council,25-Oct-18,51300490496,"-2,977.44",DECOY FARM,CARE ESTABLISHMENT,LD - East Locality,LD - East Cambs - Special Needs,Residential Care
Cambridgeshire County Council,25-Oct-18,51300490452,"-2,977.44",DECOY FARM,CARE ESTABLISHMENT,LD - East Locality,LD - East Cambs - Special Needs,Residential Care
Cambridgeshire County Council,25-Oct-18,51300490527,"-2,977.44",DECOY FARM,CARE ESTABLISHMENT,LD - East Locality,LD - East Cambs - Special Needs,Residential Care
Cambridgeshire County Council,25-Oct-18,51300490573,"-2,977.44",DECOY FARM,CARE ESTABLISHMENT,LD - East Locality,LD - East Cambs - Special Needs,Residential Care
Cambridgeshire County Council,25-Oct-18,51300490534,"-2,977.44",DECOY FARM,CARE ESTABLISHMENT,LD - East Locality,LD - East Cambs - Special Needs,Residential Care
Cambridgeshire County Council,25-Oct-18,51300490562,"-2,977.44",DECOY FARM,CARE ESTABLISHMENT,LD - East Locality,LD - East Cambs - Special Needs,Residential Care
Cambridgeshire County Council,25-Oct-18,51300490473,"-2,977.44",DECOY FARM,CARE ESTABLISHMENT,LD - East Locality,LD - East Cambs - Special Needs,Residential Care
Cambridgeshire County Council,25-Oct-18,51300490457,"-2,977.44",DECOY FARM,CARE ESTABLISHMENT,LD - East Locality,LD - East Cambs - Special Needs,Residential Care
Cambridgeshire County Council,25-Oct-18,51300439167,"-2,977.44",DECOY FARM,CARE ESTABLISHMENT,LD - East Locality,LD - East Cambs - Special Needs,Residential Care
Cambridgeshire County Council,25-Oct-18,51300466669,"-2,977.44",DECOY FARM,CARE ESTABLISHMENT,LD - East Locality,LD - East Cambs - Special Needs,Residential Care
Cambridgeshire County Council,25-Oct-18,51300439215,"-2,977.44",DECOY FARM,CARE ESTABLISHMENT,LD - East Locality,LD - East Cambs - Special Needs,Residential Care
Cambridgeshire County Council,25-Oct-18,51300439275,"-2,977.44",DECOY FARM,CARE ESTABLISHMENT,LD - East Locality,LD - East Cambs - Special Needs,Residential Care
Cambridgeshire County Council,25-Oct-18,51300439302,"-2,977.44",DECOY FARM,CARE ESTABLISHMENT,LD - East Locality,LD - East Cambs - Special Needs,Residential Care
Cambridgeshire County Council,25-Oct-18,51300466699,"-2,977.44",DECOY FARM,CARE ESTABLISHMENT,LD - East Locality,LD - East Cambs - Special Needs,Residential Care
Cambridgeshire County Council,25-Oct-18,51300466588,"-2,977.44",DECOY FARM,CARE ESTABLISHMENT,LD - East Locality,LD - East Cambs - Special Needs,Residential Care
Cambridgeshire County Council,25-Oct-18,51300466566,"-2,977.44",DECOY FARM,CARE ESTABLISHMENT,LD - East Locality,LD - East Cambs - Special Needs,Residential Care
Cambridgeshire County Council,25-Oct-18,51300466667,"-2,977.44",DECOY FARM,CARE ESTABLISHMENT,LD - East Locality,LD - East Cambs - Special Needs,Residential Care
Cambridgeshire County Council,25-Oct-18,51300439179,"-2,977.44",DECOY FARM,CARE ESTABLISHMENT,LD - East Locality,LD - East Cambs - Special Needs,Residential Care
Cambridgeshire County Council,25-Oct-18,51300466567,"-2,977.44",DECOY FARM,CARE ESTABLISHMENT,LD - East Locality,LD - East Cambs - Special Needs,Residential Care
Cambridgeshire County Council,25-Oct-18,51300490575,"-2,977.44",DECOY FARM,CARE ESTABLISHMENT,LD - East Locality,LD - East Cambs - Special Needs,Residential Care
Cambridgeshire County Council,25-Oct-18,51300466641,"-2,977.44",DECOY FARM,CARE ESTABLISHMENT,LD - East Locality,LD - East Cambs - Special Needs,Residential Care
Cambridgeshire County Council,25-Oct-18,51300490487,"-2,977.44",DECOY FARM,CARE ESTABLISHMENT,LD - East Locality,LD - East Cambs - Special Needs,Residential Care
Cambridgeshire County Council,25-Oct-18,51300466621,"-2,977.44",DECOY FARM,CARE ESTABLISHMENT,LD - East Locality,LD - East Cambs - Special Needs,Residential Care
Cambridgeshire County Council,25-Oct-18,51300490520,"-2,977.44",DECOY FARM,CARE ESTABLISHMENT,LD - East Locality,LD - East Cambs - Special Needs,Residential Care
Cambridgeshire County Council,25-Oct-18,51300490599,"-2,977.44",DECOY FARM,CARE ESTABLISHMENT,LD - East Locality,LD - East Cambs - Special Needs,Residential Care
Cambridgeshire County Council,25-Oct-18,51300466580,"-2,977.44",DECOY FARM,CARE ESTABLISHMENT,LD - East Locality,LD - East Cambs - Special Needs,Residential Care
Cambridgeshire County Council,25-Oct-18,51300466552,"-2,977.44",DECOY FARM,CARE ESTABLISHMENT,LD - East Locality,LD - East Cambs - Special Needs,Residential Care
Cambridgeshire County Council,25-Oct-18,51300490564,"-2,977.44",DECOY FARM,CARE ESTABLISHMENT,LD - East Locality,LD - East Cambs - Special Needs,Residential Care
Cambridgeshire County Council,25-Oct-18,51300439280,"-2,977.44",DECOY FARM,CARE ESTABLISHMENT,LD - East Locality,LD - East Cambs - Special Needs,Residential Care
Cambridgeshire County Council,25-Oct-18,51300490596,"-2,977.44",DECOY FARM,CARE ESTABLISHMENT,LD - East Locality,LD - East Cambs - Special Needs,Residential Care
Cambridgeshire County Council,25-Oct-18,51300439168,"-2,977.44",DECOY FARM,CARE ESTABLISHMENT,LD - East Locality,LD - East Cambs - Special Needs,Residential Care
Cambridgeshire County Council,25-Oct-18,51300466627,"-2,977.44",DECOY FARM,CARE ESTABLISHMENT,LD - East Locality,LD - East Cambs - Special Needs,Residential Care
Cambridgeshire County Council,25-Oct-18,51300490558,"-2,977.44",DECOY FARM,CARE ESTABLISHMENT,LD - East Locality,LD - East Cambs - Special Needs,Residential Care
Cambridgeshire County Council,25-Oct-18,51300466556,"-2,977.44",DECOY FARM,CARE ESTABLISHMENT,LD - East Locality,LD - East Cambs - Special Needs,Residential Care
Cambridgeshire County Council,25-Oct-18,51300439234,"-2,977.44",DECOY FARM,CARE ESTABLISHMENT,LD - East Locality,LD - East Cambs - Special Needs,Residential Care
Cambridgeshire County Council,25-Oct-18,51300466620,"-2,977.44",DECOY FARM,CARE ESTABLISHMENT,LD - East Locality,LD - East Cambs - Special Needs,Residential Care
Cambridgeshire County Council,25-Oct-18,51300466702,"-2,977.44",DECOY FARM,CARE ESTABLISHMENT,LD - East Locality,LD - East Cambs - Special Needs,Residential Care
Cambridgeshire County Council,25-Oct-18,51300439224,"-2,977.44",DECOY FARM,CARE ESTABLISHMENT,LD - East Locality,LD - East Cambs - Special Needs,Residential Care
Cambridgeshire County Council,25-Oct-18,51300466624,"-2,977.44",DECOY FARM,CARE ESTABLISHMENT,LD - East Locality,LD - East Cambs - Special Needs,Residential Care
Cambridgeshire County Council,25-Oct-18,51300439209,"-2,977.44",DECOY FARM,CARE ESTABLISHMENT,LD - East Locality,LD - East Cambs - Special Needs,Residential Care
Cambridgeshire County Council,25-Oct-18,51300490466,"-2,977.44",DECOY FARM,CARE ESTABLISHMENT,LD - East Locality,LD - East Cambs - Special Needs,Residential Care
Cambridgeshire County Council,25-Oct-18,51300466595,"-2,977.44",DECOY FARM,CARE ESTABLISHMENT,LD - East Locality,LD - East Cambs - Special Needs,Residential Care
Cambridgeshire County Council,25-Oct-18,51300466664,"-2,977.44",DECOY FARM,CARE ESTABLISHMENT,LD - East Locality,LD - East Cambs - Special Needs,Residential Care
Cambridgeshire County Council,25-Oct-18,51300490507,"-2,977.44",DECOY FARM,CARE ESTABLISHMENT,LD - East Locality,LD - East Cambs - Special Needs,Residential Care
Cambridgeshire County Council,25-Oct-18,51300490571,"-2,977.44",DECOY FARM,CARE ESTABLISHMENT,LD - East Locality,LD - East Cambs - Special Needs,Residential Care
Cambridgeshire County Council,25-Oct-18,51300439200,"-2,977.44",DECOY FARM,CARE ESTABLISHMENT,LD - East Locality,LD - East Cambs - Special Needs,Residential Care
Cambridgeshire County Council,25-Oct-18,51300466635,"-2,977.44",DECOY FARM,CARE ESTABLISHMENT,LD - East Locality,LD - East Cambs - Special Needs,Residential Care
Cambridgeshire County Council,25-Oct-18,51300490568,"-2,977.44",DECOY FARM,CARE ESTABLISHMENT,LD - East Locality,LD - East Cambs - Special Needs,Residential Care
Cambridgeshire County Council,25-Oct-18,51300490554,"-2,977.44",DECOY FARM,CARE ESTABLISHMENT,LD - East Locality,LD - East Cambs - Special Needs,Residential Care
Cambridgeshire County Council,25-Oct-18,51300466605,"-2,977.44",DECOY FARM,CARE ESTABLISHMENT,LD - East Locality,LD - East Cambs - Special Needs,Residential Care
Cambridgeshire County Council,25-Oct-18,51300439216,"-2,977.44",DECOY FARM,CARE ESTABLISHMENT,LD - East Locality,LD - East Cambs - Special Needs,Residential Care
Cambridgeshire County Council,25-Oct-18,51300439277,"-2,977.44",DECOY FARM,CARE ESTABLISHMENT,LD - East Locality,LD - East Cambs - Special Needs,Residential Care
Cambridgeshire County Council,25-Oct-18,51300466574,"-2,977.44",DECOY FARM,CARE ESTABLISHMENT,LD - East Locality,LD - East Cambs - Special Needs,Residential Care
Cambridgeshire County Council,25-Oct-18,51300466675,"-2,977.44",DECOY FARM,CARE ESTABLISHMENT,LD - East Locality,LD - East Cambs - Special Needs,Residential Care
Cambridgeshire County Council,25-Oct-18,51300466612,"-2,977.44",DECOY FARM,CARE ESTABLISHMENT,LD - East Locality,LD - East Cambs - Special Needs,Residential Care
Cambridgeshire County Council,25-Oct-18,51300466707,"-2,977.44",DECOY FARM,CARE ESTABLISHMENT,LD - East Locality,LD - East Cambs - Special Needs,Residential Care
Cambridgeshire County Council,25-Oct-18,51300466679,"-2,977.44",DECOY FARM,CARE ESTABLISHMENT,LD - East Locality,LD - East Cambs - Special Needs,Residential Care
Cambridgeshire County Council,25-Oct-18,51300466706,"-2,977.44",DECOY FARM,CARE ESTABLISHMENT,LD - East Locality,LD - East Cambs - Special Needs,Residential Care
Cambridgeshire County Council,25-Oct-18,51300439268,"-2,977.44",DECOY FARM,CARE ESTABLISHMENT,LD - East Locality,LD - East Cambs - Special Needs,Residential Care
Cambridgeshire County Council,25-Oct-18,51300490485,"-2,977.44",DECOY FARM,CARE ESTABLISHMENT,LD - East Locality,LD - East Cambs - Special Needs,Residential Care
Cambridgeshire County Council,25-Oct-18,51300439162,"-2,977.44",DECOY FARM,CARE ESTABLISHMENT,LD - East Locality,LD - East Cambs - Special Needs,Residential Care
Cambridgeshire County Council,25-Oct-18,51300490556,"-2,977.44",DECOY FARM,CARE ESTABLISHMENT,LD - East Locality,LD - East Cambs - Special Needs,Residential Care
Cambridgeshire County Council,25-Oct-18,51300490538,"-2,977.44",DECOY FARM,CARE ESTABLISHMENT,LD - East Locality,LD - East Cambs - Special Needs,Residential Care
Cambridgeshire County Council,25-Oct-18,51300439189,"-2,977.44",DECOY FARM,CARE ESTABLISHMENT,LD - East Locality,LD - East Cambs - Special Needs,Residential Care
Cambridgeshire County Council,25-Oct-18,51300439197,"-2,977.44",DECOY FARM,CARE ESTABLISHMENT,LD - East Locality,LD - East Cambs - Special Needs,Residential Care
Cambridgeshire County Council,25-Oct-18,51300466596,"-2,977.44",DECOY FARM,CARE ESTABLISHMENT,LD - East Locality,LD - East Cambs - Special Needs,Residential Care
Cambridgeshire County Council,25-Oct-18,51300466642,"-2,977.44",DECOY FARM,CARE ESTABLISHMENT,LD - East Locality,LD - East Cambs - Special Needs,Residential Care
Cambridgeshire County Council,25-Oct-18,51300439149,"-2,977.44",DECOY FARM,CARE ESTABLISHMENT,LD - East Locality,LD - East Cambs - Special Needs,Residential Care
Cambridgeshire County Council,25-Oct-18,51300490581,"-2,977.44",DECOY FARM,CARE ESTABLISHMENT,LD - East Locality,LD - East Cambs - Special Needs,Residential Care
Cambridgeshire County Council,25-Oct-18,51300439199,"-2,977.44",DECOY FARM,CARE ESTABLISHMENT,LD - East Locality,LD - East Cambs - Special Needs,Residential Care
Cambridgeshire County Council,25-Oct-18,51300490588,"-2,977.44",DECOY FARM,CARE ESTABLISHMENT,LD - East Locality,LD - East Cambs - Special Needs,Residential Care
Cambridgeshire County Council,25-Oct-18,51300490454,"-2,977.44",DECOY FARM,CARE ESTABLISHMENT,LD - East Locality,LD - East Cambs - Special Needs,Residential Care
Cambridgeshire County Council,25-Oct-18,51300439226,"-2,977.44",DECOY FARM,CARE ESTABLISHMENT,LD - East Locality,LD - East Cambs - Special Needs,Residential Care
Cambridgeshire County Council,25-Oct-18,51300466614,"-2,977.44",DECOY FARM,CARE ESTABLISHMENT,LD - East Locality,LD - East Cambs - Special Needs,Residential Care
Cambridgeshire County Council,25-Oct-18,51300490559,"-2,977.44",DECOY FARM,CARE ESTABLISHMENT,LD - East Locality,LD - East Cambs - Special Needs,Residential Care
Cambridgeshire County Council,25-Oct-18,51300466630,"-2,977.44",DECOY FARM,CARE ESTABLISHMENT,LD - East Locality,LD - East Cambs - Special Needs,Residential Care
Cambridgeshire County Council,25-Oct-18,51300466618,"-2,977.44",DECOY FARM,CARE ESTABLISHMENT,LD - East Locality,LD - East Cambs - Special Needs,Residential Care
Cambridgeshire County Council,25-Oct-18,51300490601,"-2,977.44",DECOY FARM,CARE ESTABLISHMENT,LD - East Locality,LD - East Cambs - Special Needs,Residential Care
Cambridgeshire County Council,25-Oct-18,51300466587,"-2,977.44",DECOY FARM,CARE ESTABLISHMENT,LD - East Locality,LD - East Cambs - Special Needs,Residential Care
Cambridgeshire County Council,25-Oct-18,51300490514,"-2,977.44",DECOY FARM,CARE ESTABLISHMENT,LD - East Locality,LD - East Cambs - Special Needs,Residential Care
Cambridgeshire County Council,25-Oct-18,51300439223,"-2,977.44",DECOY FARM,CARE ESTABLISHMENT,LD - East Locality,LD - East Cambs - Special Needs,Residential Care
Cambridgeshire County Council,25-Oct-18,51300439278,"-2,977.44",DECOY FARM,CARE ESTABLISHMENT,LD - East Locality,LD - East Cambs - Special Needs,Residential Care
Cambridgeshire County Council,25-Oct-18,51300490522,"-2,977.44",DECOY FARM,CARE ESTABLISHMENT,LD - East Locality,LD - East Cambs - Special Needs,Residential Care
Cambridgeshire County Council,25-Oct-18,51300490552,"-2,977.44",DECOY FARM,CARE ESTABLISHMENT,LD - East Locality,LD - East Cambs - Special Needs,Residential Care
Cambridgeshire County Council,25-Oct-18,51300466639,"-2,977.44",DECOY FARM,CARE ESTABLISHMENT,LD - East Locality,LD - East Cambs - Special Needs,Residential Care
Cambridgeshire County Council,25-Oct-18,51300439188,"-2,977.44",DECOY FARM,CARE ESTABLISHMENT,LD - East Locality,LD - East Cambs - Special Needs,Residential Care
Cambridgeshire County Council,25-Oct-18,51300439219,"-2,977.44",DECOY FARM,CARE ESTABLISHMENT,LD - East Locality,LD - East Cambs - Special Needs,Residential Care
Cambridgeshire County Council,25-Oct-18,51300466562,"-2,977.44",DECOY FARM,CARE ESTABLISHMENT,LD - East Locality,LD - East Cambs - Special Needs,Residential Care
Cambridgeshire County Council,25-Oct-18,51300490585,"-2,977.44",DECOY FARM,CARE ESTABLISHMENT,LD - East Locality,LD - East Cambs - Special Needs,Residential Care
Cambridgeshire County Council,25-Oct-18,51300439171,"-2,977.44",DECOY FARM,CARE ESTABLISHMENT,LD - East Locality,LD - East Cambs - Special Needs,Residential Care
Cambridgeshire County Council,25-Oct-18,51300490545,"-2,977.44",DECOY FARM,CARE ESTABLISHMENT,LD - East Locality,LD - East Cambs - Special Needs,Residential Care
Cambridgeshire County Council,25-Oct-18,51300490582,"-2,977.44",DECOY FARM,CARE ESTABLISHMENT,LD - East Locality,LD - East Cambs - Special Needs,Residential Care
Cambridgeshire County Council,25-Oct-18,51300439241,"-2,977.44",DECOY FARM,CARE ESTABLISHMENT,LD - East Locality,LD - East Cambs - Special Needs,Residential Care
Cambridgeshire County Council,25-Oct-18,51300490578,"-2,977.44",DECOY FARM,CARE ESTABLISHMENT,LD - East Locality,LD - East Cambs - Special Needs,Residential Care
Cambridgeshire County Council,25-Oct-18,51300466615,"-2,977.44",DECOY FARM,CARE ESTABLISHMENT,LD - East Locality,LD - East Cambs - Special Needs,Residential Care
Cambridgeshire County Council,25-Oct-18,51300490481,"-2,977.44",DECOY FARM,CARE ESTABLISHMENT,LD - East Locality,LD - East Cambs - Special Needs,Residential Care
Cambridgeshire County Council,25-Oct-18,51300490587,"-2,977.44",DECOY FARM,CARE ESTABLISHMENT,LD - East Locality,LD - East Cambs - Special Needs,Residential Care
Cambridgeshire County Council,25-Oct-18,51300466608,"-2,977.44",DECOY FARM,CARE ESTABLISHMENT,LD - East Locality,LD - East Cambs - Special Needs,Residential Care
Cambridgeshire County Council,25-Oct-18,51300466592,"-2,977.44",DECOY FARM,CARE ESTABLISHMENT,LD - East Locality,LD - East Cambs - Special Needs,Residential Care
Cambridgeshire County Council,25-Oct-18,51300439221,"-2,977.44",DECOY FARM,CARE ESTABLISHMENT,LD - East Locality,LD - East Cambs - Special Needs,Residential Care
Cambridgeshire County Council,15-Oct-18,51300438841,"-2,887.36",AURORA ORCHARD MANOR,CARE ESTABLISHMENT,LD - Young Adults Team,LD - Young Adults - Special Needs,Residential Care
Cambridgeshire County Council,05-Oct-18,51300430464,"-2,552.09",DECOY FARM,CARE ESTABLISHMENT,LD - East Locality,LD - East Cambs - Special Needs,Residential Care
Cambridgeshire County Council,05-Oct-18,51300416442,"-2,552.09",DECOY FARM,CARE ESTABLISHMENT,LD - East Locality,LD - East Cambs - Special Needs,Residential Care
Cambridgeshire County Council,25-Oct-18,51300490535,"-2,552.09",DECOY FARM,CARE ESTABLISHMENT,LD - East Locality,LD - East Cambs - Special Needs,Residential Care
Cambridgeshire County Council,25-Oct-18,51300466704,"-2,552.09",DECOY FARM,CARE ESTABLISHMENT,LD - East Locality,LD - East Cambs - Special Needs,Residential Care
Cambridgeshire County Council,25-Oct-18,51300439249,"-2,552.09",DECOY FARM,CARE ESTABLISHMENT,LD - East Locality,LD - East Cambs - Special Needs,Residential Care
Cambridgeshire County Council,10-Oct-18,51300434529,"-2,503.73",XMA LIMITED,TRADE SUPPLIER,Operations - Norwich,BAU (Non-staff revenue costs),Computer hardware - purchase
Cambridgeshire County Council,15-Oct-18,51300438850,"-2,474.88",AURORA ORCHARD MANOR,CARE ESTABLISHMENT,LD - Young Adults Team,LD - Young Adults - Special Needs,Residential Care
Cambridgeshire County Council,26-Oct-18,51300484813,"-2,365.70",SIXTEEN PLUS,CARE ESTABLISHMENT,Unaccompanied Asylum Seeking Children,Unaccompanied Asylum Seeking Children <18,Asylum Seekers
Cambridgeshire County Council,18-Oct-18,51300453914,"-2,337.29",DIMENSIONS (UK) LTD,CARE ESTABLISHMENT,LD - South Locality,LD - South Cambs - Special Needs,Supported Living
Cambridgeshire County Council,18-Oct-18,51300453903,"-2,337.29",DIMENSIONS (UK) LTD,CARE ESTABLISHMENT,LD - South Locality,LD - South Cambs - Special Needs,Supported Living
Cambridgeshire County Council,18-Oct-18,51300432920,"-2,337.29",DIMENSIONS (UK) LTD,CARE ESTABLISHMENT,LD - South Locality,LD - South Cambs - Special Needs,Supported Living
Cambridgeshire County Council,18-Oct-18,51300453922,"-2,337.29",DIMENSIONS (UK) LTD,CARE ESTABLISHMENT,LD - South Locality,LD - South Cambs - Special Needs,Supported Living
Cambridgeshire County Council,18-Oct-18,51300432913,"-2,337.29",DIMENSIONS (UK) LTD,CARE ESTABLISHMENT,LD - South Locality,LD - South Cambs - Special Needs,Supported Living
Cambridgeshire County Council,18-Oct-18,51300432916,"-2,337.29",DIMENSIONS (UK) LTD,CARE ESTABLISHMENT,LD - South Locality,LD - South Cambs - Special Needs,Supported Living
Cambridgeshire County Council,18-Oct-18,51300453932,"-2,337.29",DIMENSIONS (UK) LTD,CARE ESTABLISHMENT,LD - South Locality,LD - South Cambs - Special Needs,Supported Living
Cambridgeshire County Council,18-Oct-18,51300432915,"-2,337.29",DIMENSIONS (UK) LTD,CARE ESTABLISHMENT,LD - City Locality,LD - City - Special Needs,Supported Living
Cambridgeshire County Council,18-Oct-18,51300453927,"-2,337.29",DIMENSIONS (UK) LTD,CARE ESTABLISHMENT,LD - City Locality,LD - City - Special Needs,Supported Living
Cambridgeshire County Council,18-Oct-18,51300432925,"-2,337.29",DIMENSIONS (UK) LTD,CARE ESTABLISHMENT,LD - City Locality,LD - City - Special Needs,Supported Living
Cambridgeshire County Council,18-Oct-18,51300432929,"-2,337.29",DIMENSIONS (UK) LTD,CARE ESTABLISHMENT,LD - City Locality,LD - City - Special Needs,Supported Living
Cambridgeshire County Council,18-Oct-18,51300453909,"-2,337.29",DIMENSIONS (UK) LTD,CARE ESTABLISHMENT,LD - City Locality,LD - City - Special Needs,Supported Living
Cambridgeshire County Council,18-Oct-18,51300453900,"-2,337.29",DIMENSIONS (UK) LTD,CARE ESTABLISHMENT,LD - City Locality,LD - City - Special Needs,Supported Living
Cambridgeshire County Council,18-Oct-18,51300432921,"-2,337.29",DIMENSIONS (UK) LTD,CARE ESTABLISHMENT,LD - City Locality,LD - City - Special Needs,Supported Living
Cambridgeshire County Council,18-Oct-18,51300453910,"-2,337.29",DIMENSIONS (UK) LTD,CARE ESTABLISHMENT,LD - City Locality,LD - City - Special Needs,Supported Living
Cambridgeshire County Council,18-Oct-18,51300432926,"-2,337.29",DIMENSIONS (UK) LTD,CARE ESTABLISHMENT,LD - City Locality,LD - City - Special Needs,Supported Living
Cambridgeshire County Council,24-Oct-18,51300477418,"-2,337.29",DIMENSIONS (UK) LTD,CARE ESTABLISHMENT,LD - South Locality,LD - South Cambs - Special Needs,Supported Living
Cambridgeshire County Council,24-Oct-18,51300477422,"-2,337.29",DIMENSIONS (UK) LTD,CARE ESTABLISHMENT,LD - City Locality,LD - City - Special Needs,Supported Living
Cambridgeshire County Council,24-Oct-18,51300477420,"-2,337.29",DIMENSIONS (UK) LTD,CARE ESTABLISHMENT,LD - City Locality,LD - City - Special Needs,Supported Living
Cambridgeshire County Council,24-Oct-18,51300477447,"-2,337.29",DIMENSIONS (UK) LTD,CARE ESTABLISHMENT,LD - City Locality,LD - City - Special Needs,Supported Living
Cambridgeshire County Council,24-Oct-18,51300477410,"-2,337.29",DIMENSIONS (UK) LTD,CARE ESTABLISHMENT,LD - City Locality,LD - City - Special Needs,Supported Living
Cambridgeshire County Council,24-Oct-18,51300477431,"-2,337.29",DIMENSIONS (UK) LTD,CARE ESTABLISHMENT,LD - City Locality,LD - City - Special Needs,Supported Living
Cambridgeshire County Council,24-Oct-18,51300477438,"-2,337.29",DIMENSIONS (UK) LTD,CARE ESTABLISHMENT,LD - City Locality,LD - City - Special Needs,Supported Living
Cambridgeshire County Council,24-Oct-18,51300477436,"-2,337.29",DIMENSIONS (UK) LTD,CARE ESTABLISHMENT,LD - City Locality,LD - City - Special Needs,Supported Living
Cambridgeshire County Council,25-Oct-18,51300484563,"-2,309.76",COMPASS FOSTERING CENTRAL LIMITED,CARE ESTABLISHMENT,LAC Placements,Placements - independent fostering,Agency Placements - Out of  County
Cambridgeshire County Council,25-Oct-18,51300484564,"-2,066.63",COMPASS FOSTERING CENTRAL LIMITED,CARE ESTABLISHMENT,LAC Placements,Placements - independent fostering,Agency Placements - Out of  County
Cambridgeshire County Council,19-Oct-18,51300472503,"-1,971.03",WESTMINSTER HOMECARE LIMITED,CARE ESTABLISHMENT,LD - East Locality,LD - East Cambs - Special Needs,Domiciliary Care
Cambridgeshire County Council,19-Oct-18,51300480955,"-1,948.66",WESTMINSTER HOMECARE LIMITED,CARE ESTABLISHMENT,LD - City Locality,LD - City - Care,Domiciliary Care
Cambridgeshire County Council,19-Oct-18,51300480920,"-1,948.66",WESTMINSTER HOMECARE LIMITED,CARE ESTABLISHMENT,LD - City Locality,LD - City - Care,Domiciliary Care
Cambridgeshire County Council,04-Oct-18,51300429727,"-1,885.72",AEGIS HOMES LTD,CARE ESTABLISHMENT,LAC Placements,Placements - supported accommodation,Agency Placements - In County
Cambridgeshire County Council,19-Oct-18,51300469506,"-1,868.49",WESTMINSTER (ILN EAST),CARE ESTABLISHMENT,LD - East Locality,LD - East Cambs - Special Needs,Supported Living
Cambridgeshire County Council,19-Oct-18,51300473924,"-1,868.48",WESTMINSTER (ILN EAST),CARE ESTABLISHMENT,LD - East Locality,LD - East Cambs - Special Needs,Supported Living
Cambridgeshire County Council,15-Oct-18,51300411017,"-1,711.36",AFFINITY TRUST,CARE ESTABLISHMENT,LD - Fenland Locality,LD - Fenland  - Special Needs,Supported Living
Cambridgeshire County Council,15-Oct-18,51300411005,"-1,711.36",AFFINITY TRUST,CARE ESTABLISHMENT,LD - Fenland Locality,LD - Fenland  - Special Needs,Supported Living
Cambridgeshire County Council,15-Oct-18,51300421424,"-1,711.36",AFFINITY TRUST,CARE ESTABLISHMENT,LD - Fenland Locality,LD - Fenland  - Special Needs,Supported Living
Cambridgeshire County Council,15-Oct-18,51300421397,"-1,711.36",AFFINITY TRUST,CARE ESTABLISHMENT,LD - Fenland Locality,LD - Fenland  - Special Needs,Supported Living
Cambridgeshire County Council,15-Oct-18,51300421405,"-1,711.36",AFFINITY TRUST,CARE ESTABLISHMENT,LD - Fenland Locality,LD - Fenland  - Special Needs,Supported Living
Cambridgeshire County Council,15-Oct-18,51300432146,"-1,711.36",AFFINITY TRUST,CARE ESTABLISHMENT,LD - Fenland Locality,LD - Fenland  - Special Needs,Supported Living
Cambridgeshire County Council,15-Oct-18,51300452279,"-1,711.36",AFFINITY TRUST,CARE ESTABLISHMENT,LD - Fenland Locality,LD - Fenland  - Special Needs,Supported Living
Cambridgeshire County Council,15-Oct-18,51300452259,"-1,711.36",AFFINITY TRUST,CARE ESTABLISHMENT,LD - Fenland Locality,LD - Fenland  - Special Needs,Supported Living
Cambridgeshire County Council,15-Oct-18,51300452284,"-1,711.36",AFFINITY TRUST,CARE ESTABLISHMENT,LD - Fenland Locality,LD - Fenland  - Special Needs,Supported Living
Cambridgeshire County Council,15-Oct-18,51300411016,"-1,711.36",AFFINITY TRUST,CARE ESTABLISHMENT,LD - Fenland Locality,LD - Fenland  - Special Needs,Supported Living
Cambridgeshire County Council,15-Oct-18,51300411003,"-1,711.36",AFFINITY TRUST,CARE ESTABLISHMENT,LD - Fenland Locality,LD - Fenland  - Special Needs,Supported Living
Cambridgeshire County Council,15-Oct-18,51300432159,"-1,711.36",AFFINITY TRUST,CARE ESTABLISHMENT,LD - Fenland Locality,LD - Fenland  - Special Needs,Supported Living
Cambridgeshire County Council,15-Oct-18,51300452287,"-1,711.36",AFFINITY TRUST,CARE ESTABLISHMENT,LD - Fenland Locality,LD - Fenland  - Special Needs,Supported Living
Cambridgeshire County Council,15-Oct-18,51300421410,"-1,711.36",AFFINITY TRUST,CARE ESTABLISHMENT,LD - Fenland Locality,LD - Fenland  - Special Needs,Supported Living
Cambridgeshire County Council,15-Oct-18,51300421422,"-1,711.36",AFFINITY TRUST,CARE ESTABLISHMENT,LD - Fenland Locality,LD - Fenland  - Special Needs,Supported Living
Cambridgeshire County Council,15-Oct-18,51300421420,"-1,711.36",AFFINITY TRUST,CARE ESTABLISHMENT,LD - Fenland Locality,LD - Fenland  - Special Needs,Supported Living
Cambridgeshire County Council,15-Oct-18,51300452295,"-1,711.36",AFFINITY TRUST,CARE ESTABLISHMENT,LD - Fenland Locality,LD - Fenland  - Special Needs,Supported Living
Cambridgeshire County Council,15-Oct-18,51300432150,"-1,711.36",AFFINITY TRUST,CARE ESTABLISHMENT,LD - Fenland Locality,LD - Fenland  - Special Needs,Supported Living
Cambridgeshire County Council,15-Oct-18,51300452298,"-1,711.36",AFFINITY TRUST,CARE ESTABLISHMENT,LD - Fenland Locality,LD - Fenland  - Special Needs,Supported Living
Cambridgeshire County Council,15-Oct-18,51300452277,"-1,711.36",AFFINITY TRUST,CARE ESTABLISHMENT,LD - Fenland Locality,LD - Fenland  - Special Needs,Supported Living
Cambridgeshire County Council,15-Oct-18,51300452283,"-1,711.36",AFFINITY TRUST,CARE ESTABLISHMENT,LD - Fenland Locality,LD - Fenland  - Special Needs,Supported Living
Cambridgeshire County Council,15-Oct-18,51300452274,"-1,711.36",AFFINITY TRUST,CARE ESTABLISHMENT,LD - Fenland Locality,LD - Fenland  - Special Needs,Supported Living
Cambridgeshire County Council,15-Oct-18,51300432156,"-1,711.36",AFFINITY TRUST,CARE ESTABLISHMENT,LD - Fenland Locality,LD - Fenland  - Special Needs,Supported Living
Cambridgeshire County Council,15-Oct-18,51300411001,"-1,711.36",AFFINITY TRUST,CARE ESTABLISHMENT,LD - Fenland Locality,LD - Fenland  - Special Needs,Supported Living
Cambridgeshire County Council,15-Oct-18,51300421409,"-1,711.36",AFFINITY TRUST,CARE ESTABLISHMENT,LD - Fenland Locality,LD - Fenland  - Special Needs,Supported Living
Cambridgeshire County Council,15-Oct-18,51300421406,"-1,711.36",AFFINITY TRUST,CARE ESTABLISHMENT,LD - Fenland Locality,LD - Fenland  - Special Needs,Supported Living
Cambridgeshire County Council,15-Oct-18,51300411004,"-1,711.36",AFFINITY TRUST,CARE ESTABLISHMENT,LD - Fenland Locality,LD - Fenland  - Care,Supported Living
Cambridgeshire County Council,15-Oct-18,51300411002,"-1,711.36",AFFINITY TRUST,CARE ESTABLISHMENT,LD - Fenland Locality,LD - Fenland  - Care,Supported Living
Cambridgeshire County Council,15-Oct-18,51300452294,"-1,711.36",AFFINITY TRUST,CARE ESTABLISHMENT,LD - Fenland Locality,LD - Fenland  - Care,Supported Living
Cambridgeshire County Council,15-Oct-18,51300432151,"-1,711.36",AFFINITY TRUST,CARE ESTABLISHMENT,LD - Fenland Locality,LD - Fenland  - Care,Supported Living
Cambridgeshire County Council,15-Oct-18,51300421395,"-1,711.36",AFFINITY TRUST,CARE ESTABLISHMENT,LD - Fenland Locality,LD - Fenland  - Care,Supported Living
Cambridgeshire County Council,15-Oct-18,51300432139,"-1,711.36",AFFINITY TRUST,CARE ESTABLISHMENT,LD - Fenland Locality,LD - Fenland  - Care,Supported Living
Cambridgeshire County Council,15-Oct-18,51300411014,"-1,711.36",AFFINITY TRUST,CARE ESTABLISHMENT,LD - Fenland Locality,LD - Fenland  - Care,Supported Living
Cambridgeshire County Council,15-Oct-18,51300432160,"-1,711.36",AFFINITY TRUST,CARE ESTABLISHMENT,LD - Fenland Locality,LD - Fenland  - Care,Supported Living
Cambridgeshire County Council,15-Oct-18,51300411011,"-1,711.36",AFFINITY TRUST,CARE ESTABLISHMENT,LD - Fenland Locality,LD - Fenland  - Care,Supported Living
Cambridgeshire County Council,15-Oct-18,51300452296,"-1,711.36",AFFINITY TRUST,CARE ESTABLISHMENT,LD - Fenland Locality,LD - Fenland  - Care,Supported Living
Cambridgeshire County Council,15-Oct-18,51300452272,"-1,711.36",AFFINITY TRUST,CARE ESTABLISHMENT,LD - Fenland Locality,LD - Fenland  - Care,Supported Living
Cambridgeshire County Council,15-Oct-18,51300432155,"-1,711.36",AFFINITY TRUST,CARE ESTABLISHMENT,LD - Fenland Locality,LD - Fenland  - Care,Supported Living
Cambridgeshire County Council,15-Oct-18,51300452262,"-1,711.36",AFFINITY TRUST,CARE ESTABLISHMENT,LD - Fenland Locality,LD - Fenland  - Care,Supported Living
Cambridgeshire County Council,15-Oct-18,51300411022,"-1,711.36",AFFINITY TRUST,CARE ESTABLISHMENT,LD - Fenland Locality,LD - Fenland  - Care,Supported Living
Cambridgeshire County Council,15-Oct-18,51300432138,"-1,711.36",AFFINITY TRUST,CARE ESTABLISHMENT,LD - Fenland Locality,LD - Fenland  - Care,Supported Living
Cambridgeshire County Council,15-Oct-18,51300411008,"-1,711.36",AFFINITY TRUST,CARE ESTABLISHMENT,LD - Fenland Locality,LD - Fenland  - Care,Supported Living
Cambridgeshire County Council,15-Oct-18,51300421404,"-1,711.36",AFFINITY TRUST,CARE ESTABLISHMENT,LD - Fenland Locality,LD - Fenland  - Care,Supported Living
Cambridgeshire County Council,15-Oct-18,51300421423,"-1,711.36",AFFINITY TRUST,CARE ESTABLISHMENT,LD - Fenland Locality,LD - Fenland  - Care,Supported Living
Cambridgeshire County Council,15-Oct-18,51300432153,"-1,711.36",AFFINITY TRUST,CARE ESTABLISHMENT,LD - Fenland Locality,LD - Fenland  - Care,Supported Living
Cambridgeshire County Council,15-Oct-18,51300452282,"-1,711.36",AFFINITY TRUST,CARE ESTABLISHMENT,LD - Fenland Locality,LD - Fenland  - Care,Supported Living
Cambridgeshire County Council,15-Oct-18,51300452291,"-1,711.36",AFFINITY TRUST,CARE ESTABLISHMENT,LD - Fenland Locality,LD - Fenland  - Care,Supported Living
Cambridgeshire County Council,15-Oct-18,51300421418,"-1,711.36",AFFINITY TRUST,CARE ESTABLISHMENT,LD - Fenland Locality,LD - Fenland  - Care,Supported Living
Cambridgeshire County Council,15-Oct-18,51300421414,"-1,711.36",AFFINITY TRUST,CARE ESTABLISHMENT,LD - Fenland Locality,LD - Fenland  - Care,Supported Living
Cambridgeshire County Council,15-Oct-18,51300421415,"-1,711.36",AFFINITY TRUST,CARE ESTABLISHMENT,LD - Fenland Locality,LD - Fenland  - Care,Supported Living
Cambridgeshire County Council,15-Oct-18,51300411021,"-1,711.36",AFFINITY TRUST,CARE ESTABLISHMENT,LD - Fenland Locality,LD - Fenland  - Care,Supported Living
Cambridgeshire County Council,15-Oct-18,51300432145,"-1,711.36",AFFINITY TRUST,CARE ESTABLISHMENT,LD - Fenland Locality,LD - Fenland  - Care,Supported Living
Cambridgeshire County Council,15-Oct-18,51300432147,"-1,711.36",AFFINITY TRUST,CARE ESTABLISHMENT,LD - Fenland Locality,LD - Fenland  - Care,Supported Living
Cambridgeshire County Council,15-Oct-18,51300421411,"-1,711.36",AFFINITY TRUST,CARE ESTABLISHMENT,LD - Fenland Locality,LD - Fenland  - Care,Supported Living
Cambridgeshire County Council,15-Oct-18,51300432141,"-1,711.36",AFFINITY TRUST,CARE ESTABLISHMENT,LD - Fenland Locality,LD - Fenland  - Care,Supported Living
Cambridgeshire County Council,15-Oct-18,51300411010,"-1,711.36",AFFINITY TRUST,CARE ESTABLISHMENT,LD - Fenland Locality,LD - Fenland  - Care,Supported Living
Cambridgeshire County Council,15-Oct-18,51300411006,"-1,711.36",AFFINITY TRUST,CARE ESTABLISHMENT,LD - Fenland Locality,LD - Fenland  - Care,Supported Living
Cambridgeshire County Council,15-Oct-18,51300421407,"-1,711.36",AFFINITY TRUST,CARE ESTABLISHMENT,LD - Fenland Locality,LD - Fenland  - Care,Supported Living
Cambridgeshire County Council,15-Oct-18,51300432134,"-1,711.36",AFFINITY TRUST,CARE ESTABLISHMENT,LD - Fenland Locality,LD - Fenland  - Care,Supported Living
Cambridgeshire County Council,15-Oct-18,51300432137,"-1,711.36",AFFINITY TRUST,CARE ESTABLISHMENT,LD - Fenland Locality,LD - Fenland  - Care,Supported Living
Cambridgeshire County Council,15-Oct-18,51300432161,"-1,711.36",AFFINITY TRUST,CARE ESTABLISHMENT,LD - Fenland Locality,LD - Fenland  - Care,Supported Living
Cambridgeshire County Council,15-Oct-18,51300452292,"-1,711.36",AFFINITY TRUST,CARE ESTABLISHMENT,LD - Fenland Locality,LD - Fenland  - Care,Supported Living
Cambridgeshire County Council,15-Oct-18,51300411026,"-1,711.36",AFFINITY TRUST,CARE ESTABLISHMENT,LD - Fenland Locality,LD - Fenland  - Care,Supported Living
Cambridgeshire County Council,15-Oct-18,51300411031,"-1,711.36",AFFINITY TRUST,CARE ESTABLISHMENT,LD - Fenland Locality,LD - Fenland  - Care,Supported Living
Cambridgeshire County Council,15-Oct-18,51300440147,"-1,700.40",ALDERTON HOUSE,CARE ESTABLISHMENT,LD - Young Adults Team,LD - Young Adults - Special Needs,Residential Care
Cambridgeshire County Council,15-Oct-18,51300440126,"-1,700.40",ALDERTON HOUSE,CARE ESTABLISHMENT,LD - Young Adults Team,LD - Young Adults - Special Needs,Residential Care
Cambridgeshire County Council,15-Oct-18,51300440145,"-1,700.40",ALDERTON HOUSE,CARE ESTABLISHMENT,LD - Young Adults Team,LD - Young Adults - Special Needs,Residential Care
Cambridgeshire County Council,15-Oct-18,51300440132,"-1,700.40",ALDERTON HOUSE,CARE ESTABLISHMENT,LD - Young Adults Team,LD - Young Adults - Special Needs,Residential Care
Cambridgeshire County Council,15-Oct-18,51300440137,"-1,700.40",ALDERTON HOUSE,CARE ESTABLISHMENT,LD - Young Adults Team,LD - Young Adults - Special Needs,Residential Care
Cambridgeshire County Council,15-Oct-18,51300440139,"-1,700.40",ALDERTON HOUSE,CARE ESTABLISHMENT,LD - Young Adults Team,LD - Young Adults - Special Needs,Residential Care
Cambridgeshire County Council,15-Oct-18,51300440133,"-1,700.40",ALDERTON HOUSE,CARE ESTABLISHMENT,LD - Young Adults Team,LD - Young Adults - Special Needs,Residential Care
Cambridgeshire County Council,15-Oct-18,51300440135,"-1,700.40",ALDERTON HOUSE,CARE ESTABLISHMENT,LD - Young Adults Team,LD - Young Adults - Special Needs,Residential Care
Cambridgeshire County Council,19-Oct-18,51300472502,"-1,689.45",WESTMINSTER HOMECARE LIMITED,CARE ESTABLISHMENT,LD - East Locality,LD - East Cambs - Special Needs,Domiciliary Care
Cambridgeshire County Council,18-Oct-18,51300406992,"-1,673.93",THERA EAST ANGLIA,CARE ESTABLISHMENT,LD - East Locality,LD - East Cambs - Special Needs,Supported Living
Cambridgeshire County Council,18-Oct-18,51300406965,"-1,673.93",THERA EAST ANGLIA,CARE ESTABLISHMENT,LD - East Locality,LD - East Cambs - Special Needs,Supported Living
Cambridgeshire County Council,18-Oct-18,51300407026,"-1,673.93",THERA EAST ANGLIA,CARE ESTABLISHMENT,LD - East Locality,LD - East Cambs - Special Needs,Supported Living
Cambridgeshire County Council,18-Oct-18,51300407039,"-1,673.93",THERA EAST ANGLIA,CARE ESTABLISHMENT,LD - East Locality,LD - East Cambs - Special Needs,Supported Living
Cambridgeshire County Council,18-Oct-18,51300407005,"-1,673.93",THERA EAST ANGLIA,CARE ESTABLISHMENT,LD - East Locality,LD - East Cambs - Special Needs,Supported Living
Cambridgeshire County Council,18-Oct-18,51300407009,"-1,673.93",THERA EAST ANGLIA,CARE ESTABLISHMENT,LD - East Locality,LD - East Cambs - Special Needs,Supported Living
Cambridgeshire County Council,18-Oct-18,51300407027,"-1,673.93",THERA EAST ANGLIA,CARE ESTABLISHMENT,LD - East Locality,LD - East Cambs - Special Needs,Supported Living
Cambridgeshire County Council,18-Oct-18,51300407034,"-1,673.93",THERA EAST ANGLIA,CARE ESTABLISHMENT,LD - East Locality,LD - East Cambs - Special Needs,Supported Living
Cambridgeshire County Council,18-Oct-18,51300407015,"-1,673.93",THERA EAST ANGLIA,CARE ESTABLISHMENT,LD - East Locality,LD - East Cambs - Special Needs,Supported Living
Cambridgeshire County Council,18-Oct-18,51300406975,"-1,673.93",THERA EAST ANGLIA,CARE ESTABLISHMENT,LD - East Locality,LD - East Cambs - Special Needs,Supported Living
Cambridgeshire County Council,18-Oct-18,51300406995,"-1,673.93",THERA EAST ANGLIA,CARE ESTABLISHMENT,LD - East Locality,LD - East Cambs - Special Needs,Supported Living
Cambridgeshire County Council,18-Oct-18,51300406977,"-1,673.93",THERA EAST ANGLIA,CARE ESTABLISHMENT,LD - East Locality,LD - East Cambs - Special Needs,Supported Living
Cambridgeshire County Council,18-Oct-18,51300407002,"-1,673.93",THERA EAST ANGLIA,CARE ESTABLISHMENT,LD - East Locality,LD - East Cambs - Special Needs,Supported Living
Cambridgeshire County Council,18-Oct-18,51300406968,"-1,673.93",THERA EAST ANGLIA,CARE ESTABLISHMENT,LD - East Locality,LD - East Cambs - Special Needs,Supported Living
Cambridgeshire County Council,26-Oct-18,51300484211,"-1,608.00",RADIS COMMUNITY CARE,CARE ESTABLISHMENT,OP - East Cambs Extra Care,Ness Court,Domiciliary Care
Cambridgeshire County Council,19-Oct-18,51300469505,"-1,601.56",WESTMINSTER (ILN EAST),CARE ESTABLISHMENT,LD - East Locality,LD - East Cambs - Special Needs,Supported Living
Cambridgeshire County Council,19-Oct-18,51300473922,"-1,601.55",WESTMINSTER (ILN EAST),CARE ESTABLISHMENT,LD - East Locality,LD - East Cambs - Special Needs,Supported Living
Cambridgeshire County Council,05-Oct-18,51300280884,"-1,554.98",THE OAKS (EDMUND TRUST),TRADE SUPPLIER,LD - South Locality,LD - South Cambs - Special Needs,Residential Care
Cambridgeshire County Council,05-Oct-18,51300280863,"-1,554.98",THE OAKS (EDMUND TRUST),TRADE SUPPLIER,LD - South Locality,LD - South Cambs - Special Needs,Residential Care
Cambridgeshire County Council,05-Oct-18,51300280871,"-1,554.98",THE OAKS (EDMUND TRUST),TRADE SUPPLIER,LD - South Locality,LD - South Cambs - Special Needs,Residential Care
Cambridgeshire County Council,05-Oct-18,51300280865,"-1,554.98",THE OAKS (EDMUND TRUST),TRADE SUPPLIER,LD - South Locality,LD - South Cambs - Special Needs,Residential Care
Cambridgeshire County Council,05-Oct-18,51300280868,"-1,554.98",THE OAKS (EDMUND TRUST),TRADE SUPPLIER,LD - South Locality,LD - South Cambs - Special Needs,Residential Care
Cambridgeshire County Council,05-Oct-18,51300280878,"-1,554.98",THE OAKS (EDMUND TRUST),TRADE SUPPLIER,LD - South Locality,LD - South Cambs - Special Needs,Residential Care
Cambridgeshire County Council,19-Oct-18,51300481818,"-1,497.56",WESTMINSTER HOMECARE LIMITED,CARE ESTABLISHMENT,LD - East Locality,LD - East Cambs - Special Needs,Domiciliary Care
Cambridgeshire County Council,19-Oct-18,51300478017,"-1,493.65",WESTMINSTER (ILN EAST),CARE ESTABLISHMENT,LD - East Locality,LD - East Cambs - Special Needs,Supported Living
Cambridgeshire County Council,15-Oct-18,51300440148,"-1,457.49",ALDERTON HOUSE,CARE ESTABLISHMENT,LD - Young Adults Team,LD - Young Adults - Special Needs,Residential Care
Cambridgeshire County Council,18-Oct-18,51300441818,"-1,450.00",FITZROY SUPPORT RE 28 RIVERBANK,CARE ESTABLISHMENT,LD - Fenland Locality,LD - Fenland  - Special Needs,Supported Living
Cambridgeshire County Council,18-Oct-18,51300441824,"-1,450.00",FITZROY SUPPORT RE 28 RIVERBANK,CARE ESTABLISHMENT,LD - Fenland Locality,LD - Fenland  - Special Needs,Supported Living
Cambridgeshire County Council,18-Oct-18,51300441811,"-1,450.00",FITZROY SUPPORT RE 28 RIVERBANK,CARE ESTABLISHMENT,LD - Fenland Locality,LD - Fenland  - Special Needs,Supported Living
Cambridgeshire County Council,18-Oct-18,51300441808,"-1,450.00",FITZROY SUPPORT RE 28 RIVERBANK,CARE ESTABLISHMENT,LD - Fenland Locality,LD - Fenland  - Special Needs,Supported Living
Cambridgeshire County Council,18-Oct-18,51300441815,"-1,450.00",FITZROY SUPPORT RE 28 RIVERBANK,CARE ESTABLISHMENT,LD - Fenland Locality,LD - Fenland  - Special Needs,Supported Living
Cambridgeshire County Council,18-Oct-18,51300441812,"-1,450.00",FITZROY SUPPORT RE 28 RIVERBANK,CARE ESTABLISHMENT,LD - Fenland Locality,LD - Fenland  - Special Needs,Supported Living
Cambridgeshire County Council,18-Oct-18,51300441826,"-1,450.00",FITZROY SUPPORT RE 28 RIVERBANK,CARE ESTABLISHMENT,LD - Fenland Locality,LD - Fenland  - Special Needs,Supported Living
Cambridgeshire County Council,18-Oct-18,51300455227,"-1,450.00",FITZROY SUPPORT RE 28 RIVERBANK,CARE ESTABLISHMENT,LD - Fenland Locality,LD - Fenland  - Care,Supported Living
Cambridgeshire County Council,18-Oct-18,51300455224,"-1,450.00",FITZROY SUPPORT RE 28 RIVERBANK,CARE ESTABLISHMENT,LD - Fenland Locality,LD - Fenland  - Care,Supported Living
Cambridgeshire County Council,18-Oct-18,51300455220,"-1,450.00",FITZROY SUPPORT RE 28 RIVERBANK,CARE ESTABLISHMENT,LD - Fenland Locality,LD - Fenland  - Care,Supported Living
Cambridgeshire County Council,18-Oct-18,51300455217,"-1,450.00",FITZROY SUPPORT RE 28 RIVERBANK,CARE ESTABLISHMENT,LD - Fenland Locality,LD - Fenland  - Care,Supported Living
Cambridgeshire County Council,18-Oct-18,51300455214,"-1,450.00",FITZROY SUPPORT RE 28 RIVERBANK,CARE ESTABLISHMENT,LD - Fenland Locality,LD - Fenland  - Care,Supported Living
Cambridgeshire County Council,18-Oct-18,51300455213,"-1,450.00",FITZROY SUPPORT RE 28 RIVERBANK,CARE ESTABLISHMENT,LD - Fenland Locality,LD - Fenland  - Care,Supported Living
Cambridgeshire County Council,18-Oct-18,51300455230,"-1,450.00",FITZROY SUPPORT RE 28 RIVERBANK,CARE ESTABLISHMENT,LD - Fenland Locality,LD - Fenland  - Care,Supported Living
Cambridgeshire County Council,15-Oct-18,51300432262,"-1,428.56",SOCIAL CARE SOLUTIONS LTD,CARE ESTABLISHMENT,LD - Fenland Locality,LD - Fenland  - Special Needs,Supported Living
Cambridgeshire County Council,15-Oct-18,51300432179,"-1,428.56",SOCIAL CARE SOLUTIONS LTD,CARE ESTABLISHMENT,LD - Fenland Locality,LD - Fenland  - Special Needs,Supported Living
Cambridgeshire County Council,15-Oct-18,51300432237,"-1,428.56",SOCIAL CARE SOLUTIONS LTD,CARE ESTABLISHMENT,LD - Fenland Locality,LD - Fenland  - Special Needs,Supported Living
Cambridgeshire County Council,15-Oct-18,51300432206,"-1,428.56",SOCIAL CARE SOLUTIONS LTD,CARE ESTABLISHMENT,LD - Fenland Locality,LD - Fenland  - Special Needs,Supported Living
Cambridgeshire County Council,15-Oct-18,51300432278,"-1,428.56",SOCIAL CARE SOLUTIONS LTD,CARE ESTABLISHMENT,LD - Fenland Locality,LD - Fenland  - Special Needs,Supported Living
Cambridgeshire County Council,15-Oct-18,51300432251,"-1,428.56",SOCIAL CARE SOLUTIONS LTD,CARE ESTABLISHMENT,LD - Fenland Locality,LD - Fenland  - Special Needs,Supported Living
Cambridgeshire County Council,15-Oct-18,51300432272,"-1,428.56",SOCIAL CARE SOLUTIONS LTD,CARE ESTABLISHMENT,LD - Fenland Locality,LD - Fenland  - Special Needs,Supported Living
Cambridgeshire County Council,15-Oct-18,51300432243,"-1,428.56",SOCIAL CARE SOLUTIONS LTD,CARE ESTABLISHMENT,LD - Fenland Locality,LD - Fenland  - Special Needs,Supported Living
Cambridgeshire County Council,15-Oct-18,51300432187,"-1,428.56",SOCIAL CARE SOLUTIONS LTD,CARE ESTABLISHMENT,LD - Fenland Locality,LD - Fenland  - Special Needs,Supported Living
Cambridgeshire County Council,15-Oct-18,51300432214,"-1,428.56",SOCIAL CARE SOLUTIONS LTD,CARE ESTABLISHMENT,LD - Fenland Locality,LD - Fenland  - Special Needs,Supported Living
Cambridgeshire County Council,15-Oct-18,51300432174,"-1,428.56",SOCIAL CARE SOLUTIONS LTD,CARE ESTABLISHMENT,LD - Fenland Locality,LD - Fenland  - Special Needs,Supported Living
Cambridgeshire County Council,15-Oct-18,51300432209,"-1,428.56",SOCIAL CARE SOLUTIONS LTD,CARE ESTABLISHMENT,LD - Fenland Locality,LD - Fenland  - Special Needs,Supported Living
Cambridgeshire County Council,15-Oct-18,51300432172,"-1,428.56",SOCIAL CARE SOLUTIONS LTD,CARE ESTABLISHMENT,LD - Fenland Locality,LD - Fenland  - Special Needs,Supported Living
Cambridgeshire County Council,15-Oct-18,51300432192,"-1,428.56",SOCIAL CARE SOLUTIONS LTD,CARE ESTABLISHMENT,LD - Fenland Locality,LD - Fenland  - Special Needs,Supported Living
Cambridgeshire County Council,15-Oct-18,51300432283,"-1,428.56",SOCIAL CARE SOLUTIONS LTD,CARE ESTABLISHMENT,LD - Fenland Locality,LD - Fenland  - Special Needs,Supported Living
Cambridgeshire County Council,15-Oct-18,51300432223,"-1,428.56",SOCIAL CARE SOLUTIONS LTD,CARE ESTABLISHMENT,LD - Fenland Locality,LD - Fenland  - Special Needs,Supported Living
Cambridgeshire County Council,15-Oct-18,51300432290,"-1,428.56",SOCIAL CARE SOLUTIONS LTD,CARE ESTABLISHMENT,LD - Fenland Locality,LD - Fenland  - Special Needs,Supported Living
Cambridgeshire County Council,15-Oct-18,51300432184,"-1,428.56",SOCIAL CARE SOLUTIONS LTD,CARE ESTABLISHMENT,LD - Fenland Locality,LD - Fenland  - Special Needs,Supported Living
Cambridgeshire County Council,15-Oct-18,51300432230,"-1,428.56",SOCIAL CARE SOLUTIONS LTD,CARE ESTABLISHMENT,LD - Fenland Locality,LD - Fenland  - Special Needs,Supported Living
Cambridgeshire County Council,15-Oct-18,51300432250,"-1,428.56",SOCIAL CARE SOLUTIONS LTD,CARE ESTABLISHMENT,LD - Fenland Locality,LD - Fenland  - Special Needs,Supported Living
Cambridgeshire County Council,15-Oct-18,51300432166,"-1,428.56",SOCIAL CARE SOLUTIONS LTD,CARE ESTABLISHMENT,LD - Fenland Locality,LD - Fenland  - Special Needs,Supported Living
Cambridgeshire County Council,15-Oct-18,51300432242,"-1,428.56",SOCIAL CARE SOLUTIONS LTD,CARE ESTABLISHMENT,LD - Fenland Locality,LD - Fenland  - Special Needs,Supported Living
Cambridgeshire County Council,15-Oct-18,51300432229,"-1,428.56",SOCIAL CARE SOLUTIONS LTD,CARE ESTABLISHMENT,LD - Fenland Locality,LD - Fenland  - Special Needs,Supported Living
Cambridgeshire County Council,15-Oct-18,51300432167,"-1,428.56",SOCIAL CARE SOLUTIONS LTD,CARE ESTABLISHMENT,LD - Fenland Locality,LD - Fenland  - Special Needs,Supported Living
Cambridgeshire County Council,15-Oct-18,51300432226,"-1,428.56",SOCIAL CARE SOLUTIONS LTD,CARE ESTABLISHMENT,LD - Fenland Locality,LD - Fenland  - Special Needs,Supported Living
Cambridgeshire County Council,15-Oct-18,51300432200,"-1,428.56",SOCIAL CARE SOLUTIONS LTD,CARE ESTABLISHMENT,LD - Fenland Locality,LD - Fenland  - Special Needs,Supported Living
Cambridgeshire County Council,15-Oct-18,51300432177,"-1,428.56",SOCIAL CARE SOLUTIONS LTD,CARE ESTABLISHMENT,LD - Fenland Locality,LD - Fenland  - Special Needs,Supported Living
Cambridgeshire County Council,15-Oct-18,51300432165,"-1,428.56",SOCIAL CARE SOLUTIONS LTD,CARE ESTABLISHMENT,LD - Fenland Locality,LD - Fenland  - Special Needs,Supported Living
Cambridgeshire County Council,15-Oct-18,51300432271,"-1,428.56",SOCIAL CARE SOLUTIONS LTD,CARE ESTABLISHMENT,LD - Fenland Locality,LD - Fenland  - Special Needs,Supported Living
Cambridgeshire County Council,15-Oct-18,51300432247,"-1,428.56",SOCIAL CARE SOLUTIONS LTD,CARE ESTABLISHMENT,LD - Fenland Locality,LD - Fenland  - Special Needs,Supported Living
Cambridgeshire County Council,15-Oct-18,51300432260,"-1,428.56",SOCIAL CARE SOLUTIONS LTD,CARE ESTABLISHMENT,LD - Fenland Locality,LD - Fenland  - Special Needs,Supported Living
Cambridgeshire County Council,25-Oct-18,51300457036,"-1,328.44",CARE MANAGEMENT GROUP (64-66 CARLTON),CARE ESTABLISHMENT,LD - East Locality,LD - East Cambs - Special Needs,Residential Care
Cambridgeshire County Council,25-Oct-18,51300456981,"-1,328.44",CARE MANAGEMENT GROUP (64-66 CARLTON),CARE ESTABLISHMENT,LD - East Locality,LD - East Cambs - Special Needs,Residential Care
Cambridgeshire County Council,25-Oct-18,51300456943,"-1,328.44",CARE MANAGEMENT GROUP (64-66 CARLTON),CARE ESTABLISHMENT,LD - East Locality,LD - East Cambs - Special Needs,Residential Care
Cambridgeshire County Council,25-Oct-18,51300433410,"-1,328.44",CARE MANAGEMENT GROUP (64-66 CARLTON),CARE ESTABLISHMENT,LD - East Locality,LD - East Cambs - Special Needs,Residential Care
Cambridgeshire County Council,25-Oct-18,51300433329,"-1,328.44",CARE MANAGEMENT GROUP (64-66 CARLTON),CARE ESTABLISHMENT,LD - East Locality,LD - East Cambs - Special Needs,Residential Care
Cambridgeshire County Council,25-Oct-18,51300423941,"-1,328.44",CARE MANAGEMENT GROUP (64-66 CARLTON),CARE ESTABLISHMENT,LD - East Locality,LD - East Cambs - Special Needs,Residential Care
Cambridgeshire County Council,25-Oct-18,51300479738,"-1,328.44",CARE MANAGEMENT GROUP (64-66 CARLTON),CARE ESTABLISHMENT,LD - East Locality,LD - East Cambs - Special Needs,Residential Care
Cambridgeshire County Council,25-Oct-18,51300456904,"-1,328.44",CARE MANAGEMENT GROUP (64-66 CARLTON),CARE ESTABLISHMENT,LD - East Locality,LD - East Cambs - Special Needs,Residential Care
Cambridgeshire County Council,25-Oct-18,51300486693,"-1,328.44",CARE MANAGEMENT GROUP (64-66 CARLTON),CARE ESTABLISHMENT,LD - East Locality,LD - East Cambs - Special Needs,Residential Care
Cambridgeshire County Council,25-Oct-18,51300486686,"-1,328.44",CARE MANAGEMENT GROUP (64-66 CARLTON),CARE ESTABLISHMENT,LD - East Locality,LD - East Cambs - Special Needs,Residential Care
Cambridgeshire County Council,25-Oct-18,51300433348,"-1,328.44",CARE MANAGEMENT GROUP (64-66 CARLTON),CARE ESTABLISHMENT,LD - East Locality,LD - East Cambs - Special Needs,Residential Care
Cambridgeshire County Council,25-Oct-18,51300479792,"-1,328.44",CARE MANAGEMENT GROUP (64-66 CARLTON),CARE ESTABLISHMENT,LD - East Locality,LD - East Cambs - Special Needs,Residential Care
Cambridgeshire County Council,25-Oct-18,51300457020,"-1,328.44",CARE MANAGEMENT GROUP (64-66 CARLTON),CARE ESTABLISHMENT,LD - East Locality,LD - East Cambs - Special Needs,Residential Care
Cambridgeshire County Council,25-Oct-18,51300479747,"-1,328.44",CARE MANAGEMENT GROUP (64-66 CARLTON),CARE ESTABLISHMENT,LD - East Locality,LD - East Cambs - Special Needs,Residential Care
Cambridgeshire County Council,25-Oct-18,51300486784,"-1,328.44",CARE MANAGEMENT GROUP (64-66 CARLTON),CARE ESTABLISHMENT,LD - East Locality,LD - East Cambs - Special Needs,Residential Care
Cambridgeshire County Council,25-Oct-18,51300456920,"-1,328.44",CARE MANAGEMENT GROUP (64-66 CARLTON),CARE ESTABLISHMENT,LD - East Locality,LD - East Cambs - Special Needs,Residential Care
Cambridgeshire County Council,25-Oct-18,51300433313,"-1,328.44",CARE MANAGEMENT GROUP (64-66 CARLTON),CARE ESTABLISHMENT,LD - East Locality,LD - East Cambs - Special Needs,Residential Care
Cambridgeshire County Council,25-Oct-18,51300433339,"-1,328.44",CARE MANAGEMENT GROUP (64-66 CARLTON),CARE ESTABLISHMENT,LD - East Locality,LD - East Cambs - Special Needs,Residential Care
Cambridgeshire County Council,25-Oct-18,51300433304,"-1,328.44",CARE MANAGEMENT GROUP (64-66 CARLTON),CARE ESTABLISHMENT,LD - East Locality,LD - East Cambs - Special Needs,Residential Care
Cambridgeshire County Council,25-Oct-18,51300433417,"-1,328.44",CARE MANAGEMENT GROUP (64-66 CARLTON),CARE ESTABLISHMENT,LD - East Locality,LD - East Cambs - Special Needs,Residential Care
Cambridgeshire County Council,25-Oct-18,51300433349,"-1,328.44",CARE MANAGEMENT GROUP (64-66 CARLTON),CARE ESTABLISHMENT,LD - East Locality,LD - East Cambs - Special Needs,Residential Care
Cambridgeshire County Council,25-Oct-18,51300423998,"-1,328.44",CARE MANAGEMENT GROUP (64-66 CARLTON),CARE ESTABLISHMENT,LD - East Locality,LD - East Cambs - Special Needs,Residential Care
Cambridgeshire County Council,25-Oct-18,51300486715,"-1,328.44",CARE MANAGEMENT GROUP (64-66 CARLTON),CARE ESTABLISHMENT,LD - East Locality,LD - East Cambs - Special Needs,Residential Care
Cambridgeshire County Council,25-Oct-18,51300486747,"-1,328.44",CARE MANAGEMENT GROUP (64-66 CARLTON),CARE ESTABLISHMENT,LD - East Locality,LD - East Cambs - Special Needs,Residential Care
Cambridgeshire County Council,25-Oct-18,51300486817,"-1,328.44",CARE MANAGEMENT GROUP (64-66 CARLTON),CARE ESTABLISHMENT,LD - East Locality,LD - East Cambs - Special Needs,Residential Care
Cambridgeshire County Council,25-Oct-18,51300433346,"-1,328.44",CARE MANAGEMENT GROUP (64-66 CARLTON),CARE ESTABLISHMENT,LD - East Locality,LD - East Cambs - Special Needs,Residential Care
Cambridgeshire County Council,25-Oct-18,51300479763,"-1,328.44",CARE MANAGEMENT GROUP (64-66 CARLTON),CARE ESTABLISHMENT,LD - East Locality,LD - East Cambs - Special Needs,Residential Care
Cambridgeshire County Council,25-Oct-18,51300479735,"-1,328.44",CARE MANAGEMENT GROUP (64-66 CARLTON),CARE ESTABLISHMENT,LD - East Locality,LD - East Cambs - Special Needs,Residential Care
Cambridgeshire County Council,25-Oct-18,51300479769,"-1,328.44",CARE MANAGEMENT GROUP (64-66 CARLTON),CARE ESTABLISHMENT,LD - East Locality,LD - East Cambs - Special Needs,Residential Care
Cambridgeshire County Council,25-Oct-18,51300479811,"-1,328.44",CARE MANAGEMENT GROUP (64-66 CARLTON),CARE ESTABLISHMENT,LD - East Locality,LD - East Cambs - Special Needs,Residential Care
Cambridgeshire County Council,25-Oct-18,51300479790,"-1,328.44",CARE MANAGEMENT GROUP (64-66 CARLTON),CARE ESTABLISHMENT,LD - East Locality,LD - East Cambs - Special Needs,Residential Care
Cambridgeshire County Council,25-Oct-18,51300423948,"-1,328.44",CARE MANAGEMENT GROUP (64-66 CARLTON),CARE ESTABLISHMENT,LD - East Locality,LD - East Cambs - Special Needs,Residential Care
Cambridgeshire County Council,25-Oct-18,51300433312,"-1,328.44",CARE MANAGEMENT GROUP (64-66 CARLTON),CARE ESTABLISHMENT,LD - East Locality,LD - East Cambs - Special Needs,Residential Care
Cambridgeshire County Council,25-Oct-18,51300486724,"-1,328.44",CARE MANAGEMENT GROUP (64-66 CARLTON),CARE ESTABLISHMENT,LD - East Locality,LD - East Cambs - Special Needs,Residential Care
Cambridgeshire County Council,25-Oct-18,51300433331,"-1,328.44",CARE MANAGEMENT GROUP (64-66 CARLTON),CARE ESTABLISHMENT,LD - East Locality,LD - East Cambs - Special Needs,Residential Care
Cambridgeshire County Council,25-Oct-18,51300433351,"-1,328.44",CARE MANAGEMENT GROUP (64-66 CARLTON),CARE ESTABLISHMENT,LD - East Locality,LD - East Cambs - Special Needs,Residential Care
Cambridgeshire County Council,25-Oct-18,51300456929,"-1,328.44",CARE MANAGEMENT GROUP (64-66 CARLTON),CARE ESTABLISHMENT,LD - East Locality,LD - East Cambs - Special Needs,Residential Care
Cambridgeshire County Council,25-Oct-18,51300433408,"-1,328.44",CARE MANAGEMENT GROUP (64-66 CARLTON),CARE ESTABLISHMENT,LD - East Locality,LD - East Cambs - Special Needs,Residential Care
Cambridgeshire County Council,25-Oct-18,51300433416,"-1,328.44",CARE MANAGEMENT GROUP (64-66 CARLTON),CARE ESTABLISHMENT,LD - East Locality,LD - East Cambs - Special Needs,Residential Care
Cambridgeshire County Council,25-Oct-18,51300433347,"-1,328.44",CARE MANAGEMENT GROUP (64-66 CARLTON),CARE ESTABLISHMENT,LD - East Locality,LD - East Cambs - Special Needs,Residential Care
Cambridgeshire County Council,25-Oct-18,51300433360,"-1,328.44",CARE MANAGEMENT GROUP (64-66 CARLTON),CARE ESTABLISHMENT,LD - East Locality,LD - East Cambs - Special Needs,Residential Care
Cambridgeshire County Council,25-Oct-18,51300456978,"-1,328.44",CARE MANAGEMENT GROUP (64-66 CARLTON),CARE ESTABLISHMENT,LD - East Locality,LD - East Cambs - Special Needs,Residential Care
Cambridgeshire County Council,25-Oct-18,51300486671,"-1,328.44",CARE MANAGEMENT GROUP (64-66 CARLTON),CARE ESTABLISHMENT,LD - East Locality,LD - East Cambs - Special Needs,Residential Care
Cambridgeshire County Council,25-Oct-18,51300486702,"-1,328.44",CARE MANAGEMENT GROUP (64-66 CARLTON),CARE ESTABLISHMENT,LD - East Locality,LD - East Cambs - Special Needs,Residential Care
Cambridgeshire County Council,25-Oct-18,51300486722,"-1,328.44",CARE MANAGEMENT GROUP (64-66 CARLTON),CARE ESTABLISHMENT,LD - East Locality,LD - East Cambs - Special Needs,Residential Care
Cambridgeshire County Council,25-Oct-18,51300457010,"-1,328.44",CARE MANAGEMENT GROUP (64-66 CARLTON),CARE ESTABLISHMENT,LD - East Locality,LD - East Cambs - Special Needs,Residential Care
Cambridgeshire County Council,25-Oct-18,51300433397,"-1,328.44",CARE MANAGEMENT GROUP (64-66 CARLTON),CARE ESTABLISHMENT,LD - East Locality,LD - East Cambs - Special Needs,Residential Care
Cambridgeshire County Council,25-Oct-18,51300423970,"-1,328.44",CARE MANAGEMENT GROUP (64-66 CARLTON),CARE ESTABLISHMENT,LD - East Locality,LD - East Cambs - Special Needs,Residential Care
Cambridgeshire County Council,25-Oct-18,51300423995,"-1,328.44",CARE MANAGEMENT GROUP (64-66 CARLTON),CARE ESTABLISHMENT,LD - East Locality,LD - East Cambs - Special Needs,Residential Care
Cambridgeshire County Council,25-Oct-18,51300486713,"-1,328.44",CARE MANAGEMENT GROUP (64-66 CARLTON),CARE ESTABLISHMENT,LD - East Locality,LD - East Cambs - Special Needs,Residential Care
Cambridgeshire County Council,25-Oct-18,51300423936,"-1,328.44",CARE MANAGEMENT GROUP (64-66 CARLTON),CARE ESTABLISHMENT,LD - East Locality,LD - East Cambs - Special Needs,Residential Care
Cambridgeshire County Council,25-Oct-18,51300486676,"-1,328.44",CARE MANAGEMENT GROUP (64-66 CARLTON),CARE ESTABLISHMENT,LD - East Locality,LD - East Cambs - Special Needs,Residential Care
Cambridgeshire County Council,25-Oct-18,51300486737,"-1,328.44",CARE MANAGEMENT GROUP (64-66 CARLTON),CARE ESTABLISHMENT,LD - East Locality,LD - East Cambs - Special Needs,Residential Care
Cambridgeshire County Council,25-Oct-18,51300423903,"-1,328.44",CARE MANAGEMENT GROUP (64-66 CARLTON),CARE ESTABLISHMENT,LD - East Locality,LD - East Cambs - Special Needs,Residential Care
Cambridgeshire County Council,25-Oct-18,51300486681,"-1,328.44",CARE MANAGEMENT GROUP (64-66 CARLTON),CARE ESTABLISHMENT,LD - East Locality,LD - East Cambs - Special Needs,Residential Care
Cambridgeshire County Council,25-Oct-18,51300433448,"-1,328.44",CARE MANAGEMENT GROUP (64-66 CARLTON),CARE ESTABLISHMENT,LD - East Locality,LD - East Cambs - Special Needs,Residential Care
Cambridgeshire County Council,25-Oct-18,51300423922,"-1,328.44",CARE MANAGEMENT GROUP (64-66 CARLTON),CARE ESTABLISHMENT,LD - East Locality,LD - East Cambs - Special Needs,Residential Care
Cambridgeshire County Council,25-Oct-18,51300423901,"-1,328.44",CARE MANAGEMENT GROUP (64-66 CARLTON),CARE ESTABLISHMENT,LD - East Locality,LD - East Cambs - Special Needs,Residential Care
Cambridgeshire County Council,25-Oct-18,51300424007,"-1,328.44",CARE MANAGEMENT GROUP (64-66 CARLTON),CARE ESTABLISHMENT,LD - East Locality,LD - East Cambs - Special Needs,Residential Care
Cambridgeshire County Council,25-Oct-18,51300423962,"-1,328.44",CARE MANAGEMENT GROUP (64-66 CARLTON),CARE ESTABLISHMENT,LD - East Locality,LD - East Cambs - Special Needs,Residential Care
Cambridgeshire County Council,25-Oct-18,51300486758,"-1,328.44",CARE MANAGEMENT GROUP (64-66 CARLTON),CARE ESTABLISHMENT,LD - East Locality,LD - East Cambs - Special Needs,Residential Care
Cambridgeshire County Council,25-Oct-18,51300486683,"-1,328.44",CARE MANAGEMENT GROUP (64-66 CARLTON),CARE ESTABLISHMENT,LD - East Locality,LD - East Cambs - Special Needs,Residential Care
Cambridgeshire County Council,25-Oct-18,51300486793,"-1,328.44",CARE MANAGEMENT GROUP (64-66 CARLTON),CARE ESTABLISHMENT,LD - East Locality,LD - East Cambs - Special Needs,Residential Care
Cambridgeshire County Council,25-Oct-18,51300486800,"-1,328.44",CARE MANAGEMENT GROUP (64-66 CARLTON),CARE ESTABLISHMENT,LD - East Locality,LD - East Cambs - Special Needs,Residential Care
Cambridgeshire County Council,25-Oct-18,51300433428,"-1,328.44",CARE MANAGEMENT GROUP (64-66 CARLTON),CARE ESTABLISHMENT,LD - East Locality,LD - East Cambs - Special Needs,Residential Care
Cambridgeshire County Council,25-Oct-18,51300433443,"-1,328.44",CARE MANAGEMENT GROUP (64-66 CARLTON),CARE ESTABLISHMENT,LD - East Locality,LD - East Cambs - Special Needs,Residential Care
Cambridgeshire County Council,25-Oct-18,51300433390,"-1,328.44",CARE MANAGEMENT GROUP (64-66 CARLTON),CARE ESTABLISHMENT,LD - East Locality,LD - East Cambs - Special Needs,Residential Care
Cambridgeshire County Council,25-Oct-18,51300433394,"-1,328.44",CARE MANAGEMENT GROUP (64-66 CARLTON),CARE ESTABLISHMENT,LD - East Locality,LD - East Cambs - Special Needs,Residential Care
Cambridgeshire County Council,25-Oct-18,51300433424,"-1,328.44",CARE MANAGEMENT GROUP (64-66 CARLTON),CARE ESTABLISHMENT,LD - East Locality,LD - East Cambs - Special Needs,Residential Care
Cambridgeshire County Council,25-Oct-18,51300433395,"-1,328.44",CARE MANAGEMENT GROUP (64-66 CARLTON),CARE ESTABLISHMENT,LD - East Locality,LD - East Cambs - Special Needs,Residential Care
Cambridgeshire County Council,25-Oct-18,51300433407,"-1,328.44",CARE MANAGEMENT GROUP (64-66 CARLTON),CARE ESTABLISHMENT,LD - East Locality,LD - East Cambs - Special Needs,Residential Care
Cambridgeshire County Council,25-Oct-18,51300457028,"-1,328.44",CARE MANAGEMENT GROUP (64-66 CARLTON),CARE ESTABLISHMENT,LD - East Locality,LD - East Cambs - Special Needs,Residential Care
Cambridgeshire County Council,25-Oct-18,51300456950,"-1,328.44",CARE MANAGEMENT GROUP (64-66 CARLTON),CARE ESTABLISHMENT,LD - East Locality,LD - East Cambs - Special Needs,Residential Care
Cambridgeshire County Council,25-Oct-18,51300456994,"-1,328.44",CARE MANAGEMENT GROUP (64-66 CARLTON),CARE ESTABLISHMENT,LD - East Locality,LD - East Cambs - Special Needs,Residential Care
Cambridgeshire County Council,25-Oct-18,51300456889,"-1,328.44",CARE MANAGEMENT GROUP (64-66 CARLTON),CARE ESTABLISHMENT,LD - East Locality,LD - East Cambs - Special Needs,Residential Care
Cambridgeshire County Council,25-Oct-18,51300457019,"-1,328.44",CARE MANAGEMENT GROUP (64-66 CARLTON),CARE ESTABLISHMENT,LD - East Locality,LD - East Cambs - Special Needs,Residential Care
Cambridgeshire County Council,25-Oct-18,51300479728,"-1,328.44",CARE MANAGEMENT GROUP (64-66 CARLTON),CARE ESTABLISHMENT,LD - East Locality,LD - East Cambs - Special Needs,Residential Care
Cambridgeshire County Council,25-Oct-18,51300479756,"-1,328.44",CARE MANAGEMENT GROUP (64-66 CARLTON),CARE ESTABLISHMENT,LD - East Locality,LD - East Cambs - Special Needs,Residential Care
Cambridgeshire County Council,25-Oct-18,51300433441,"-1,328.44",CARE MANAGEMENT GROUP (64-66 CARLTON),CARE ESTABLISHMENT,LD - East Locality,LD - East Cambs - Special Needs,Residential Care
Cambridgeshire County Council,25-Oct-18,51300433442,"-1,328.44",CARE MANAGEMENT GROUP (64-66 CARLTON),CARE ESTABLISHMENT,LD - East Locality,LD - East Cambs - Special Needs,Residential Care
Cambridgeshire County Council,25-Oct-18,51300479815,"-1,328.44",CARE MANAGEMENT GROUP (64-66 CARLTON),CARE ESTABLISHMENT,LD - East Locality,LD - East Cambs - Special Needs,Residential Care
Cambridgeshire County Council,25-Oct-18,51300479692,"-1,328.44",CARE MANAGEMENT GROUP (64-66 CARLTON),CARE ESTABLISHMENT,LD - East Locality,LD - East Cambs - Special Needs,Residential Care
Cambridgeshire County Council,25-Oct-18,51300479780,"-1,328.44",CARE MANAGEMENT GROUP (64-66 CARLTON),CARE ESTABLISHMENT,LD - East Locality,LD - East Cambs - Special Needs,Residential Care
Cambridgeshire County Council,25-Oct-18,51300433386,"-1,328.44",CARE MANAGEMENT GROUP (64-66 CARLTON),CARE ESTABLISHMENT,LD - East Locality,LD - East Cambs - Special Needs,Residential Care
Cambridgeshire County Council,25-Oct-18,51300456913,"-1,328.44",CARE MANAGEMENT GROUP (64-66 CARLTON),CARE ESTABLISHMENT,LD - East Locality,LD - East Cambs - Special Needs,Residential Care
Cambridgeshire County Council,25-Oct-18,51300423906,"-1,328.44",CARE MANAGEMENT GROUP (64-66 CARLTON),CARE ESTABLISHMENT,LD - East Locality,LD - East Cambs - Special Needs,Residential Care
Cambridgeshire County Council,25-Oct-18,51300486771,"-1,328.44",CARE MANAGEMENT GROUP (64-66 CARLTON),CARE ESTABLISHMENT,LD - East Locality,LD - East Cambs - Special Needs,Residential Care
Cambridgeshire County Council,25-Oct-18,51300486712,"-1,328.44",CARE MANAGEMENT GROUP (64-66 CARLTON),CARE ESTABLISHMENT,LD - East Locality,LD - East Cambs - Special Needs,Residential Care
Cambridgeshire County Council,25-Oct-18,51300433423,"-1,328.44",CARE MANAGEMENT GROUP (64-66 CARLTON),CARE ESTABLISHMENT,LD - East Locality,LD - East Cambs - Special Needs,Residential Care
Cambridgeshire County Council,25-Oct-18,51300457000,"-1,328.44",CARE MANAGEMENT GROUP (64-66 CARLTON),CARE ESTABLISHMENT,LD - East Locality,LD - East Cambs - Special Needs,Residential Care
Cambridgeshire County Council,25-Oct-18,51300433302,"-1,328.44",CARE MANAGEMENT GROUP (64-66 CARLTON),CARE ESTABLISHMENT,LD - East Locality,LD - East Cambs - Special Needs,Residential Care
Cambridgeshire County Council,25-Oct-18,51300424022,"-1,328.44",CARE MANAGEMENT GROUP (64-66 CARLTON),CARE ESTABLISHMENT,LD - East Locality,LD - East Cambs - Special Needs,Residential Care
Cambridgeshire County Council,25-Oct-18,51300423967,"-1,328.44",CARE MANAGEMENT GROUP (64-66 CARLTON),CARE ESTABLISHMENT,LD - East Locality,LD - East Cambs - Special Needs,Residential Care
Cambridgeshire County Council,25-Oct-18,51300424010,"-1,328.44",CARE MANAGEMENT GROUP (64-66 CARLTON),CARE ESTABLISHMENT,LD - East Locality,LD - East Cambs - Special Needs,Residential Care
Cambridgeshire County Council,25-Oct-18,51300456977,"-1,328.44",CARE MANAGEMENT GROUP (64-66 CARLTON),CARE ESTABLISHMENT,LD - East Locality,LD - East Cambs - Special Needs,Residential Care
Cambridgeshire County Council,25-Oct-18,51300457032,"-1,328.44",CARE MANAGEMENT GROUP (64-66 CARLTON),CARE ESTABLISHMENT,LD - East Locality,LD - East Cambs - Special Needs,Residential Care
Cambridgeshire County Council,25-Oct-18,51300433315,"-1,328.44",CARE MANAGEMENT GROUP (64-66 CARLTON),CARE ESTABLISHMENT,LD - East Locality,LD - East Cambs - Special Needs,Residential Care
Cambridgeshire County Council,25-Oct-18,51300423933,"-1,328.44",CARE MANAGEMENT GROUP (64-66 CARLTON),CARE ESTABLISHMENT,LD - East Locality,LD - East Cambs - Special Needs,Residential Care
Cambridgeshire County Council,25-Oct-18,51300479691,"-1,328.44",CARE MANAGEMENT GROUP (64-66 CARLTON),CARE ESTABLISHMENT,LD - East Locality,LD - East Cambs - Special Needs,Residential Care
Cambridgeshire County Council,25-Oct-18,51300479785,"-1,328.44",CARE MANAGEMENT GROUP (64-66 CARLTON),CARE ESTABLISHMENT,LD - East Locality,LD - East Cambs - Special Needs,Residential Care
Cambridgeshire County Council,25-Oct-18,51300486729,"-1,328.44",CARE MANAGEMENT GROUP (64-66 CARLTON),CARE ESTABLISHMENT,LD - East Locality,LD - East Cambs - Special Needs,Residential Care
Cambridgeshire County Council,25-Oct-18,51300479710,"-1,328.44",CARE MANAGEMENT GROUP (64-66 CARLTON),CARE ESTABLISHMENT,LD - East Locality,LD - East Cambs - Special Needs,Residential Care
Cambridgeshire County Council,25-Oct-18,51300456922,"-1,328.44",CARE MANAGEMENT GROUP (64-66 CARLTON),CARE ESTABLISHMENT,LD - East Locality,LD - East Cambs - Special Needs,Residential Care
Cambridgeshire County Council,25-Oct-18,51300456954,"-1,328.44",CARE MANAGEMENT GROUP (64-66 CARLTON),CARE ESTABLISHMENT,LD - East Locality,LD - East Cambs - Special Needs,Residential Care
Cambridgeshire County Council,25-Oct-18,51300479689,"-1,328.44",CARE MANAGEMENT GROUP (64-66 CARLTON),CARE ESTABLISHMENT,LD - East Locality,LD - East Cambs - Special Needs,Residential Care
Cambridgeshire County Council,25-Oct-18,51300433445,"-1,328.44",CARE MANAGEMENT GROUP (64-66 CARLTON),CARE ESTABLISHMENT,LD - East Locality,LD - East Cambs - Special Needs,Residential Care
Cambridgeshire County Council,25-Oct-18,51300424009,"-1,328.44",CARE MANAGEMENT GROUP (64-66 CARLTON),CARE ESTABLISHMENT,LD - East Locality,LD - East Cambs - Special Needs,Residential Care
Cambridgeshire County Council,25-Oct-18,51300433345,"-1,328.44",CARE MANAGEMENT GROUP (64-66 CARLTON),CARE ESTABLISHMENT,LD - East Locality,LD - East Cambs - Special Needs,Residential Care
Cambridgeshire County Council,25-Oct-18,51300423968,"-1,328.44",CARE MANAGEMENT GROUP (64-66 CARLTON),CARE ESTABLISHMENT,LD - East Locality,LD - East Cambs - Special Needs,Residential Care
Cambridgeshire County Council,25-Oct-18,51300424024,"-1,328.44",CARE MANAGEMENT GROUP (64-66 CARLTON),CARE ESTABLISHMENT,LD - East Locality,LD - East Cambs - Special Needs,Residential Care
Cambridgeshire County Council,25-Oct-18,51300486789,"-1,328.44",CARE MANAGEMENT GROUP (64-66 CARLTON),CARE ESTABLISHMENT,LD - East Locality,LD - East Cambs - Special Needs,Residential Care
Cambridgeshire County Council,25-Oct-18,51300423988,"-1,328.44",CARE MANAGEMENT GROUP (64-66 CARLTON),CARE ESTABLISHMENT,LD - East Locality,LD - East Cambs - Special Needs,Residential Care
Cambridgeshire County Council,25-Oct-18,51300433432,"-1,328.44",CARE MANAGEMENT GROUP (64-66 CARLTON),CARE ESTABLISHMENT,LD - East Locality,LD - East Cambs - Special Needs,Residential Care
Cambridgeshire County Council,25-Oct-18,51300433405,"-1,328.44",CARE MANAGEMENT GROUP (64-66 CARLTON),CARE ESTABLISHMENT,LD - East Locality,LD - East Cambs - Special Needs,Residential Care
Cambridgeshire County Council,25-Oct-18,51300433343,"-1,328.44",CARE MANAGEMENT GROUP (64-66 CARLTON),CARE ESTABLISHMENT,LD - East Locality,LD - East Cambs - Special Needs,Residential Care
Cambridgeshire County Council,25-Oct-18,51300486670,"-1,328.44",CARE MANAGEMENT GROUP (64-66 CARLTON),CARE ESTABLISHMENT,LD - East Locality,LD - East Cambs - Special Needs,Residential Care
Cambridgeshire County Council,25-Oct-18,51300486779,"-1,328.44",CARE MANAGEMENT GROUP (64-66 CARLTON),CARE ESTABLISHMENT,LD - East Locality,LD - East Cambs - Special Needs,Residential Care
Cambridgeshire County Council,25-Oct-18,51300486732,"-1,328.44",CARE MANAGEMENT GROUP (64-66 CARLTON),CARE ESTABLISHMENT,LD - East Locality,LD - East Cambs - Special Needs,Residential Care
Cambridgeshire County Council,25-Oct-18,51300479722,"-1,328.44",CARE MANAGEMENT GROUP (64-66 CARLTON),CARE ESTABLISHMENT,LD - East Locality,LD - East Cambs - Special Needs,Residential Care
Cambridgeshire County Council,25-Oct-18,51300486777,"-1,328.44",CARE MANAGEMENT GROUP (64-66 CARLTON),CARE ESTABLISHMENT,LD - East Locality,LD - East Cambs - Special Needs,Residential Care
Cambridgeshire County Council,25-Oct-18,51300486668,"-1,328.44",CARE MANAGEMENT GROUP (64-66 CARLTON),CARE ESTABLISHMENT,LD - East Locality,LD - East Cambs - Special Needs,Residential Care
Cambridgeshire County Council,25-Oct-18,51300423937,"-1,328.44",CARE MANAGEMENT GROUP (64-66 CARLTON),CARE ESTABLISHMENT,LD - East Locality,LD - East Cambs - Special Needs,Residential Care
Cambridgeshire County Council,25-Oct-18,51300486783,"-1,328.44",CARE MANAGEMENT GROUP (64-66 CARLTON),CARE ESTABLISHMENT,LD - East Locality,LD - East Cambs - Special Needs,Residential Care
Cambridgeshire County Council,25-Oct-18,51300486812,"-1,328.44",CARE MANAGEMENT GROUP (64-66 CARLTON),CARE ESTABLISHMENT,LD - East Locality,LD - East Cambs - Special Needs,Residential Care
Cambridgeshire County Council,25-Oct-18,51300486743,"-1,328.44",CARE MANAGEMENT GROUP (64-66 CARLTON),CARE ESTABLISHMENT,LD - East Locality,LD - East Cambs - Special Needs,Residential Care
Cambridgeshire County Council,25-Oct-18,51300486718,"-1,328.44",CARE MANAGEMENT GROUP (64-66 CARLTON),CARE ESTABLISHMENT,LD - East Locality,LD - East Cambs - Special Needs,Residential Care
Cambridgeshire County Council,25-Oct-18,51300479757,"-1,328.44",CARE MANAGEMENT GROUP (64-66 CARLTON),CARE ESTABLISHMENT,LD - East Locality,LD - East Cambs - Special Needs,Residential Care
Cambridgeshire County Council,25-Oct-18,51300433387,"-1,328.44",CARE MANAGEMENT GROUP (64-66 CARLTON),CARE ESTABLISHMENT,LD - East Locality,LD - East Cambs - Special Needs,Residential Care
Cambridgeshire County Council,25-Oct-18,51300479798,"-1,328.44",CARE MANAGEMENT GROUP (64-66 CARLTON),CARE ESTABLISHMENT,LD - East Locality,LD - East Cambs - Special Needs,Residential Care
Cambridgeshire County Council,25-Oct-18,51300479702,"-1,328.44",CARE MANAGEMENT GROUP (64-66 CARLTON),CARE ESTABLISHMENT,LD - East Locality,LD - East Cambs - Special Needs,Residential Care
Cambridgeshire County Council,25-Oct-18,51300486733,"-1,328.44",CARE MANAGEMENT GROUP (64-66 CARLTON),CARE ESTABLISHMENT,LD - East Locality,LD - East Cambs - Special Needs,Residential Care
Cambridgeshire County Council,25-Oct-18,51300486797,"-1,328.44",CARE MANAGEMENT GROUP (64-66 CARLTON),CARE ESTABLISHMENT,LD - East Locality,LD - East Cambs - Special Needs,Residential Care
Cambridgeshire County Council,25-Oct-18,51300479734,"-1,328.44",CARE MANAGEMENT GROUP (64-66 CARLTON),CARE ESTABLISHMENT,LD - East Locality,LD - East Cambs - Special Needs,Residential Care
Cambridgeshire County Council,25-Oct-18,51300486684,"-1,328.44",CARE MANAGEMENT GROUP (64-66 CARLTON),CARE ESTABLISHMENT,LD - East Locality,LD - East Cambs - Special Needs,Residential Care
Cambridgeshire County Council,25-Oct-18,51300456947,"-1,328.44",CARE MANAGEMENT GROUP (64-66 CARLTON),CARE ESTABLISHMENT,LD - East Locality,LD - East Cambs - Special Needs,Residential Care
Cambridgeshire County Council,25-Oct-18,51300479714,"-1,328.44",CARE MANAGEMENT GROUP (64-66 CARLTON),CARE ESTABLISHMENT,LD - East Locality,LD - East Cambs - Special Needs,Residential Care
Cambridgeshire County Council,25-Oct-18,51300479807,"-1,328.44",CARE MANAGEMENT GROUP (64-66 CARLTON),CARE ESTABLISHMENT,LD - East Locality,LD - East Cambs - Special Needs,Residential Care
Cambridgeshire County Council,25-Oct-18,51300456895,"-1,328.44",CARE MANAGEMENT GROUP (64-66 CARLTON),CARE ESTABLISHMENT,LD - East Locality,LD - East Cambs - Special Needs,Residential Care
Cambridgeshire County Council,25-Oct-18,51300424032,"-1,328.44",CARE MANAGEMENT GROUP (64-66 CARLTON),CARE ESTABLISHMENT,LD - East Locality,LD - East Cambs - Special Needs,Residential Care
Cambridgeshire County Council,25-Oct-18,51300456910,"-1,328.44",CARE MANAGEMENT GROUP (64-66 CARLTON),CARE ESTABLISHMENT,LD - East Locality,LD - East Cambs - Special Needs,Residential Care
Cambridgeshire County Council,25-Oct-18,51300479808,"-1,328.44",CARE MANAGEMENT GROUP (64-66 CARLTON),CARE ESTABLISHMENT,LD - East Locality,LD - East Cambs - Special Needs,Residential Care
Cambridgeshire County Council,25-Oct-18,51300486716,"-1,328.44",CARE MANAGEMENT GROUP (64-66 CARLTON),CARE ESTABLISHMENT,LD - East Locality,LD - East Cambs - Special Needs,Residential Care
Cambridgeshire County Council,25-Oct-18,51300456936,"-1,328.44",CARE MANAGEMENT GROUP (64-66 CARLTON),CARE ESTABLISHMENT,LD - East Locality,LD - East Cambs - Special Needs,Residential Care
Cambridgeshire County Council,25-Oct-18,51300479688,"-1,328.44",CARE MANAGEMENT GROUP (64-66 CARLTON),CARE ESTABLISHMENT,LD - East Locality,LD - East Cambs - Special Needs,Residential Care
Cambridgeshire County Council,25-Oct-18,51300486731,"-1,328.44",CARE MANAGEMENT GROUP (64-66 CARLTON),CARE ESTABLISHMENT,LD - East Locality,LD - East Cambs - Special Needs,Residential Care
Cambridgeshire County Council,25-Oct-18,51300486674,"-1,328.44",CARE MANAGEMENT GROUP (64-66 CARLTON),CARE ESTABLISHMENT,LD - East Locality,LD - East Cambs - Special Needs,Residential Care
Cambridgeshire County Council,25-Oct-18,51300433375,"-1,328.44",CARE MANAGEMENT GROUP (64-66 CARLTON),CARE ESTABLISHMENT,LD - East Locality,LD - East Cambs - Special Needs,Residential Care
Cambridgeshire County Council,25-Oct-18,51300486695,"-1,328.44",CARE MANAGEMENT GROUP (64-66 CARLTON),CARE ESTABLISHMENT,LD - East Locality,LD - East Cambs - Special Needs,Residential Care
Cambridgeshire County Council,25-Oct-18,51300486680,"-1,328.44",CARE MANAGEMENT GROUP (64-66 CARLTON),CARE ESTABLISHMENT,LD - East Locality,LD - East Cambs - Special Needs,Residential Care
Cambridgeshire County Council,25-Oct-18,51300433414,"-1,328.44",CARE MANAGEMENT GROUP (64-66 CARLTON),CARE ESTABLISHMENT,LD - East Locality,LD - East Cambs - Special Needs,Residential Care
Cambridgeshire County Council,25-Oct-18,51300423949,"-1,328.44",CARE MANAGEMENT GROUP (64-66 CARLTON),CARE ESTABLISHMENT,LD - East Locality,LD - East Cambs - Special Needs,Residential Care
Cambridgeshire County Council,25-Oct-18,51300433321,"-1,328.44",CARE MANAGEMENT GROUP (64-66 CARLTON),CARE ESTABLISHMENT,LD - East Locality,LD - East Cambs - Special Needs,Residential Care
Cambridgeshire County Council,25-Oct-18,51300423984,"-1,328.44",CARE MANAGEMENT GROUP (64-66 CARLTON),CARE ESTABLISHMENT,LD - East Locality,LD - East Cambs - Special Needs,Residential Care
Cambridgeshire County Council,25-Oct-18,51300433381,"-1,328.44",CARE MANAGEMENT GROUP (64-66 CARLTON),CARE ESTABLISHMENT,LD - East Locality,LD - East Cambs - Special Needs,Residential Care
Cambridgeshire County Council,25-Oct-18,51300479794,"-1,328.44",CARE MANAGEMENT GROUP (64-66 CARLTON),CARE ESTABLISHMENT,LD - East Locality,LD - East Cambs - Special Needs,Residential Care
Cambridgeshire County Council,25-Oct-18,51300479684,"-1,328.44",CARE MANAGEMENT GROUP (64-66 CARLTON),CARE ESTABLISHMENT,LD - East Locality,LD - East Cambs - Special Needs,Residential Care
Cambridgeshire County Council,25-Oct-18,51300423904,"-1,328.44",CARE MANAGEMENT GROUP (64-66 CARLTON),CARE ESTABLISHMENT,LD - East Locality,LD - East Cambs - Special Needs,Residential Care
Cambridgeshire County Council,25-Oct-18,51300423927,"-1,328.44",CARE MANAGEMENT GROUP (64-66 CARLTON),CARE ESTABLISHMENT,LD - East Locality,LD - East Cambs - Special Needs,Residential Care
Cambridgeshire County Council,25-Oct-18,51300479762,"-1,328.44",CARE MANAGEMENT GROUP (64-66 CARLTON),CARE ESTABLISHMENT,LD - East Locality,LD - East Cambs - Special Needs,Residential Care
Cambridgeshire County Council,25-Oct-18,51300433434,"-1,328.44",CARE MANAGEMENT GROUP (64-66 CARLTON),CARE ESTABLISHMENT,LD - East Locality,LD - East Cambs - Special Needs,Residential Care
Cambridgeshire County Council,25-Oct-18,51300433393,"-1,328.44",CARE MANAGEMENT GROUP (64-66 CARLTON),CARE ESTABLISHMENT,LD - East Locality,LD - East Cambs - Special Needs,Residential Care
Cambridgeshire County Council,25-Oct-18,51300433444,"-1,328.44",CARE MANAGEMENT GROUP (64-66 CARLTON),CARE ESTABLISHMENT,LD - East Locality,LD - East Cambs - Special Needs,Residential Care
Cambridgeshire County Council,25-Oct-18,51300433425,"-1,328.44",CARE MANAGEMENT GROUP (64-66 CARLTON),CARE ESTABLISHMENT,LD - East Locality,LD - East Cambs - Special Needs,Residential Care
Cambridgeshire County Council,25-Oct-18,51300433319,"-1,328.44",CARE MANAGEMENT GROUP (64-66 CARLTON),CARE ESTABLISHMENT,LD - East Locality,LD - East Cambs - Special Needs,Residential Care
Cambridgeshire County Council,25-Oct-18,51300433305,"-1,328.44",CARE MANAGEMENT GROUP (64-66 CARLTON),CARE ESTABLISHMENT,LD - East Locality,LD - East Cambs - Special Needs,Residential Care
Cambridgeshire County Council,25-Oct-18,51300456998,"-1,328.44",CARE MANAGEMENT GROUP (64-66 CARLTON),CARE ESTABLISHMENT,LD - East Locality,LD - East Cambs - Special Needs,Residential Care
Cambridgeshire County Council,25-Oct-18,51300424023,"-1,328.44",CARE MANAGEMENT GROUP (64-66 CARLTON),CARE ESTABLISHMENT,LD - East Locality,LD - East Cambs - Special Needs,Residential Care
Cambridgeshire County Council,25-Oct-18,51300423966,"-1,328.44",CARE MANAGEMENT GROUP (64-66 CARLTON),CARE ESTABLISHMENT,LD - East Locality,LD - East Cambs - Special Needs,Residential Care
Cambridgeshire County Council,25-Oct-18,51300423991,"-1,328.44",CARE MANAGEMENT GROUP (64-66 CARLTON),CARE ESTABLISHMENT,LD - East Locality,LD - East Cambs - Special Needs,Residential Care
Cambridgeshire County Council,25-Oct-18,51300479707,"-1,328.44",CARE MANAGEMENT GROUP (64-66 CARLTON),CARE ESTABLISHMENT,LD - East Locality,LD - East Cambs - Special Needs,Residential Care
Cambridgeshire County Council,25-Oct-18,51300479719,"-1,328.44",CARE MANAGEMENT GROUP (64-66 CARLTON),CARE ESTABLISHMENT,LD - East Locality,LD - East Cambs - Special Needs,Residential Care
Cambridgeshire County Council,25-Oct-18,51300479708,"-1,328.44",CARE MANAGEMENT GROUP (64-66 CARLTON),CARE ESTABLISHMENT,LD - East Locality,LD - East Cambs - Special Needs,Residential Care
Cambridgeshire County Council,25-Oct-18,51300479697,"-1,328.44",CARE MANAGEMENT GROUP (64-66 CARLTON),CARE ESTABLISHMENT,LD - East Locality,LD - East Cambs - Special Needs,Residential Care
Cambridgeshire County Council,25-Oct-18,51300423990,"-1,328.44",CARE MANAGEMENT GROUP (64-66 CARLTON),CARE ESTABLISHMENT,LD - East Locality,LD - East Cambs - Special Needs,Residential Care
Cambridgeshire County Council,25-Oct-18,51300456906,"-1,328.44",CARE MANAGEMENT GROUP (64-66 CARLTON),CARE ESTABLISHMENT,LD - East Locality,LD - East Cambs - Special Needs,Residential Care
Cambridgeshire County Council,25-Oct-18,51300457034,"-1,328.44",CARE MANAGEMENT GROUP (64-66 CARLTON),CARE ESTABLISHMENT,LD - East Locality,LD - East Cambs - Special Needs,Residential Care
Cambridgeshire County Council,25-Oct-18,51300423896,"-1,328.44",CARE MANAGEMENT GROUP (64-66 CARLTON),CARE ESTABLISHMENT,LD - East Locality,LD - East Cambs - Special Needs,Residential Care
Cambridgeshire County Council,25-Oct-18,51300423910,"-1,328.44",CARE MANAGEMENT GROUP (64-66 CARLTON),CARE ESTABLISHMENT,LD - East Locality,LD - East Cambs - Special Needs,Residential Care
Cambridgeshire County Council,25-Oct-18,51300456946,"-1,328.44",CARE MANAGEMENT GROUP (64-66 CARLTON),CARE ESTABLISHMENT,LD - East Locality,LD - East Cambs - Special Needs,Residential Care
Cambridgeshire County Council,25-Oct-18,51300456897,"-1,328.44",CARE MANAGEMENT GROUP (64-66 CARLTON),CARE ESTABLISHMENT,LD - East Locality,LD - East Cambs - Special Needs,Residential Care
Cambridgeshire County Council,25-Oct-18,51300456958,"-1,328.44",CARE MANAGEMENT GROUP (64-66 CARLTON),CARE ESTABLISHMENT,LD - East Locality,LD - East Cambs - Special Needs,Residential Care
Cambridgeshire County Council,25-Oct-18,51300457038,"-1,328.44",CARE MANAGEMENT GROUP (64-66 CARLTON),CARE ESTABLISHMENT,LD - East Locality,LD - East Cambs - Special Needs,Residential Care
Cambridgeshire County Council,25-Oct-18,51300433303,"-1,328.44",CARE MANAGEMENT GROUP (64-66 CARLTON),CARE ESTABLISHMENT,LD - East Locality,LD - East Cambs - Special Needs,Residential Care
Cambridgeshire County Council,25-Oct-18,51300433320,"-1,328.44",CARE MANAGEMENT GROUP (64-66 CARLTON),CARE ESTABLISHMENT,LD - East Locality,LD - East Cambs - Special Needs,Residential Care
Cambridgeshire County Council,25-Oct-18,51300456933,"-1,328.44",CARE MANAGEMENT GROUP (64-66 CARLTON),CARE ESTABLISHMENT,LD - East Locality,LD - East Cambs - Special Needs,Residential Care
Cambridgeshire County Council,25-Oct-18,51300424002,"-1,328.44",CARE MANAGEMENT GROUP (64-66 CARLTON),CARE ESTABLISHMENT,LD - East Locality,LD - East Cambs - Special Needs,Residential Care
Cambridgeshire County Council,25-Oct-18,51300424003,"-1,328.44",CARE MANAGEMENT GROUP (64-66 CARLTON),CARE ESTABLISHMENT,LD - East Locality,LD - East Cambs - Special Needs,Residential Care
Cambridgeshire County Council,25-Oct-18,51300423981,"-1,328.44",CARE MANAGEMENT GROUP (64-66 CARLTON),CARE ESTABLISHMENT,LD - East Locality,LD - East Cambs - Special Needs,Residential Care
Cambridgeshire County Council,25-Oct-18,51300424005,"-1,328.44",CARE MANAGEMENT GROUP (64-66 CARLTON),CARE ESTABLISHMENT,LD - East Locality,LD - East Cambs - Special Needs,Residential Care
Cambridgeshire County Council,25-Oct-18,51300456967,"-1,328.44",CARE MANAGEMENT GROUP (64-66 CARLTON),CARE ESTABLISHMENT,LD - East Locality,LD - East Cambs - Special Needs,Residential Care
Cambridgeshire County Council,25-Oct-18,51300456923,"-1,328.44",CARE MANAGEMENT GROUP (64-66 CARLTON),CARE ESTABLISHMENT,LD - East Locality,LD - East Cambs - Special Needs,Residential Care
Cambridgeshire County Council,25-Oct-18,51300479700,"-1,328.44",CARE MANAGEMENT GROUP (64-66 CARLTON),CARE ESTABLISHMENT,LD - East Locality,LD - East Cambs - Special Needs,Residential Care
Cambridgeshire County Council,25-Oct-18,51300457030,"-1,328.44",CARE MANAGEMENT GROUP (64-66 CARLTON),CARE ESTABLISHMENT,LD - East Locality,LD - East Cambs - Special Needs,Residential Care
Cambridgeshire County Council,25-Oct-18,51300456934,"-1,328.44",CARE MANAGEMENT GROUP (64-66 CARLTON),CARE ESTABLISHMENT,LD - East Locality,LD - East Cambs - Special Needs,Residential Care
Cambridgeshire County Council,25-Oct-18,51300456941,"-1,328.44",CARE MANAGEMENT GROUP (64-66 CARLTON),CARE ESTABLISHMENT,LD - East Locality,LD - East Cambs - Special Needs,Residential Care
Cambridgeshire County Council,25-Oct-18,51300479698,"-1,328.44",CARE MANAGEMENT GROUP (64-66 CARLTON),CARE ESTABLISHMENT,LD - East Locality,LD - East Cambs - Special Needs,Residential Care
Cambridgeshire County Council,25-Oct-18,51300457037,"-1,328.44",CARE MANAGEMENT GROUP (64-66 CARLTON),CARE ESTABLISHMENT,LD - East Locality,LD - East Cambs - Special Needs,Residential Care
Cambridgeshire County Council,25-Oct-18,51300479804,"-1,328.44",CARE MANAGEMENT GROUP (64-66 CARLTON),CARE ESTABLISHMENT,LD - East Locality,LD - East Cambs - Special Needs,Residential Care
Cambridgeshire County Council,25-Oct-18,51300479717,"-1,328.44",CARE MANAGEMENT GROUP (64-66 CARLTON),CARE ESTABLISHMENT,LD - East Locality,LD - East Cambs - Special Needs,Residential Care
Cambridgeshire County Council,25-Oct-18,51300479784,"-1,328.44",CARE MANAGEMENT GROUP (64-66 CARLTON),CARE ESTABLISHMENT,LD - East Locality,LD - East Cambs - Special Needs,Residential Care
Cambridgeshire County Council,25-Oct-18,51300479803,"-1,328.44",CARE MANAGEMENT GROUP (64-66 CARLTON),CARE ESTABLISHMENT,LD - East Locality,LD - East Cambs - Special Needs,Residential Care
Cambridgeshire County Council,25-Oct-18,51300479801,"-1,328.44",CARE MANAGEMENT GROUP (64-66 CARLTON),CARE ESTABLISHMENT,LD - East Locality,LD - East Cambs - Special Needs,Residential Care
Cambridgeshire County Council,25-Oct-18,51300479771,"-1,328.44",CARE MANAGEMENT GROUP (64-66 CARLTON),CARE ESTABLISHMENT,LD - East Locality,LD - East Cambs - Special Needs,Residential Care
Cambridgeshire County Council,25-Oct-18,51300486791,"-1,328.44",CARE MANAGEMENT GROUP (64-66 CARLTON),CARE ESTABLISHMENT,LD - East Locality,LD - East Cambs - Special Needs,Residential Care
Cambridgeshire County Council,25-Oct-18,51300423934,"-1,328.44",CARE MANAGEMENT GROUP (64-66 CARLTON),CARE ESTABLISHMENT,LD - East Locality,LD - East Cambs - Special Needs,Residential Care
Cambridgeshire County Council,25-Oct-18,51300433402,"-1,328.44",CARE MANAGEMENT GROUP (64-66 CARLTON),CARE ESTABLISHMENT,LD - East Locality,LD - East Cambs - Special Needs,Residential Care
Cambridgeshire County Council,25-Oct-18,51300479826,"-1,328.44",CARE MANAGEMENT GROUP (64-66 CARLTON),CARE ESTABLISHMENT,LD - East Locality,LD - East Cambs - Special Needs,Residential Care
Cambridgeshire County Council,25-Oct-18,51300479772,"-1,328.44",CARE MANAGEMENT GROUP (64-66 CARLTON),CARE ESTABLISHMENT,LD - East Locality,LD - East Cambs - Special Needs,Residential Care
Cambridgeshire County Council,25-Oct-18,51300486794,"-1,328.44",CARE MANAGEMENT GROUP (64-66 CARLTON),CARE ESTABLISHMENT,LD - East Locality,LD - East Cambs - Special Needs,Residential Care
Cambridgeshire County Council,25-Oct-18,51300486796,"-1,328.44",CARE MANAGEMENT GROUP (64-66 CARLTON),CARE ESTABLISHMENT,LD - East Locality,LD - East Cambs - Special Needs,Residential Care
Cambridgeshire County Council,25-Oct-18,51300423935,"-1,328.44",CARE MANAGEMENT GROUP (64-66 CARLTON),CARE ESTABLISHMENT,LD - East Locality,LD - East Cambs - Special Needs,Residential Care
Cambridgeshire County Council,25-Oct-18,51300424029,"-1,328.44",CARE MANAGEMENT GROUP (64-66 CARLTON),CARE ESTABLISHMENT,LD - East Locality,LD - East Cambs - Special Needs,Residential Care
Cambridgeshire County Council,25-Oct-18,51300456964,"-1,328.44",CARE MANAGEMENT GROUP (64-66 CARLTON),CARE ESTABLISHMENT,LD - East Locality,LD - East Cambs - Special Needs,Residential Care
Cambridgeshire County Council,25-Oct-18,51300456976,"-1,328.44",CARE MANAGEMENT GROUP (64-66 CARLTON),CARE ESTABLISHMENT,LD - East Locality,LD - East Cambs - Special Needs,Residential Care
Cambridgeshire County Council,25-Oct-18,51300456901,"-1,328.44",CARE MANAGEMENT GROUP (64-66 CARLTON),CARE ESTABLISHMENT,LD - East Locality,LD - East Cambs - Special Needs,Residential Care
Cambridgeshire County Council,25-Oct-18,51300479682,"-1,328.44",CARE MANAGEMENT GROUP (64-66 CARLTON),CARE ESTABLISHMENT,LD - East Locality,LD - East Cambs - Special Needs,Residential Care
Cambridgeshire County Council,25-Oct-18,51300423972,"-1,328.44",CARE MANAGEMENT GROUP (64-66 CARLTON),CARE ESTABLISHMENT,LD - East Locality,LD - East Cambs - Special Needs,Residential Care
Cambridgeshire County Council,25-Oct-18,51300433409,"-1,328.44",CARE MANAGEMENT GROUP (64-66 CARLTON),CARE ESTABLISHMENT,LD - East Locality,LD - East Cambs - Special Needs,Residential Care
Cambridgeshire County Council,25-Oct-18,51300423925,"-1,328.44",CARE MANAGEMENT GROUP (64-66 CARLTON),CARE ESTABLISHMENT,LD - East Locality,LD - East Cambs - Special Needs,Residential Care
Cambridgeshire County Council,25-Oct-18,51300479687,"-1,328.44",CARE MANAGEMENT GROUP (64-66 CARLTON),CARE ESTABLISHMENT,LD - East Locality,LD - East Cambs - Special Needs,Residential Care
Cambridgeshire County Council,25-Oct-18,51300486790,"-1,328.44",CARE MANAGEMENT GROUP (64-66 CARLTON),CARE ESTABLISHMENT,LD - East Locality,LD - East Cambs - Special Needs,Residential Care
Cambridgeshire County Council,25-Oct-18,51300486739,"-1,328.44",CARE MANAGEMENT GROUP (64-66 CARLTON),CARE ESTABLISHMENT,LD - East Locality,LD - East Cambs - Special Needs,Residential Care
Cambridgeshire County Council,25-Oct-18,51300423945,"-1,328.44",CARE MANAGEMENT GROUP (64-66 CARLTON),CARE ESTABLISHMENT,LD - East Locality,LD - East Cambs - Special Needs,Residential Care
Cambridgeshire County Council,25-Oct-18,51300456924,"-1,328.44",CARE MANAGEMENT GROUP (64-66 CARLTON),CARE ESTABLISHMENT,LD - East Locality,LD - East Cambs - Special Needs,Residential Care
Cambridgeshire County Council,25-Oct-18,51300456974,"-1,328.44",CARE MANAGEMENT GROUP (64-66 CARLTON),CARE ESTABLISHMENT,LD - East Locality,LD - East Cambs - Special Needs,Residential Care
Cambridgeshire County Council,25-Oct-18,51300479699,"-1,328.44",CARE MANAGEMENT GROUP (64-66 CARLTON),CARE ESTABLISHMENT,LD - East Locality,LD - East Cambs - Special Needs,Residential Care
Cambridgeshire County Council,25-Oct-18,51300433429,"-1,328.44",CARE MANAGEMENT GROUP (64-66 CARLTON),CARE ESTABLISHMENT,LD - East Locality,LD - East Cambs - Special Needs,Residential Care
Cambridgeshire County Council,25-Oct-18,51300423914,"-1,328.44",CARE MANAGEMENT GROUP (64-66 CARLTON),CARE ESTABLISHMENT,LD - East Locality,LD - East Cambs - Special Needs,Residential Care
Cambridgeshire County Council,25-Oct-18,51300486662,"-1,328.44",CARE MANAGEMENT GROUP (64-66 CARLTON),CARE ESTABLISHMENT,LD - East Locality,LD - East Cambs - Special Needs,Residential Care
Cambridgeshire County Council,25-Oct-18,51300486811,"-1,328.44",CARE MANAGEMENT GROUP (64-66 CARLTON),CARE ESTABLISHMENT,LD - East Locality,LD - East Cambs - Special Needs,Residential Care
Cambridgeshire County Council,25-Oct-18,51300479752,"-1,328.44",CARE MANAGEMENT GROUP (64-66 CARLTON),CARE ESTABLISHMENT,LD - East Locality,LD - East Cambs - Special Needs,Residential Care
Cambridgeshire County Council,25-Oct-18,51300479740,"-1,328.44",CARE MANAGEMENT GROUP (64-66 CARLTON),CARE ESTABLISHMENT,LD - East Locality,LD - East Cambs - Special Needs,Residential Care
Cambridgeshire County Council,25-Oct-18,51300479781,"-1,328.44",CARE MANAGEMENT GROUP (64-66 CARLTON),CARE ESTABLISHMENT,LD - East Locality,LD - East Cambs - Special Needs,Residential Care
Cambridgeshire County Council,25-Oct-18,51300479729,"-1,328.44",CARE MANAGEMENT GROUP (64-66 CARLTON),CARE ESTABLISHMENT,LD - East Locality,LD - East Cambs - Special Needs,Residential Care
Cambridgeshire County Council,25-Oct-18,51300479730,"-1,328.44",CARE MANAGEMENT GROUP (64-66 CARLTON),CARE ESTABLISHMENT,LD - East Locality,LD - East Cambs - Special Needs,Residential Care
Cambridgeshire County Council,25-Oct-18,51300423951,"-1,328.44",CARE MANAGEMENT GROUP (64-66 CARLTON),CARE ESTABLISHMENT,LD - East Locality,LD - East Cambs - Special Needs,Residential Care
Cambridgeshire County Council,25-Oct-18,51300486798,"-1,328.44",CARE MANAGEMENT GROUP (64-66 CARLTON),CARE ESTABLISHMENT,LD - East Locality,LD - East Cambs - Special Needs,Residential Care
Cambridgeshire County Council,25-Oct-18,51300433324,"-1,328.44",CARE MANAGEMENT GROUP (64-66 CARLTON),CARE ESTABLISHMENT,LD - East Locality,LD - East Cambs - Special Needs,Residential Care
Cambridgeshire County Council,25-Oct-18,51300456959,"-1,328.44",CARE MANAGEMENT GROUP (64-66 CARLTON),CARE ESTABLISHMENT,LD - East Locality,LD - East Cambs - Special Needs,Residential Care
Cambridgeshire County Council,25-Oct-18,51300457016,"-1,328.44",CARE MANAGEMENT GROUP (64-66 CARLTON),CARE ESTABLISHMENT,LD - East Locality,LD - East Cambs - Special Needs,Residential Care
Cambridgeshire County Council,25-Oct-18,51300423905,"-1,328.44",CARE MANAGEMENT GROUP (64-66 CARLTON),CARE ESTABLISHMENT,LD - East Locality,LD - East Cambs - Special Needs,Residential Care
Cambridgeshire County Council,25-Oct-18,51300457012,"-1,328.44",CARE MANAGEMENT GROUP (64-66 CARLTON),CARE ESTABLISHMENT,LD - East Locality,LD - East Cambs - Special Needs,Residential Care
Cambridgeshire County Council,25-Oct-18,51300456891,"-1,328.44",CARE MANAGEMENT GROUP (64-66 CARLTON),CARE ESTABLISHMENT,LD - East Locality,LD - East Cambs - Special Needs,Residential Care
Cambridgeshire County Council,25-Oct-18,51300486813,"-1,328.44",CARE MANAGEMENT GROUP (64-66 CARLTON),CARE ESTABLISHMENT,LD - East Locality,LD - East Cambs - Special Needs,Residential Care
Cambridgeshire County Council,25-Oct-18,51300456989,"-1,328.44",CARE MANAGEMENT GROUP (64-66 CARLTON),CARE ESTABLISHMENT,LD - East Locality,LD - East Cambs - Special Needs,Residential Care
Cambridgeshire County Council,25-Oct-18,51300456966,"-1,328.44",CARE MANAGEMENT GROUP (64-66 CARLTON),CARE ESTABLISHMENT,LD - East Locality,LD - East Cambs - Special Needs,Residential Care
Cambridgeshire County Council,25-Oct-18,51300479680,"-1,328.44",CARE MANAGEMENT GROUP (64-66 CARLTON),CARE ESTABLISHMENT,LD - East Locality,LD - East Cambs - Special Needs,Residential Care
Cambridgeshire County Council,25-Oct-18,51300433316,"-1,328.44",CARE MANAGEMENT GROUP (64-66 CARLTON),CARE ESTABLISHMENT,LD - East Locality,LD - East Cambs - Special Needs,Residential Care
Cambridgeshire County Council,25-Oct-18,51300433333,"-1,328.44",CARE MANAGEMENT GROUP (64-66 CARLTON),CARE ESTABLISHMENT,LD - East Locality,LD - East Cambs - Special Needs,Residential Care
Cambridgeshire County Council,25-Oct-18,51300433358,"-1,328.44",CARE MANAGEMENT GROUP (64-66 CARLTON),CARE ESTABLISHMENT,LD - East Locality,LD - East Cambs - Special Needs,Residential Care
Cambridgeshire County Council,25-Oct-18,51300433361,"-1,328.44",CARE MANAGEMENT GROUP (64-66 CARLTON),CARE ESTABLISHMENT,LD - East Locality,LD - East Cambs - Special Needs,Residential Care
Cambridgeshire County Council,25-Oct-18,51300486802,"-1,328.44",CARE MANAGEMENT GROUP (64-66 CARLTON),CARE ESTABLISHMENT,LD - East Locality,LD - East Cambs - Special Needs,Residential Care
Cambridgeshire County Council,25-Oct-18,51300486788,"-1,328.44",CARE MANAGEMENT GROUP (64-66 CARLTON),CARE ESTABLISHMENT,LD - East Locality,LD - East Cambs - Special Needs,Residential Care
Cambridgeshire County Council,25-Oct-18,51300424025,"-1,328.44",CARE MANAGEMENT GROUP (64-66 CARLTON),CARE ESTABLISHMENT,LD - East Locality,LD - East Cambs - Special Needs,Residential Care
Cambridgeshire County Council,25-Oct-18,51300423907,"-1,328.44",CARE MANAGEMENT GROUP (64-66 CARLTON),CARE ESTABLISHMENT,LD - East Locality,LD - East Cambs - Special Needs,Residential Care
Cambridgeshire County Council,25-Oct-18,51300424038,"-1,328.44",CARE MANAGEMENT GROUP (64-66 CARLTON),CARE ESTABLISHMENT,LD - East Locality,LD - East Cambs - Special Needs,Residential Care
Cambridgeshire County Council,25-Oct-18,51300456961,"-1,328.44",CARE MANAGEMENT GROUP (64-66 CARLTON),CARE ESTABLISHMENT,LD - East Locality,LD - East Cambs - Special Needs,Residential Care
Cambridgeshire County Council,25-Oct-18,51300486688,"-1,328.44",CARE MANAGEMENT GROUP (64-66 CARLTON),CARE ESTABLISHMENT,LD - East Locality,LD - East Cambs - Special Needs,Residential Care
Cambridgeshire County Council,25-Oct-18,51300423978,"-1,328.44",CARE MANAGEMENT GROUP (64-66 CARLTON),CARE ESTABLISHMENT,LD - East Locality,LD - East Cambs - Special Needs,Residential Care
Cambridgeshire County Council,25-Oct-18,51300433359,"-1,328.44",CARE MANAGEMENT GROUP (64-66 CARLTON),CARE ESTABLISHMENT,LD - East Locality,LD - East Cambs - Special Needs,Residential Care
Cambridgeshire County Council,25-Oct-18,51300433300,"-1,328.44",CARE MANAGEMENT GROUP (64-66 CARLTON),CARE ESTABLISHMENT,LD - East Locality,LD - East Cambs - Special Needs,Residential Care
Cambridgeshire County Council,25-Oct-18,51300479786,"-1,328.44",CARE MANAGEMENT GROUP (64-66 CARLTON),CARE ESTABLISHMENT,LD - East Locality,LD - East Cambs - Special Needs,Residential Care
Cambridgeshire County Council,25-Oct-18,51300457029,"-1,328.44",CARE MANAGEMENT GROUP (64-66 CARLTON),CARE ESTABLISHMENT,LD - East Locality,LD - East Cambs - Special Needs,Residential Care
Cambridgeshire County Council,25-Oct-18,51300424020,"-1,328.44",CARE MANAGEMENT GROUP (64-66 CARLTON),CARE ESTABLISHMENT,LD - East Locality,LD - East Cambs - Special Needs,Residential Care
Cambridgeshire County Council,25-Oct-18,51300457007,"-1,328.44",CARE MANAGEMENT GROUP (64-66 CARLTON),CARE ESTABLISHMENT,LD - East Locality,LD - East Cambs - Special Needs,Residential Care
Cambridgeshire County Council,25-Oct-18,51300456896,"-1,328.44",CARE MANAGEMENT GROUP (64-66 CARLTON),CARE ESTABLISHMENT,LD - East Locality,LD - East Cambs - Special Needs,Residential Care
Cambridgeshire County Council,25-Oct-18,51300486746,"-1,328.44",CARE MANAGEMENT GROUP (64-66 CARLTON),CARE ESTABLISHMENT,LD - East Locality,LD - East Cambs - Special Needs,Residential Care
Cambridgeshire County Council,25-Oct-18,51300486678,"-1,328.44",CARE MANAGEMENT GROUP (64-66 CARLTON),CARE ESTABLISHMENT,LD - East Locality,LD - East Cambs - Special Needs,Residential Care
Cambridgeshire County Council,25-Oct-18,51300456949,"-1,328.44",CARE MANAGEMENT GROUP (64-66 CARLTON),CARE ESTABLISHMENT,LD - East Locality,LD - East Cambs - Special Needs,Residential Care
Cambridgeshire County Council,25-Oct-18,51300433412,"-1,328.44",CARE MANAGEMENT GROUP (64-66 CARLTON),CARE ESTABLISHMENT,LD - East Locality,LD - East Cambs - Special Needs,Residential Care
Cambridgeshire County Council,25-Oct-18,51300424033,"-1,328.44",CARE MANAGEMENT GROUP (64-66 CARLTON),CARE ESTABLISHMENT,LD - East Locality,LD - East Cambs - Special Needs,Residential Care
Cambridgeshire County Council,25-Oct-18,51300456986,"-1,328.44",CARE MANAGEMENT GROUP (64-66 CARLTON),CARE ESTABLISHMENT,LD - East Locality,LD - East Cambs - Special Needs,Residential Care
Cambridgeshire County Council,25-Oct-18,51300423892,"-1,328.44",CARE MANAGEMENT GROUP (64-66 CARLTON),CARE ESTABLISHMENT,LD - East Locality,LD - East Cambs - Special Needs,Residential Care
Cambridgeshire County Council,25-Oct-18,51300423985,"-1,328.44",CARE MANAGEMENT GROUP (64-66 CARLTON),CARE ESTABLISHMENT,LD - East Locality,LD - East Cambs - Special Needs,Residential Care
Cambridgeshire County Council,25-Oct-18,51300433357,"-1,328.44",CARE MANAGEMENT GROUP (64-66 CARLTON),CARE ESTABLISHMENT,LD - East Locality,LD - East Cambs - Special Needs,Residential Care
Cambridgeshire County Council,25-Oct-18,51300486763,"-1,328.44",CARE MANAGEMENT GROUP (64-66 CARLTON),CARE ESTABLISHMENT,LD - East Locality,LD - East Cambs - Special Needs,Residential Care
Cambridgeshire County Council,25-Oct-18,51300424000,"-1,328.44",CARE MANAGEMENT GROUP (64-66 CARLTON),CARE ESTABLISHMENT,LD - East Locality,LD - East Cambs - Special Needs,Residential Care
Cambridgeshire County Council,25-Oct-18,51300479723,"-1,328.44",CARE MANAGEMENT GROUP (64-66 CARLTON),CARE ESTABLISHMENT,LD - East Locality,LD - East Cambs - Special Needs,Residential Care
Cambridgeshire County Council,25-Oct-18,51300423898,"-1,328.44",CARE MANAGEMENT GROUP (64-66 CARLTON),CARE ESTABLISHMENT,LD - East Locality,LD - East Cambs - Special Needs,Residential Care
Cambridgeshire County Council,25-Oct-18,51300479797,"-1,328.44",CARE MANAGEMENT GROUP (64-66 CARLTON),CARE ESTABLISHMENT,LD - East Locality,LD - East Cambs - Special Needs,Residential Care
Cambridgeshire County Council,25-Oct-18,51300486725,"-1,328.44",CARE MANAGEMENT GROUP (64-66 CARLTON),CARE ESTABLISHMENT,LD - East Locality,LD - East Cambs - Special Needs,Residential Care
Cambridgeshire County Council,25-Oct-18,51300479739,"-1,328.44",CARE MANAGEMENT GROUP (64-66 CARLTON),CARE ESTABLISHMENT,LD - East Locality,LD - East Cambs - Special Needs,Residential Care
Cambridgeshire County Council,25-Oct-18,51300433420,"-1,328.44",CARE MANAGEMENT GROUP (64-66 CARLTON),CARE ESTABLISHMENT,LD - East Locality,LD - East Cambs - Special Needs,Residential Care
Cambridgeshire County Council,25-Oct-18,51300456928,"-1,328.44",CARE MANAGEMENT GROUP (64-66 CARLTON),CARE ESTABLISHMENT,LD - East Locality,LD - East Cambs - Special Needs,Residential Care
Cambridgeshire County Council,25-Oct-18,51300479754,"-1,328.44",CARE MANAGEMENT GROUP (64-66 CARLTON),CARE ESTABLISHMENT,LD - East Locality,LD - East Cambs - Special Needs,Residential Care
Cambridgeshire County Council,25-Oct-18,51300456917,"-1,328.44",CARE MANAGEMENT GROUP (64-66 CARLTON),CARE ESTABLISHMENT,LD - East Locality,LD - East Cambs - Special Needs,Residential Care
Cambridgeshire County Council,25-Oct-18,51300486787,"-1,328.44",CARE MANAGEMENT GROUP (64-66 CARLTON),CARE ESTABLISHMENT,LD - East Locality,LD - East Cambs - Special Needs,Residential Care
Cambridgeshire County Council,25-Oct-18,51300479810,"-1,328.44",CARE MANAGEMENT GROUP (64-66 CARLTON),CARE ESTABLISHMENT,LD - East Locality,LD - East Cambs - Special Needs,Residential Care
Cambridgeshire County Council,25-Oct-18,51300456973,"-1,328.44",CARE MANAGEMENT GROUP (64-66 CARLTON),CARE ESTABLISHMENT,LD - East Locality,LD - East Cambs - Special Needs,Residential Care
Cambridgeshire County Council,25-Oct-18,51300486819,"-1,328.44",CARE MANAGEMENT GROUP (64-66 CARLTON),CARE ESTABLISHMENT,LD - East Locality,LD - East Cambs - Special Needs,Residential Care
Cambridgeshire County Council,25-Oct-18,51300456960,"-1,328.44",CARE MANAGEMENT GROUP (64-66 CARLTON),CARE ESTABLISHMENT,LD - East Locality,LD - East Cambs - Special Needs,Residential Care
Cambridgeshire County Council,25-Oct-18,51300423939,"-1,328.44",CARE MANAGEMENT GROUP (64-66 CARLTON),CARE ESTABLISHMENT,LD - East Locality,LD - East Cambs - Special Needs,Residential Care
Cambridgeshire County Council,25-Oct-18,51300423888,"-1,328.44",CARE MANAGEMENT GROUP (64-66 CARLTON),CARE ESTABLISHMENT,LD - East Locality,LD - East Cambs - Special Needs,Residential Care
Cambridgeshire County Council,25-Oct-18,51300486685,"-1,328.44",CARE MANAGEMENT GROUP (64-66 CARLTON),CARE ESTABLISHMENT,LD - East Locality,LD - East Cambs - Special Needs,Residential Care
Cambridgeshire County Council,25-Oct-18,51300433371,"-1,328.44",CARE MANAGEMENT GROUP (64-66 CARLTON),CARE ESTABLISHMENT,LD - East Locality,LD - East Cambs - Special Needs,Residential Care
Cambridgeshire County Council,25-Oct-18,51300424016,"-1,328.44",CARE MANAGEMENT GROUP (64-66 CARLTON),CARE ESTABLISHMENT,LD - East Locality,LD - East Cambs - Special Needs,Residential Care
Cambridgeshire County Council,25-Oct-18,51300456927,"-1,328.44",CARE MANAGEMENT GROUP (64-66 CARLTON),CARE ESTABLISHMENT,LD - East Locality,LD - East Cambs - Special Needs,Residential Care
Cambridgeshire County Council,25-Oct-18,51300456925,"-1,328.44",CARE MANAGEMENT GROUP (64-66 CARLTON),CARE ESTABLISHMENT,LD - East Locality,LD - East Cambs - Special Needs,Residential Care
Cambridgeshire County Council,25-Oct-18,51300456893,"-1,328.44",CARE MANAGEMENT GROUP (64-66 CARLTON),CARE ESTABLISHMENT,LD - East Locality,LD - East Cambs - Special Needs,Residential Care
Cambridgeshire County Council,25-Oct-18,51300486778,"-1,328.44",CARE MANAGEMENT GROUP (64-66 CARLTON),CARE ESTABLISHMENT,LD - East Locality,LD - East Cambs - Special Needs,Residential Care
Cambridgeshire County Council,25-Oct-18,51300423891,"-1,328.44",CARE MANAGEMENT GROUP (64-66 CARLTON),CARE ESTABLISHMENT,LD - East Locality,LD - East Cambs - Special Needs,Residential Care
Cambridgeshire County Council,25-Oct-18,51300433370,"-1,328.44",CARE MANAGEMENT GROUP (64-66 CARLTON),CARE ESTABLISHMENT,LD - East Locality,LD - East Cambs - Special Needs,Residential Care
Cambridgeshire County Council,25-Oct-18,51300479760,"-1,328.44",CARE MANAGEMENT GROUP (64-66 CARLTON),CARE ESTABLISHMENT,LD - East Locality,LD - East Cambs - Special Needs,Residential Care
Cambridgeshire County Council,25-Oct-18,51300479823,"-1,328.44",CARE MANAGEMENT GROUP (64-66 CARLTON),CARE ESTABLISHMENT,LD - East Locality,LD - East Cambs - Special Needs,Residential Care
Cambridgeshire County Council,25-Oct-18,51300486774,"-1,328.44",CARE MANAGEMENT GROUP (64-66 CARLTON),CARE ESTABLISHMENT,LD - East Locality,LD - East Cambs - Special Needs,Residential Care
Cambridgeshire County Council,25-Oct-18,51300486694,"-1,328.44",CARE MANAGEMENT GROUP (64-66 CARLTON),CARE ESTABLISHMENT,LD - East Locality,LD - East Cambs - Special Needs,Residential Care
Cambridgeshire County Council,25-Oct-18,51300479758,"-1,328.44",CARE MANAGEMENT GROUP (64-66 CARLTON),CARE ESTABLISHMENT,LD - East Locality,LD - East Cambs - Special Needs,Residential Care
Cambridgeshire County Council,25-Oct-18,51300433374,"-1,328.44",CARE MANAGEMENT GROUP (64-66 CARLTON),CARE ESTABLISHMENT,LD - East Locality,LD - East Cambs - Special Needs,Residential Care
Cambridgeshire County Council,25-Oct-18,51300423973,"-1,328.44",CARE MANAGEMENT GROUP (64-66 CARLTON),CARE ESTABLISHMENT,LD - East Locality,LD - East Cambs - Special Needs,Residential Care
Cambridgeshire County Council,25-Oct-18,51300456969,"-1,328.44",CARE MANAGEMENT GROUP (64-66 CARLTON),CARE ESTABLISHMENT,LD - East Locality,LD - East Cambs - Special Needs,Residential Care
Cambridgeshire County Council,25-Oct-18,51300479777,"-1,328.44",CARE MANAGEMENT GROUP (64-66 CARLTON),CARE ESTABLISHMENT,LD - East Locality,LD - East Cambs - Special Needs,Residential Care
Cambridgeshire County Council,25-Oct-18,51300479802,"-1,328.44",CARE MANAGEMENT GROUP (64-66 CARLTON),CARE ESTABLISHMENT,LD - East Locality,LD - East Cambs - Special Needs,Residential Care
Cambridgeshire County Council,25-Oct-18,51300479727,"-1,328.44",CARE MANAGEMENT GROUP (64-66 CARLTON),CARE ESTABLISHMENT,LD - East Locality,LD - East Cambs - Special Needs,Residential Care
Cambridgeshire County Council,25-Oct-18,51300433309,"-1,328.44",CARE MANAGEMENT GROUP (64-66 CARLTON),CARE ESTABLISHMENT,LD - East Locality,LD - East Cambs - Special Needs,Residential Care
Cambridgeshire County Council,25-Oct-18,51300424026,"-1,328.44",CARE MANAGEMENT GROUP (64-66 CARLTON),CARE ESTABLISHMENT,LD - East Locality,LD - East Cambs - Special Needs,Residential Care
Cambridgeshire County Council,25-Oct-18,51300424034,"-1,328.44",CARE MANAGEMENT GROUP (64-66 CARLTON),CARE ESTABLISHMENT,LD - East Locality,LD - East Cambs - Special Needs,Residential Care
Cambridgeshire County Council,25-Oct-18,51300457004,"-1,328.44",CARE MANAGEMENT GROUP (64-66 CARLTON),CARE ESTABLISHMENT,LD - East Locality,LD - East Cambs - Special Needs,Residential Care
Cambridgeshire County Council,25-Oct-18,51300479813,"-1,328.44",CARE MANAGEMENT GROUP (64-66 CARLTON),CARE ESTABLISHMENT,LD - East Locality,LD - East Cambs - Special Needs,Residential Care
Cambridgeshire County Council,25-Oct-18,51300423969,"-1,328.44",CARE MANAGEMENT GROUP (64-66 CARLTON),CARE ESTABLISHMENT,LD - East Locality,LD - East Cambs - Special Needs,Residential Care
Cambridgeshire County Council,25-Oct-18,51300457035,"-1,328.44",CARE MANAGEMENT GROUP (64-66 CARLTON),CARE ESTABLISHMENT,LD - East Locality,LD - East Cambs - Special Needs,Residential Care
Cambridgeshire County Council,25-Oct-18,51300486677,"-1,328.44",CARE MANAGEMENT GROUP (64-66 CARLTON),CARE ESTABLISHMENT,LD - East Locality,LD - East Cambs - Special Needs,Residential Care
Cambridgeshire County Council,25-Oct-18,51300423911,"-1,328.44",CARE MANAGEMENT GROUP (64-66 CARLTON),CARE ESTABLISHMENT,LD - East Locality,LD - East Cambs - Special Needs,Residential Care
Cambridgeshire County Council,25-Oct-18,51300486710,"-1,328.44",CARE MANAGEMENT GROUP (64-66 CARLTON),CARE ESTABLISHMENT,LD - East Locality,LD - East Cambs - Special Needs,Residential Care
Cambridgeshire County Council,25-Oct-18,51300423983,"-1,328.44",CARE MANAGEMENT GROUP (64-66 CARLTON),CARE ESTABLISHMENT,LD - East Locality,LD - East Cambs - Special Needs,Residential Care
Cambridgeshire County Council,25-Oct-18,51300423954,"-1,328.44",CARE MANAGEMENT GROUP (64-66 CARLTON),CARE ESTABLISHMENT,LD - East Locality,LD - East Cambs - Special Needs,Residential Care
Cambridgeshire County Council,25-Oct-18,51300457040,"-1,328.44",CARE MANAGEMENT GROUP (64-66 CARLTON),CARE ESTABLISHMENT,LD - East Locality,LD - East Cambs - Special Needs,Residential Care
Cambridgeshire County Council,25-Oct-18,51300479774,"-1,328.44",CARE MANAGEMENT GROUP (64-66 CARLTON),CARE ESTABLISHMENT,LD - East Locality,LD - East Cambs - Special Needs,Residential Care
Cambridgeshire County Council,25-Oct-18,51300479676,"-1,328.44",CARE MANAGEMENT GROUP (64-66 CARLTON),CARE ESTABLISHMENT,LD - East Locality,LD - East Cambs - Special Needs,Residential Care
Cambridgeshire County Council,25-Oct-18,51300424015,"-1,328.44",CARE MANAGEMENT GROUP (64-66 CARLTON),CARE ESTABLISHMENT,LD - East Locality,LD - East Cambs - Special Needs,Residential Care
Cambridgeshire County Council,25-Oct-18,51300433353,"-1,328.44",CARE MANAGEMENT GROUP (64-66 CARLTON),CARE ESTABLISHMENT,LD - East Locality,LD - East Cambs - Special Needs,Residential Care
Cambridgeshire County Council,25-Oct-18,51300479746,"-1,328.44",CARE MANAGEMENT GROUP (64-66 CARLTON),CARE ESTABLISHMENT,LD - East Locality,LD - East Cambs - Special Needs,Residential Care
Cambridgeshire County Council,25-Oct-18,51300433318,"-1,328.44",CARE MANAGEMENT GROUP (64-66 CARLTON),CARE ESTABLISHMENT,LD - East Locality,LD - East Cambs - Special Needs,Residential Care
Cambridgeshire County Council,25-Oct-18,51300433396,"-1,328.44",CARE MANAGEMENT GROUP (64-66 CARLTON),CARE ESTABLISHMENT,LD - East Locality,LD - East Cambs - Special Needs,Residential Care
Cambridgeshire County Council,25-Oct-18,51300486672,"-1,328.44",CARE MANAGEMENT GROUP (64-66 CARLTON),CARE ESTABLISHMENT,LD - East Locality,LD - East Cambs - Special Needs,Residential Care
Cambridgeshire County Council,25-Oct-18,51300423975,"-1,328.44",CARE MANAGEMENT GROUP (64-66 CARLTON),CARE ESTABLISHMENT,LD - East Locality,LD - East Cambs - Special Needs,Residential Care
Cambridgeshire County Council,25-Oct-18,51300456915,"-1,328.44",CARE MANAGEMENT GROUP (64-66 CARLTON),CARE ESTABLISHMENT,LD - East Locality,LD - East Cambs - Special Needs,Residential Care
Cambridgeshire County Council,25-Oct-18,51300433372,"-1,328.44",CARE MANAGEMENT GROUP (64-66 CARLTON),CARE ESTABLISHMENT,LD - East Locality,LD - East Cambs - Special Needs,Residential Care
Cambridgeshire County Council,25-Oct-18,51300486682,"-1,328.44",CARE MANAGEMENT GROUP (64-66 CARLTON),CARE ESTABLISHMENT,LD - East Locality,LD - East Cambs - Special Needs,Residential Care
Cambridgeshire County Council,25-Oct-18,51300486738,"-1,328.44",CARE MANAGEMENT GROUP (64-66 CARLTON),CARE ESTABLISHMENT,LD - East Locality,LD - East Cambs - Special Needs,Residential Care
Cambridgeshire County Council,25-Oct-18,51300456899,"-1,328.44",CARE MANAGEMENT GROUP (64-66 CARLTON),CARE ESTABLISHMENT,LD - East Locality,LD - East Cambs - Special Needs,Residential Care
Cambridgeshire County Council,25-Oct-18,51300479721,"-1,328.44",CARE MANAGEMENT GROUP (64-66 CARLTON),CARE ESTABLISHMENT,LD - East Locality,LD - East Cambs - Special Needs,Residential Care
Cambridgeshire County Council,25-Oct-18,51300423895,"-1,328.44",CARE MANAGEMENT GROUP (64-66 CARLTON),CARE ESTABLISHMENT,LD - East Locality,LD - East Cambs - Special Needs,Residential Care
Cambridgeshire County Council,25-Oct-18,51300486749,"-1,328.44",CARE MANAGEMENT GROUP (64-66 CARLTON),CARE ESTABLISHMENT,LD - East Locality,LD - East Cambs - Special Needs,Residential Care
Cambridgeshire County Council,25-Oct-18,51300486764,"-1,328.44",CARE MANAGEMENT GROUP (64-66 CARLTON),CARE ESTABLISHMENT,LD - East Locality,LD - East Cambs - Special Needs,Residential Care
Cambridgeshire County Council,25-Oct-18,51300456957,"-1,328.44",CARE MANAGEMENT GROUP (64-66 CARLTON),CARE ESTABLISHMENT,LD - East Locality,LD - East Cambs - Special Needs,Residential Care
Cambridgeshire County Council,25-Oct-18,51300479795,"-1,328.44",CARE MANAGEMENT GROUP (64-66 CARLTON),CARE ESTABLISHMENT,LD - East Locality,LD - East Cambs - Special Needs,Residential Care
Cambridgeshire County Council,25-Oct-18,51300456979,"-1,328.44",CARE MANAGEMENT GROUP (64-66 CARLTON),CARE ESTABLISHMENT,LD - East Locality,LD - East Cambs - Special Needs,Residential Care
Cambridgeshire County Council,25-Oct-18,51300433406,"-1,328.44",CARE MANAGEMENT GROUP (64-66 CARLTON),CARE ESTABLISHMENT,LD - East Locality,LD - East Cambs - Special Needs,Residential Care
Cambridgeshire County Council,25-Oct-18,51300433378,"-1,328.44",CARE MANAGEMENT GROUP (64-66 CARLTON),CARE ESTABLISHMENT,LD - East Locality,LD - East Cambs - Special Needs,Residential Care
Cambridgeshire County Council,25-Oct-18,51300456921,"-1,328.44",CARE MANAGEMENT GROUP (64-66 CARLTON),CARE ESTABLISHMENT,LD - East Locality,LD - East Cambs - Special Needs,Residential Care
Cambridgeshire County Council,25-Oct-18,51300479704,"-1,328.44",CARE MANAGEMENT GROUP (64-66 CARLTON),CARE ESTABLISHMENT,LD - East Locality,LD - East Cambs - Special Needs,Residential Care
Cambridgeshire County Council,25-Oct-18,51300486705,"-1,328.44",CARE MANAGEMENT GROUP (64-66 CARLTON),CARE ESTABLISHMENT,LD - East Locality,LD - East Cambs - Special Needs,Residential Care
Cambridgeshire County Council,25-Oct-18,51300456903,"-1,328.44",CARE MANAGEMENT GROUP (64-66 CARLTON),CARE ESTABLISHMENT,LD - East Locality,LD - East Cambs - Special Needs,Residential Care
Cambridgeshire County Council,25-Oct-18,51300479820,"-1,328.44",CARE MANAGEMENT GROUP (64-66 CARLTON),CARE ESTABLISHMENT,LD - East Locality,LD - East Cambs - Special Needs,Residential Care
Cambridgeshire County Council,25-Oct-18,51300486663,"-1,328.44",CARE MANAGEMENT GROUP (64-66 CARLTON),CARE ESTABLISHMENT,LD - East Locality,LD - East Cambs - Special Needs,Residential Care
Cambridgeshire County Council,25-Oct-18,51300479805,"-1,328.44",CARE MANAGEMENT GROUP (64-66 CARLTON),CARE ESTABLISHMENT,LD - East Locality,LD - East Cambs - Special Needs,Residential Care
Cambridgeshire County Council,25-Oct-18,51300423996,"-1,328.44",CARE MANAGEMENT GROUP (64-66 CARLTON),CARE ESTABLISHMENT,LD - East Locality,LD - East Cambs - Special Needs,Residential Care
Cambridgeshire County Council,25-Oct-18,51300486806,"-1,328.44",CARE MANAGEMENT GROUP (64-66 CARLTON),CARE ESTABLISHMENT,LD - East Locality,LD - East Cambs - Special Needs,Residential Care
Cambridgeshire County Council,25-Oct-18,51300456905,"-1,328.44",CARE MANAGEMENT GROUP (64-66 CARLTON),CARE ESTABLISHMENT,LD - East Locality,LD - East Cambs - Special Needs,Residential Care
Cambridgeshire County Council,25-Oct-18,51300433431,"-1,328.44",CARE MANAGEMENT GROUP (64-66 CARLTON),CARE ESTABLISHMENT,LD - East Locality,LD - East Cambs - Special Needs,Residential Care
Cambridgeshire County Council,25-Oct-18,51300486735,"-1,328.44",CARE MANAGEMENT GROUP (64-66 CARLTON),CARE ESTABLISHMENT,LD - East Locality,LD - East Cambs - Special Needs,Residential Care
Cambridgeshire County Council,25-Oct-18,51300486734,"-1,328.44",CARE MANAGEMENT GROUP (64-66 CARLTON),CARE ESTABLISHMENT,LD - East Locality,LD - East Cambs - Special Needs,Residential Care
Cambridgeshire County Council,25-Oct-18,51300423920,"-1,328.44",CARE MANAGEMENT GROUP (64-66 CARLTON),CARE ESTABLISHMENT,LD - East Locality,LD - East Cambs - Special Needs,Residential Care
Cambridgeshire County Council,25-Oct-18,51300423955,"-1,328.44",CARE MANAGEMENT GROUP (64-66 CARLTON),CARE ESTABLISHMENT,LD - East Locality,LD - East Cambs - Special Needs,Residential Care
Cambridgeshire County Council,25-Oct-18,51300424037,"-1,328.44",CARE MANAGEMENT GROUP (64-66 CARLTON),CARE ESTABLISHMENT,LD - East Locality,LD - East Cambs - Special Needs,Residential Care
Cambridgeshire County Council,05-Oct-18,51300431064,"-1,317.11",ALDERTON HOUSE,CARE ESTABLISHMENT,LD - East Locality,LD - East Cambs - Special Needs,Residential Care
Cambridgeshire County Council,05-Oct-18,51300431074,"-1,317.11",ALDERTON HOUSE,CARE ESTABLISHMENT,LD - East Locality,LD - East Cambs - Special Needs,Residential Care
Cambridgeshire County Council,05-Oct-18,51300418252,"-1,317.11",ALDERTON HOUSE,CARE ESTABLISHMENT,LD - East Locality,LD - East Cambs - Special Needs,Residential Care
Cambridgeshire County Council,05-Oct-18,51300418329,"-1,317.11",ALDERTON HOUSE,CARE ESTABLISHMENT,LD - East Locality,LD - East Cambs - Special Needs,Residential Care
Cambridgeshire County Council,05-Oct-18,51300418245,"-1,317.11",ALDERTON HOUSE,CARE ESTABLISHMENT,LD - East Locality,LD - East Cambs - Special Needs,Residential Care
Cambridgeshire County Council,05-Oct-18,51300431034,"-1,317.11",ALDERTON HOUSE,CARE ESTABLISHMENT,LD - East Locality,LD - East Cambs - Special Needs,Residential Care
Cambridgeshire County Council,05-Oct-18,51300431042,"-1,317.11",ALDERTON HOUSE,CARE ESTABLISHMENT,LD - East Locality,LD - East Cambs - Special Needs,Residential Care
Cambridgeshire County Council,05-Oct-18,51300431082,"-1,317.11",ALDERTON HOUSE,CARE ESTABLISHMENT,LD - East Locality,LD - East Cambs - Special Needs,Residential Care
Cambridgeshire County Council,05-Oct-18,51300418325,"-1,317.11",ALDERTON HOUSE,CARE ESTABLISHMENT,LD - East Locality,LD - East Cambs - Special Needs,Residential Care
Cambridgeshire County Council,05-Oct-18,51300431118,"-1,317.11",ALDERTON HOUSE,CARE ESTABLISHMENT,LD - East Locality,LD - East Cambs - Special Needs,Residential Care
Cambridgeshire County Council,05-Oct-18,51300431088,"-1,317.11",ALDERTON HOUSE,CARE ESTABLISHMENT,LD - East Locality,LD - East Cambs - Special Needs,Residential Care
Cambridgeshire County Council,05-Oct-18,51300418320,"-1,317.11",ALDERTON HOUSE,CARE ESTABLISHMENT,LD - East Locality,LD - East Cambs - Special Needs,Residential Care
Cambridgeshire County Council,05-Oct-18,51300418263,"-1,317.11",ALDERTON HOUSE,CARE ESTABLISHMENT,LD - East Locality,LD - East Cambs - Special Needs,Residential Care
Cambridgeshire County Council,05-Oct-18,51300418246,"-1,317.11",ALDERTON HOUSE,CARE ESTABLISHMENT,LD - East Locality,LD - East Cambs - Special Needs,Residential Care
Cambridgeshire County Council,05-Oct-18,51300431095,"-1,317.11",ALDERTON HOUSE,CARE ESTABLISHMENT,LD - East Locality,LD - East Cambs - Special Needs,Residential Care
Cambridgeshire County Council,05-Oct-18,51300418211,"-1,317.11",ALDERTON HOUSE,CARE ESTABLISHMENT,LD - East Locality,LD - East Cambs - Special Needs,Residential Care
Cambridgeshire County Council,05-Oct-18,51300431014,"-1,317.11",ALDERTON HOUSE,CARE ESTABLISHMENT,LD - East Locality,LD - East Cambs - Special Needs,Residential Care
Cambridgeshire County Council,05-Oct-18,51300431059,"-1,317.11",ALDERTON HOUSE,CARE ESTABLISHMENT,LD - East Locality,LD - East Cambs - Special Needs,Residential Care
Cambridgeshire County Council,05-Oct-18,51300431063,"-1,317.11",ALDERTON HOUSE,CARE ESTABLISHMENT,LD - East Locality,LD - East Cambs - Special Needs,Residential Care
Cambridgeshire County Council,05-Oct-18,51300418306,"-1,317.11",ALDERTON HOUSE,CARE ESTABLISHMENT,LD - East Locality,LD - East Cambs - Special Needs,Residential Care
Cambridgeshire County Council,05-Oct-18,51300418237,"-1,317.11",ALDERTON HOUSE,CARE ESTABLISHMENT,LD - East Locality,LD - East Cambs - Special Needs,Residential Care
Cambridgeshire County Council,05-Oct-18,51300431116,"-1,317.11",ALDERTON HOUSE,CARE ESTABLISHMENT,LD - East Locality,LD - East Cambs - Special Needs,Residential Care
Cambridgeshire County Council,05-Oct-18,51300418262,"-1,317.11",ALDERTON HOUSE,CARE ESTABLISHMENT,LD - East Locality,LD - East Cambs - Special Needs,Residential Care
Cambridgeshire County Council,05-Oct-18,51300431119,"-1,317.11",ALDERTON HOUSE,CARE ESTABLISHMENT,LD - East Locality,LD - East Cambs - Special Needs,Residential Care
Cambridgeshire County Council,05-Oct-18,51300431060,"-1,317.11",ALDERTON HOUSE,CARE ESTABLISHMENT,LD - East Locality,LD - East Cambs - Special Needs,Residential Care
Cambridgeshire County Council,05-Oct-18,51300431096,"-1,317.11",ALDERTON HOUSE,CARE ESTABLISHMENT,LD - East Locality,LD - East Cambs - Special Needs,Residential Care
Cambridgeshire County Council,05-Oct-18,51300431015,"-1,317.11",ALDERTON HOUSE,CARE ESTABLISHMENT,LD - East Locality,LD - East Cambs - Special Needs,Residential Care
Cambridgeshire County Council,05-Oct-18,51300431067,"-1,317.11",ALDERTON HOUSE,CARE ESTABLISHMENT,LD - East Locality,LD - East Cambs - Special Needs,Residential Care
Cambridgeshire County Council,05-Oct-18,51300431121,"-1,317.11",ALDERTON HOUSE,CARE ESTABLISHMENT,LD - East Locality,LD - East Cambs - Special Needs,Residential Care
Cambridgeshire County Council,05-Oct-18,51300418229,"-1,317.11",ALDERTON HOUSE,CARE ESTABLISHMENT,LD - East Locality,LD - East Cambs - Special Needs,Residential Care
Cambridgeshire County Council,05-Oct-18,51300418323,"-1,317.11",ALDERTON HOUSE,CARE ESTABLISHMENT,LD - East Locality,LD - East Cambs - Special Needs,Residential Care
Cambridgeshire County Council,05-Oct-18,51300418247,"-1,317.11",ALDERTON HOUSE,CARE ESTABLISHMENT,LD - East Locality,LD - East Cambs - Special Needs,Residential Care
Cambridgeshire County Council,05-Oct-18,51300431061,"-1,317.11",ALDERTON HOUSE,CARE ESTABLISHMENT,LD - East Locality,LD - East Cambs - Special Needs,Residential Care
Cambridgeshire County Council,05-Oct-18,51300418307,"-1,317.11",ALDERTON HOUSE,CARE ESTABLISHMENT,LD - East Locality,LD - East Cambs - Special Needs,Residential Care
Cambridgeshire County Council,05-Oct-18,51300418277,"-1,317.11",ALDERTON HOUSE,CARE ESTABLISHMENT,LD - East Locality,LD - East Cambs - Special Needs,Residential Care
Cambridgeshire County Council,05-Oct-18,51300431110,"-1,317.11",ALDERTON HOUSE,CARE ESTABLISHMENT,LD - East Locality,LD - East Cambs - Special Needs,Residential Care
Cambridgeshire County Council,05-Oct-18,51300431013,"-1,317.11",ALDERTON HOUSE,CARE ESTABLISHMENT,LD - East Locality,LD - East Cambs - Care,Residential Care
Cambridgeshire County Council,05-Oct-18,51300431101,"-1,317.11",ALDERTON HOUSE,CARE ESTABLISHMENT,LD - East Locality,LD - East Cambs - Care,Residential Care
Cambridgeshire County Council,05-Oct-18,51300431065,"-1,317.11",ALDERTON HOUSE,CARE ESTABLISHMENT,LD - East Locality,LD - East Cambs - Care,Residential Care
Cambridgeshire County Council,05-Oct-18,51300418334,"-1,317.11",ALDERTON HOUSE,CARE ESTABLISHMENT,LD - East Locality,LD - East Cambs - Care,Residential Care
Cambridgeshire County Council,05-Oct-18,51300431113,"-1,317.11",ALDERTON HOUSE,CARE ESTABLISHMENT,LD - East Locality,LD - East Cambs - Care,Residential Care
Cambridgeshire County Council,05-Oct-18,51300418189,"-1,317.11",ALDERTON HOUSE,CARE ESTABLISHMENT,LD - East Locality,LD - East Cambs - Care,Residential Care
Cambridgeshire County Council,05-Oct-18,51300418287,"-1,317.11",ALDERTON HOUSE,CARE ESTABLISHMENT,LD - East Locality,LD - East Cambs - Care,Residential Care
Cambridgeshire County Council,05-Oct-18,51300418184,"-1,317.11",ALDERTON HOUSE,CARE ESTABLISHMENT,LD - East Locality,LD - East Cambs - Care,Residential Care
Cambridgeshire County Council,05-Oct-18,51300418338,"-1,317.11",ALDERTON HOUSE,CARE ESTABLISHMENT,LD - East Locality,LD - East Cambs - Care,Residential Care
Cambridgeshire County Council,05-Oct-18,51300431019,"-1,317.11",ALDERTON HOUSE,CARE ESTABLISHMENT,LD - East Locality,LD - East Cambs - Care,Residential Care
Cambridgeshire County Council,05-Oct-18,51300431032,"-1,317.11",ALDERTON HOUSE,CARE ESTABLISHMENT,LD - East Locality,LD - East Cambs - Care,Residential Care
Cambridgeshire County Council,05-Oct-18,51300418272,"-1,317.11",ALDERTON HOUSE,CARE ESTABLISHMENT,LD - East Locality,LD - East Cambs - Care,Residential Care
Cambridgeshire County Council,05-Oct-18,51300418299,"-1,317.11",ALDERTON HOUSE,CARE ESTABLISHMENT,LD - East Locality,LD - East Cambs - Care,Residential Care
Cambridgeshire County Council,05-Oct-18,51300431054,"-1,317.11",ALDERTON HOUSE,CARE ESTABLISHMENT,LD - East Locality,LD - East Cambs - Care,Residential Care
Cambridgeshire County Council,05-Oct-18,51300431026,"-1,317.11",ALDERTON HOUSE,CARE ESTABLISHMENT,LD - East Locality,LD - East Cambs - Care,Residential Care
Cambridgeshire County Council,05-Oct-18,51300418210,"-1,317.11",ALDERTON HOUSE,CARE ESTABLISHMENT,LD - East Locality,LD - East Cambs - Care,Residential Care
Cambridgeshire County Council,05-Oct-18,51300418190,"-1,317.11",ALDERTON HOUSE,CARE ESTABLISHMENT,LD - East Locality,LD - East Cambs - Care,Residential Care
Cambridgeshire County Council,05-Oct-18,51300418244,"-1,317.11",ALDERTON HOUSE,CARE ESTABLISHMENT,LD - East Locality,LD - East Cambs - Care,Residential Care
Cambridgeshire County Council,05-Oct-18,51300418254,"-1,317.11",ALDERTON HOUSE,CARE ESTABLISHMENT,LD - East Locality,LD - East Cambs - Care,Residential Care
Cambridgeshire County Council,05-Oct-18,51300418308,"-1,317.11",ALDERTON HOUSE,CARE ESTABLISHMENT,LD - East Locality,LD - East Cambs - Care,Residential Care
Cambridgeshire County Council,05-Oct-18,51300431041,"-1,317.11",ALDERTON HOUSE,CARE ESTABLISHMENT,LD - East Locality,LD - East Cambs - Care,Residential Care
Cambridgeshire County Council,05-Oct-18,51300431102,"-1,317.11",ALDERTON HOUSE,CARE ESTABLISHMENT,LD - East Locality,LD - East Cambs - Care,Residential Care
Cambridgeshire County Council,05-Oct-18,51300431071,"-1,317.11",ALDERTON HOUSE,CARE ESTABLISHMENT,LD - East Locality,LD - East Cambs - Care,Residential Care
Cambridgeshire County Council,05-Oct-18,51300431037,"-1,317.11",ALDERTON HOUSE,CARE ESTABLISHMENT,LD - East Locality,LD - East Cambs - Care,Residential Care
Cambridgeshire County Council,05-Oct-18,51300431066,"-1,317.11",ALDERTON HOUSE,CARE ESTABLISHMENT,LD - East Locality,LD - East Cambs - Care,Residential Care
Cambridgeshire County Council,05-Oct-18,51300431111,"-1,317.11",ALDERTON HOUSE,CARE ESTABLISHMENT,LD - East Locality,LD - East Cambs - Care,Residential Care
Cambridgeshire County Council,05-Oct-18,51300418212,"-1,317.11",ALDERTON HOUSE,CARE ESTABLISHMENT,LD - East Locality,LD - East Cambs - Care,Residential Care
Cambridgeshire County Council,05-Oct-18,51300431076,"-1,317.11",ALDERTON HOUSE,CARE ESTABLISHMENT,LD - East Locality,LD - East Cambs - Care,Residential Care
Cambridgeshire County Council,05-Oct-18,51300431038,"-1,317.11",ALDERTON HOUSE,CARE ESTABLISHMENT,LD - East Locality,LD - East Cambs - Care,Residential Care
Cambridgeshire County Council,05-Oct-18,51300418265,"-1,317.11",ALDERTON HOUSE,CARE ESTABLISHMENT,LD - East Locality,LD - East Cambs - Care,Residential Care
Cambridgeshire County Council,05-Oct-18,51300418236,"-1,317.11",ALDERTON HOUSE,CARE ESTABLISHMENT,LD - East Locality,LD - East Cambs - Care,Residential Care
Cambridgeshire County Council,05-Oct-18,51300431031,"-1,317.11",ALDERTON HOUSE,CARE ESTABLISHMENT,LD - East Locality,LD - East Cambs - Care,Residential Care
Cambridgeshire County Council,05-Oct-18,51300418309,"-1,317.11",ALDERTON HOUSE,CARE ESTABLISHMENT,LD - East Locality,LD - East Cambs - Care,Residential Care
Cambridgeshire County Council,05-Oct-18,51300431050,"-1,317.11",ALDERTON HOUSE,CARE ESTABLISHMENT,LD - East Locality,LD - East Cambs - Care,Residential Care
Cambridgeshire County Council,05-Oct-18,51300431090,"-1,317.11",ALDERTON HOUSE,CARE ESTABLISHMENT,LD - East Locality,LD - East Cambs - Care,Residential Care
Cambridgeshire County Council,05-Oct-18,51300431072,"-1,317.11",ALDERTON HOUSE,CARE ESTABLISHMENT,LD - East Locality,LD - East Cambs - Care,Residential Care
Cambridgeshire County Council,05-Oct-18,51300431112,"-1,317.11",ALDERTON HOUSE,CARE ESTABLISHMENT,LD - East Locality,LD - East Cambs - Care,Residential Care
Cambridgeshire County Council,05-Oct-18,51300418224,"-1,317.11",ALDERTON HOUSE,CARE ESTABLISHMENT,LD - East Locality,LD - East Cambs - Care,Residential Care
Cambridgeshire County Council,05-Oct-18,51300431120,"-1,317.11",ALDERTON HOUSE,CARE ESTABLISHMENT,LD - East Locality,LD - East Cambs - Care,Residential Care
Cambridgeshire County Council,05-Oct-18,51300431070,"-1,317.11",ALDERTON HOUSE,CARE ESTABLISHMENT,LD - East Locality,LD - East Cambs - Care,Residential Care
Cambridgeshire County Council,05-Oct-18,51300418221,"-1,317.11",ALDERTON HOUSE,CARE ESTABLISHMENT,LD - East Locality,LD - East Cambs - Care,Residential Care
Cambridgeshire County Council,05-Oct-18,51300431030,"-1,317.11",ALDERTON HOUSE,CARE ESTABLISHMENT,LD - East Locality,LD - East Cambs - Care,Residential Care
Cambridgeshire County Council,05-Oct-18,51300418243,"-1,317.11",ALDERTON HOUSE,CARE ESTABLISHMENT,LD - East Locality,LD - East Cambs - Care,Residential Care
Cambridgeshire County Council,05-Oct-18,51300431028,"-1,317.11",ALDERTON HOUSE,CARE ESTABLISHMENT,LD - East Locality,LD - East Cambs - Care,Residential Care
Cambridgeshire County Council,05-Oct-18,51300431035,"-1,317.11",ALDERTON HOUSE,CARE ESTABLISHMENT,LD - East Locality,LD - East Cambs - Care,Residential Care
Cambridgeshire County Council,05-Oct-18,51300418321,"-1,317.11",ALDERTON HOUSE,CARE ESTABLISHMENT,LD - East Locality,LD - East Cambs - Care,Residential Care
Cambridgeshire County Council,05-Oct-18,51300418255,"-1,317.11",ALDERTON HOUSE,CARE ESTABLISHMENT,LD - East Locality,LD - East Cambs - Care,Residential Care
Cambridgeshire County Council,05-Oct-18,51300431099,"-1,317.11",ALDERTON HOUSE,CARE ESTABLISHMENT,LD - East Locality,LD - East Cambs - Care,Residential Care
Cambridgeshire County Council,05-Oct-18,51300418303,"-1,317.11",ALDERTON HOUSE,CARE ESTABLISHMENT,LD - East Locality,LD - East Cambs - Care,Residential Care
Cambridgeshire County Council,05-Oct-18,51300431055,"-1,317.11",ALDERTON HOUSE,CARE ESTABLISHMENT,LD - East Locality,LD - East Cambs - Care,Residential Care
Cambridgeshire County Council,05-Oct-18,51300431047,"-1,317.11",ALDERTON HOUSE,CARE ESTABLISHMENT,LD - East Locality,LD - East Cambs - Care,Residential Care
Cambridgeshire County Council,05-Oct-18,51300418316,"-1,317.11",ALDERTON HOUSE,CARE ESTABLISHMENT,LD - East Locality,LD - East Cambs - Care,Residential Care
Cambridgeshire County Council,05-Oct-18,51300418332,"-1,317.11",ALDERTON HOUSE,CARE ESTABLISHMENT,LD - East Locality,LD - East Cambs - Care,Residential Care
Cambridgeshire County Council,05-Oct-18,51300431117,"-1,317.11",ALDERTON HOUSE,CARE ESTABLISHMENT,LD - East Locality,LD - East Cambs - Special Needs,Residential Care
Cambridgeshire County Council,05-Oct-18,51300418183,"-1,317.11",ALDERTON HOUSE,CARE ESTABLISHMENT,LD - East Locality,LD - East Cambs - Special Needs,Residential Care
Cambridgeshire County Council,05-Oct-18,51300418283,"-1,317.11",ALDERTON HOUSE,CARE ESTABLISHMENT,LD - East Locality,LD - East Cambs - Special Needs,Residential Care
Cambridgeshire County Council,05-Oct-18,51300418301,"-1,317.11",ALDERTON HOUSE,CARE ESTABLISHMENT,LD - East Locality,LD - East Cambs - Special Needs,Residential Care
Cambridgeshire County Council,05-Oct-18,51300418342,"-1,317.11",ALDERTON HOUSE,CARE ESTABLISHMENT,LD - East Locality,LD - East Cambs - Special Needs,Residential Care
Cambridgeshire County Council,05-Oct-18,51300418276,"-1,317.11",ALDERTON HOUSE,CARE ESTABLISHMENT,LD - East Locality,LD - East Cambs - Special Needs,Residential Care
Cambridgeshire County Council,05-Oct-18,51300418256,"-1,317.11",ALDERTON HOUSE,CARE ESTABLISHMENT,LD - East Locality,LD - East Cambs - Special Needs,Residential Care
Cambridgeshire County Council,05-Oct-18,51300418268,"-1,317.11",ALDERTON HOUSE,CARE ESTABLISHMENT,LD - East Locality,LD - East Cambs - Special Needs,Residential Care
Cambridgeshire County Council,05-Oct-18,51300418230,"-1,317.11",ALDERTON HOUSE,CARE ESTABLISHMENT,LD - East Locality,LD - East Cambs - Special Needs,Residential Care
Cambridgeshire County Council,05-Oct-18,51300418285,"-1,317.11",ALDERTON HOUSE,CARE ESTABLISHMENT,LD - East Locality,LD - East Cambs - Special Needs,Residential Care
Cambridgeshire County Council,05-Oct-18,51300431057,"-1,317.11",ALDERTON HOUSE,CARE ESTABLISHMENT,LD - East Locality,LD - East Cambs - Special Needs,Residential Care
Cambridgeshire County Council,05-Oct-18,51300418235,"-1,317.11",ALDERTON HOUSE,CARE ESTABLISHMENT,LD - East Locality,LD - East Cambs - Special Needs,Residential Care
Cambridgeshire County Council,05-Oct-18,51300418291,"-1,317.11",ALDERTON HOUSE,CARE ESTABLISHMENT,LD - East Locality,LD - East Cambs - Special Needs,Residential Care
Cambridgeshire County Council,05-Oct-18,51300418319,"-1,317.11",ALDERTON HOUSE,CARE ESTABLISHMENT,LD - East Locality,LD - East Cambs - Special Needs,Residential Care
Cambridgeshire County Council,05-Oct-18,51300418293,"-1,317.11",ALDERTON HOUSE,CARE ESTABLISHMENT,LD - East Locality,LD - East Cambs - Special Needs,Residential Care
Cambridgeshire County Council,05-Oct-18,51300431122,"-1,317.11",ALDERTON HOUSE,CARE ESTABLISHMENT,LD - East Locality,LD - East Cambs - Special Needs,Residential Care
Cambridgeshire County Council,05-Oct-18,51300431077,"-1,317.11",ALDERTON HOUSE,CARE ESTABLISHMENT,LD - East Locality,LD - East Cambs - Special Needs,Residential Care
Cambridgeshire County Council,15-Oct-18,51300445189,"-1,317.11",ALDERTON HOUSE,CARE ESTABLISHMENT,LD - East Locality,LD - East Cambs - Special Needs,Residential Care
Cambridgeshire County Council,15-Oct-18,51300445161,"-1,317.11",ALDERTON HOUSE,CARE ESTABLISHMENT,LD - East Locality,LD - East Cambs - Special Needs,Residential Care
Cambridgeshire County Council,15-Oct-18,51300445114,"-1,317.11",ALDERTON HOUSE,CARE ESTABLISHMENT,LD - East Locality,LD - East Cambs - Special Needs,Residential Care
Cambridgeshire County Council,15-Oct-18,51300445148,"-1,317.11",ALDERTON HOUSE,CARE ESTABLISHMENT,LD - East Locality,LD - East Cambs - Special Needs,Residential Care
Cambridgeshire County Council,15-Oct-18,51300445176,"-1,317.11",ALDERTON HOUSE,CARE ESTABLISHMENT,LD - East Locality,LD - East Cambs - Special Needs,Residential Care
Cambridgeshire County Council,15-Oct-18,51300445203,"-1,317.11",ALDERTON HOUSE,CARE ESTABLISHMENT,LD - East Locality,LD - East Cambs - Special Needs,Residential Care
Cambridgeshire County Council,15-Oct-18,51300445057,"-1,317.11",ALDERTON HOUSE,CARE ESTABLISHMENT,LD - East Locality,LD - East Cambs - Special Needs,Residential Care
Cambridgeshire County Council,15-Oct-18,51300445054,"-1,317.11",ALDERTON HOUSE,CARE ESTABLISHMENT,LD - East Locality,LD - East Cambs - Special Needs,Residential Care
Cambridgeshire County Council,15-Oct-18,51300445122,"-1,317.11",ALDERTON HOUSE,CARE ESTABLISHMENT,LD - East Locality,LD - East Cambs - Special Needs,Residential Care
Cambridgeshire County Council,15-Oct-18,51300445194,"-1,317.11",ALDERTON HOUSE,CARE ESTABLISHMENT,LD - East Locality,LD - East Cambs - Special Needs,Residential Care
Cambridgeshire County Council,15-Oct-18,51300445061,"-1,317.11",ALDERTON HOUSE,CARE ESTABLISHMENT,LD - East Locality,LD - East Cambs - Special Needs,Residential Care
Cambridgeshire County Council,15-Oct-18,51300445201,"-1,317.11",ALDERTON HOUSE,CARE ESTABLISHMENT,LD - East Locality,LD - East Cambs - Special Needs,Residential Care
Cambridgeshire County Council,15-Oct-18,51300445088,"-1,317.11",ALDERTON HOUSE,CARE ESTABLISHMENT,LD - East Locality,LD - East Cambs - Special Needs,Residential Care
Cambridgeshire County Council,15-Oct-18,51300445106,"-1,317.11",ALDERTON HOUSE,CARE ESTABLISHMENT,LD - East Locality,LD - East Cambs - Special Needs,Residential Care
Cambridgeshire County Council,15-Oct-18,51300445197,"-1,317.11",ALDERTON HOUSE,CARE ESTABLISHMENT,LD - East Locality,LD - East Cambs - Special Needs,Residential Care
Cambridgeshire County Council,15-Oct-18,51300445085,"-1,317.11",ALDERTON HOUSE,CARE ESTABLISHMENT,LD - East Locality,LD - East Cambs - Care,Residential Care
Cambridgeshire County Council,15-Oct-18,51300445121,"-1,317.11",ALDERTON HOUSE,CARE ESTABLISHMENT,LD - East Locality,LD - East Cambs - Care,Residential Care
Cambridgeshire County Council,15-Oct-18,51300445075,"-1,317.11",ALDERTON HOUSE,CARE ESTABLISHMENT,LD - East Locality,LD - East Cambs - Care,Residential Care
Cambridgeshire County Council,15-Oct-18,51300445107,"-1,317.11",ALDERTON HOUSE,CARE ESTABLISHMENT,LD - East Locality,LD - East Cambs - Care,Residential Care
Cambridgeshire County Council,15-Oct-18,51300445160,"-1,317.11",ALDERTON HOUSE,CARE ESTABLISHMENT,LD - East Locality,LD - East Cambs - Care,Residential Care
Cambridgeshire County Council,15-Oct-18,51300445123,"-1,317.11",ALDERTON HOUSE,CARE ESTABLISHMENT,LD - East Locality,LD - East Cambs - Care,Residential Care
Cambridgeshire County Council,15-Oct-18,51300445051,"-1,317.11",ALDERTON HOUSE,CARE ESTABLISHMENT,LD - East Locality,LD - East Cambs - Care,Residential Care
Cambridgeshire County Council,15-Oct-18,51300445110,"-1,317.11",ALDERTON HOUSE,CARE ESTABLISHMENT,LD - East Locality,LD - East Cambs - Care,Residential Care
Cambridgeshire County Council,15-Oct-18,51300445096,"-1,317.11",ALDERTON HOUSE,CARE ESTABLISHMENT,LD - East Locality,LD - East Cambs - Care,Residential Care
Cambridgeshire County Council,15-Oct-18,51300445165,"-1,317.11",ALDERTON HOUSE,CARE ESTABLISHMENT,LD - East Locality,LD - East Cambs - Care,Residential Care
Cambridgeshire County Council,15-Oct-18,51300445170,"-1,317.11",ALDERTON HOUSE,CARE ESTABLISHMENT,LD - East Locality,LD - East Cambs - Care,Residential Care
Cambridgeshire County Council,15-Oct-18,51300445177,"-1,317.11",ALDERTON HOUSE,CARE ESTABLISHMENT,LD - East Locality,LD - East Cambs - Care,Residential Care
Cambridgeshire County Council,15-Oct-18,51300445149,"-1,317.11",ALDERTON HOUSE,CARE ESTABLISHMENT,LD - East Locality,LD - East Cambs - Care,Residential Care
Cambridgeshire County Council,15-Oct-18,51300445111,"-1,317.11",ALDERTON HOUSE,CARE ESTABLISHMENT,LD - East Locality,LD - East Cambs - Care,Residential Care
Cambridgeshire County Council,15-Oct-18,51300445117,"-1,317.11",ALDERTON HOUSE,CARE ESTABLISHMENT,LD - East Locality,LD - East Cambs - Care,Residential Care
Cambridgeshire County Council,15-Oct-18,51300445052,"-1,317.11",ALDERTON HOUSE,CARE ESTABLISHMENT,LD - East Locality,LD - East Cambs - Care,Residential Care
Cambridgeshire County Council,15-Oct-18,51300445124,"-1,317.11",ALDERTON HOUSE,CARE ESTABLISHMENT,LD - East Locality,LD - East Cambs - Care,Residential Care
Cambridgeshire County Council,15-Oct-18,51300445093,"-1,317.11",ALDERTON HOUSE,CARE ESTABLISHMENT,LD - East Locality,LD - East Cambs - Care,Residential Care
Cambridgeshire County Council,15-Oct-18,51300445164,"-1,317.11",ALDERTON HOUSE,CARE ESTABLISHMENT,LD - East Locality,LD - East Cambs - Care,Residential Care
Cambridgeshire County Council,15-Oct-18,51300445182,"-1,317.11",ALDERTON HOUSE,CARE ESTABLISHMENT,LD - East Locality,LD - East Cambs - Care,Residential Care
Cambridgeshire County Council,15-Oct-18,51300445175,"-1,317.11",ALDERTON HOUSE,CARE ESTABLISHMENT,LD - East Locality,LD - East Cambs - Care,Residential Care
Cambridgeshire County Council,15-Oct-18,51300445113,"-1,317.11",ALDERTON HOUSE,CARE ESTABLISHMENT,LD - East Locality,LD - East Cambs - Care,Residential Care
Cambridgeshire County Council,15-Oct-18,51300445143,"-1,317.11",ALDERTON HOUSE,CARE ESTABLISHMENT,LD - East Locality,LD - East Cambs - Care,Residential Care
Cambridgeshire County Council,15-Oct-18,51300445162,"-1,317.11",ALDERTON HOUSE,CARE ESTABLISHMENT,LD - East Locality,LD - East Cambs - Care,Residential Care
Cambridgeshire County Council,15-Oct-18,51300445172,"-1,317.11",ALDERTON HOUSE,CARE ESTABLISHMENT,LD - East Locality,LD - East Cambs - Care,Residential Care
Cambridgeshire County Council,15-Oct-18,51300445058,"-1,317.11",ALDERTON HOUSE,CARE ESTABLISHMENT,LD - East Locality,LD - East Cambs - Care,Residential Care
Cambridgeshire County Council,15-Oct-18,51300445072,"-1,317.11",ALDERTON HOUSE,CARE ESTABLISHMENT,LD - East Locality,LD - East Cambs - Care,Residential Care
Cambridgeshire County Council,15-Oct-18,51300445099,"-1,317.11",ALDERTON HOUSE,CARE ESTABLISHMENT,LD - East Locality,LD - East Cambs - Special Needs,Residential Care
Cambridgeshire County Council,15-Oct-18,51300445062,"-1,317.11",ALDERTON HOUSE,CARE ESTABLISHMENT,LD - East Locality,LD - East Cambs - Special Needs,Residential Care
Cambridgeshire County Council,15-Oct-18,51300445115,"-1,317.11",ALDERTON HOUSE,CARE ESTABLISHMENT,LD - East Locality,LD - East Cambs - Special Needs,Residential Care
Cambridgeshire County Council,15-Oct-18,51300445168,"-1,317.11",ALDERTON HOUSE,CARE ESTABLISHMENT,LD - East Locality,LD - East Cambs - Special Needs,Residential Care
Cambridgeshire County Council,15-Oct-18,51300445080,"-1,317.11",ALDERTON HOUSE,CARE ESTABLISHMENT,LD - East Locality,LD - East Cambs - Special Needs,Residential Care
Cambridgeshire County Council,15-Oct-18,51300445141,"-1,317.11",ALDERTON HOUSE,CARE ESTABLISHMENT,LD - East Locality,LD - East Cambs - Special Needs,Residential Care
Cambridgeshire County Council,15-Oct-18,51300445191,"-1,317.11",ALDERTON HOUSE,CARE ESTABLISHMENT,LD - East Locality,LD - East Cambs - Special Needs,Residential Care
Cambridgeshire County Council,15-Oct-18,51300445097,"-1,317.11",ALDERTON HOUSE,CARE ESTABLISHMENT,LD - East Locality,LD - East Cambs - Special Needs,Residential Care
Cambridgeshire County Council,15-Oct-18,51300445132,"-1,317.11",ALDERTON HOUSE,CARE ESTABLISHMENT,LD - East Locality,LD - East Cambs - Special Needs,Residential Care
Cambridgeshire County Council,15-Oct-18,51300445098,"-1,317.11",ALDERTON HOUSE,CARE ESTABLISHMENT,LD - East Locality,LD - East Cambs - Special Needs,Residential Care
Cambridgeshire County Council,15-Oct-18,51300445204,"-1,317.11",ALDERTON HOUSE,CARE ESTABLISHMENT,LD - East Locality,LD - East Cambs - Special Needs,Residential Care
Cambridgeshire County Council,25-Oct-18,51300470715,"-1,317.11",ALDERTON HOUSE,CARE ESTABLISHMENT,LD - East Locality,LD - East Cambs - Special Needs,Residential Care
Cambridgeshire County Council,25-Oct-18,51300493343,"-1,317.11",ALDERTON HOUSE,CARE ESTABLISHMENT,LD - East Locality,LD - East Cambs - Special Needs,Residential Care
Cambridgeshire County Council,25-Oct-18,51300493382,"-1,317.11",ALDERTON HOUSE,CARE ESTABLISHMENT,LD - East Locality,LD - East Cambs - Special Needs,Residential Care
Cambridgeshire County Council,25-Oct-18,51300493388,"-1,317.11",ALDERTON HOUSE,CARE ESTABLISHMENT,LD - East Locality,LD - East Cambs - Special Needs,Residential Care
Cambridgeshire County Council,25-Oct-18,51300470738,"-1,317.11",ALDERTON HOUSE,CARE ESTABLISHMENT,LD - East Locality,LD - East Cambs - Special Needs,Residential Care
Cambridgeshire County Council,25-Oct-18,51300470802,"-1,317.11",ALDERTON HOUSE,CARE ESTABLISHMENT,LD - East Locality,LD - East Cambs - Special Needs,Residential Care
Cambridgeshire County Council,25-Oct-18,51300470838,"-1,317.11",ALDERTON HOUSE,CARE ESTABLISHMENT,LD - East Locality,LD - East Cambs - Special Needs,Residential Care
